Body Name,Transaction Number,Account Code Description,Expenses Type,Service Code,Service Area Categorisation,Supplier Name,Date,Amount
Bath & North East Somerset Council,80050185,LM8,Home Care,P03,Wellbeing,ROBERT SAGE LTD T/A PRESTIGE NURSING PAYROLL,03/01/2012,10.4
Bath & North East Somerset Council,80050177,LM8,Home Care,P03,Wellbeing,AMBER HOMECARE LTD,03/01/2012,34.92
Bath & North East Somerset Council,80050184,LM8,Home Care,P03,Wellbeing,ROBERT SAGE LTD T/A PRESTIGE NURSING PAYROLL,03/01/2012,35
Bath & North East Somerset Council,80050183,LM8,Home Care,P03,Wellbeing,ROBERT SAGE LTD T/A PRESTIGE NURSING PAYROLL,03/01/2012,66.52
Bath & North East Somerset Council,80050178,LM8,Home Care,P03,Wellbeing,AMBER HOMECARE LTD,03/01/2012,69.71
Bath & North East Somerset Council,80050178,LM8,Home Care,P03,Wellbeing,AMBER HOMECARE LTD,03/01/2012,69.71
Bath & North East Somerset Council,80050178,LM8,Home Care,P03,Wellbeing,AMBER HOMECARE LTD,03/01/2012,69.71
Bath & North East Somerset Council,80050178,LM8,Home Care,P03,Wellbeing,AMBER HOMECARE LTD,03/01/2012,69.71
Bath & North East Somerset Council,10640783,KE2,Payment to Parents/Students,P02,"Early Years, Children & Youth",THE LINK,03/01/2012,175
Bath & North East Somerset Council,80050177,LM8,Home Care,P03,Wellbeing,AMBER HOMECARE LTD,03/01/2012,243.92
Bath & North East Somerset Council,80050177,LM8,Home Care,P03,Wellbeing,AMBER HOMECARE LTD,03/01/2012,243.92
Bath & North East Somerset Council,80050177,LM8,Home Care,P03,Wellbeing,AMBER HOMECARE LTD,03/01/2012,243.92
Bath & North East Somerset Council,80050182,LM8,Home Care,P03,Wellbeing,ROBERT SAGE LTD T/A PRESTIGE NURSING PAYROLL,03/01/2012,313.74
Bath & North East Somerset Council,10641377,LK6,Photography/Artworks/Graphics,P06,Sustainable Development,NORTHBANK DESIGN LTD,03/01/2012,452
Bath & North East Somerset Council,10640329,HA4,Responsive Maintenance PCB,P07,Community Resources,STOKES MASONRY (BATH) LTD,03/01/2012,460
Bath & North East Somerset Council,10641395,3C4,Building Works,P02,"Early Years, Children & Youth",CLOVER PEAT LTD,03/01/2012,486
Bath & North East Somerset Council,80050178,LM8,Home Care,P03,Wellbeing,AMBER HOMECARE LTD,03/01/2012,487.84
Bath & North East Somerset Council,80050178,LM8,Home Care,P03,Wellbeing,AMBER HOMECARE LTD,03/01/2012,487.84
Bath & North East Somerset Council,80050178,LM8,Home Care,P03,Wellbeing,AMBER HOMECARE LTD,03/01/2012,487.84
Bath & North East Somerset Council,80050178,LM8,Home Care,P03,Wellbeing,AMBER HOMECARE LTD,03/01/2012,487.84
Bath & North East Somerset Council,10641311,LD1,Protective & Safety Clothing,P05,Neighbourhoods,LANDSCAPE SUPPLY COMPANY,03/01/2012,487.86
Bath & North East Somerset Council,80050184,LM8,Home Care,P03,Wellbeing,ROBERT SAGE LTD T/A PRESTIGE NURSING PAYROLL,03/01/2012,488.76
Bath & North East Somerset Council,10640937,EA1,Training,P07,Community Resources,HBINFO LTD,03/01/2012,500
Bath & North East Somerset Council,10641176,DB1,Agency Staff,P06,Sustainable Development,APPOINT PERSONNEL LIMITED,03/01/2012,503.86
Bath & North East Somerset Council,80050183,LM8,Home Care,P03,Wellbeing,ROBERT SAGE LTD T/A PRESTIGE NURSING PAYROLL,03/01/2012,504.04
Bath & North East Somerset Council,80050179,LM8,Home Care,P03,Wellbeing,ROBERT SAGE LTD T/A PRESTIGE NURSING PAYROLL,03/01/2012,543.62
Bath & North East Somerset Council,10640782,KE2,Payment to Parents/Students,P02,"Early Years, Children & Youth",REDACTED,03/01/2012,700
Bath & North East Somerset Council,10641400,LH2,Advertising,Z98,West of England Partnership,THE ONTRAC AGENCY LIMITED,03/01/2012,720
Bath & North East Somerset Council,10641374,4R3,Recruitment and Advertising,,,TMP (UK) LTD,03/01/2012,854
Bath & North East Somerset Council,80050182,LM8,Home Care,P03,Wellbeing,ROBERT SAGE LTD T/A PRESTIGE NURSING PAYROLL,03/01/2012,871.56
Bath & North East Somerset Council,10640929,LJ2,Legal Fees,P02,"Early Years, Children & Youth",MISS TANYA ZABIHI,03/01/2012,900
Bath & North East Somerset Council,10639673,LJ2,Legal Fees,P09,Homes & Planning,LANDMARK CHAMBERS LTD,03/01/2012,900
Bath & North East Somerset Council,10639842,3F7,External Fees,P02,"Early Years, Children & Youth",H MEALING & SONS LTD,03/01/2012,925
Bath & North East Somerset Council,10640952,LF6,Subscriptions,P07,Community Resources,IRRV SERVICES LIMITED,03/01/2012,995
Bath & North East Somerset Council,10641397,LJ1,Consultants Fees,P02,"Early Years, Children & Youth",TWYNHAM SCHOOL,03/01/2012,1200
Bath & North East Somerset Council,10640783,LX1,Educational Activity,P02,"Early Years, Children & Youth",THE LINK,03/01/2012,1322.65
Bath & North East Somerset Council,10641299,HA2,Servicing,P06,Sustainable Development,HORDERS,03/01/2012,1428.88
Bath & North East Somerset Council,10640435,LA7,Purchases for Resale,P06,Sustainable Development,THE HOUSE OF DORCHESTER LTD,03/01/2012,1522
Bath & North East Somerset Council,10639792,3F7,External Fees,P07,Community Resources,ASHURST,03/01/2012,1548.16
Bath & North East Somerset Council,80050185,LM8,Home Care,P03,Wellbeing,ROBERT SAGE LTD T/A PRESTIGE NURSING PAYROLL,03/01/2012,1560.6
Bath & North East Somerset Council,10641350,LA3,Equipment Maintenance,P01,Transport,SOUTHERN ELECTRIC CONTRACTING LTD,03/01/2012,1800
Bath & North East Somerset Council,10639576,HN2,Gas,P05,Neighbourhoods,AQUATERRA LEISURE LIMITED,03/01/2012,1985.82
Bath & North East Somerset Council,10641037,LM2,Foster Carer Allowances,P02,"Early Years, Children & Youth",THE FOSTERING FOUNDATION (BRISTOL) LTD,03/01/2012,2100
Bath & North East Somerset Council,10641184,LN4,Mobile Phones,P04,Leader,MOUCHEL BUSINESS SERVICES LTD,03/01/2012,2373
Bath & North East Somerset Council,10638951,LJ1,Consultants Fees,P05,Neighbourhoods,STRATEGIC LEISURE (CHESHIRE) LTD,03/01/2012,2703.75
Bath & North East Somerset Council,10641262,HA4,Responsive Maintenance PCB,P07,Community Resources,LIONEL SAUNDERS & CO (BRISTOL),03/01/2012,2846.2
Bath & North East Somerset Council,10641104,HA3,Planned Maintenance,P06,Sustainable Development,CLIVEDEN CONSERVATION WORKSHOP,03/01/2012,2915
Bath & North East Somerset Council,10641354,LJ4,Contracts,P05,Neighbourhoods,WORCESTERSHIRE COUNTY COUNCIL,03/01/2012,4103.54
Bath & North East Somerset Council,10640979,LJ2,Legal Fees,P02,"Early Years, Children & Youth",MISS ANARKALI MUSGRAVE,03/01/2012,4579.8
Bath & North East Somerset Council,10641192,LV1,Grants to Voluntary Bodies,P04,Leader,GET WET SET,03/01/2012,5000
Bath & North East Somerset Council,10640781,LX1,Educational Activity,P02,"Early Years, Children & Youth",FOSSE WAY SCHOOL,03/01/2012,7000
Bath & North East Somerset Council,10641138,HK1,Highway Maintenance,P01,Transport,ST JOHN'S CHAMBERS REGULATORY FEE SHARE,03/01/2012,11400
Bath & North East Somerset Council,10641180,3F7,External Fees,P02,"Early Years, Children & Youth",REDACTED,03/01/2012,47905
Bath & North East Somerset Council,10641178,3C4,Building Works,P02,"Early Years, Children & Youth",E R HEMMINGS (BUILDING) LTD,03/01/2012,114669.02
Bath & North East Somerset Council,10641401,XA1,Grant Income,Z99,Outside Revenue Accounts,CLG,03/01/2012,1042209
Bath & North East Somerset Council,80055025,LM6,Nursing Care,P03,Wellbeing,LEONARD CHESHIRE FOUNDATION,04/01/2012,2.37
Bath & North East Somerset Council,80055025,LM3,Residential Care,P03,Wellbeing,LEONARD CHESHIRE FOUNDATION,04/01/2012,2.43
Bath & North East Somerset Council,80055025,LM3,Residential Care,P03,Wellbeing,LEONARD CHESHIRE FOUNDATION,04/01/2012,2.63
Bath & North East Somerset Council,80055026,LM3,Residential Care,P03,Wellbeing,LEONARD CHESHIRE FOUNDATION,04/01/2012,2.68
Bath & North East Somerset Council,80055025,LM3,Residential Care,P03,Wellbeing,LEONARD CHESHIRE FOUNDATION,04/01/2012,2.98
Bath & North East Somerset Council,80055025,LM6,Nursing Care,P03,Wellbeing,LEONARD CHESHIRE FOUNDATION,04/01/2012,3.37
Bath & North East Somerset Council,80055025,LM3,Residential Care,P03,Wellbeing,LEONARD CHESHIRE FOUNDATION,04/01/2012,3.59
Bath & North East Somerset Council,80055025,LM3,Residential Care,P03,Wellbeing,LEONARD CHESHIRE FOUNDATION,04/01/2012,3.67
Bath & North East Somerset Council,80055025,LM3,Residential Care,P03,Wellbeing,LEONARD CHESHIRE FOUNDATION,04/01/2012,3.77
Bath & North East Somerset Council,80055275,EA1,Training,P03,Wellbeing,R P & S A MUGFORD,04/01/2012,13.65
Bath & North East Somerset Council,80055237,LM2,Foster Carer Allowances,P02,"Early Years, Children & Youth",REDACTED,04/01/2012,27.1
Bath & North East Somerset Council,80055246,EA1,Training,P03,Wellbeing,REDACTED,04/01/2012,34.45
Bath & North East Somerset Council,80055294,LM2,Foster Carer Allowances,P02,"Early Years, Children & Youth",REDACTED,04/01/2012,50
Bath & North East Somerset Council,80055294,LM2,Foster Carer Allowances,P02,"Early Years, Children & Youth",REDACTED,04/01/2012,50
Bath & North East Somerset Council,80055204,LM2,Foster Carer Allowances,P02,"Early Years, Children & Youth",REDACTED,04/01/2012,57.96
Bath & North East Somerset Council,80055093,YF2,Fees & Charges,P03,Wellbeing,CEDAR CARE HOMES LTD,04/01/2012,66.98
Bath & North East Somerset Council,80055093,YF2,Fees & Charges,P03,Wellbeing,CEDAR CARE HOMES LTD,04/01/2012,66.98
Bath & North East Somerset Council,80055093,YF2,Fees & Charges,P03,Wellbeing,CEDAR CARE HOMES LTD,04/01/2012,66.98
Bath & North East Somerset Council,80055093,YF2,Fees & Charges,P03,Wellbeing,CEDAR CARE HOMES LTD,04/01/2012,66.98
Bath & North East Somerset Council,80055093,YF2,Fees & Charges,P03,Wellbeing,CEDAR CARE HOMES LTD,04/01/2012,66.98
Bath & North East Somerset Council,80055059,YF2,Fees & Charges,P03,Wellbeing,CRAEGMOOR FACILITIES COMPANY LIMITED,04/01/2012,70.15
Bath & North East Somerset Council,80055059,YF2,Fees & Charges,P03,Wellbeing,CRAEGMOOR FACILITIES COMPANY LIMITED,04/01/2012,70.15
Bath & North East Somerset Council,80055059,YF2,Fees & Charges,P03,Wellbeing,CRAEGMOOR FACILITIES COMPANY LIMITED,04/01/2012,70.15
Bath & North East Somerset Council,80055059,YF2,Fees & Charges,P03,Wellbeing,CRAEGMOOR FACILITIES COMPANY LIMITED,04/01/2012,70.15
Bath & North East Somerset Council,80055059,YF2,Fees & Charges,P03,Wellbeing,CRAEGMOOR FACILITIES COMPANY LIMITED,04/01/2012,70.15
Bath & North East Somerset Council,80055059,YF2,Fees & Charges,P03,Wellbeing,CRAEGMOOR FACILITIES COMPANY LIMITED,04/01/2012,70.15
Bath & North East Somerset Council,80055059,YF2,Fees & Charges,P03,Wellbeing,CRAEGMOOR FACILITIES COMPANY LIMITED,04/01/2012,70.15
Bath & North East Somerset Council,80055059,YF2,Fees & Charges,P03,Wellbeing,CRAEGMOOR FACILITIES COMPANY LIMITED,04/01/2012,70.15
Bath & North East Somerset Council,80055059,YF2,Fees & Charges,P03,Wellbeing,CRAEGMOOR FACILITIES COMPANY LIMITED,04/01/2012,70.15
Bath & North East Somerset Council,80055059,YF2,Fees & Charges,P03,Wellbeing,CRAEGMOOR FACILITIES COMPANY LIMITED,04/01/2012,70.15
Bath & North East Somerset Council,80055059,YF2,Fees & Charges,P03,Wellbeing,CRAEGMOOR FACILITIES COMPANY LIMITED,04/01/2012,70.15
Bath & North East Somerset Council,80055059,YF2,Fees & Charges,P03,Wellbeing,CRAEGMOOR FACILITIES COMPANY LIMITED,04/01/2012,70.15
Bath & North East Somerset Council,80055059,YF2,Fees & Charges,P03,Wellbeing,CRAEGMOOR FACILITIES COMPANY LIMITED,04/01/2012,70.15
Bath & North East Somerset Council,80055059,YF2,Fees & Charges,P03,Wellbeing,CRAEGMOOR FACILITIES COMPANY LIMITED,04/01/2012,70.15
Bath & North East Somerset Council,80055059,YF2,Fees & Charges,P03,Wellbeing,CRAEGMOOR FACILITIES COMPANY LIMITED,04/01/2012,70.15
Bath & North East Somerset Council,80055059,YF2,Fees & Charges,P03,Wellbeing,CRAEGMOOR FACILITIES COMPANY LIMITED,04/01/2012,70.15
Bath & North East Somerset Council,80055059,YF2,Fees & Charges,P03,Wellbeing,CRAEGMOOR FACILITIES COMPANY LIMITED,04/01/2012,70.15
Bath & North East Somerset Council,80055059,YF2,Fees & Charges,P03,Wellbeing,CRAEGMOOR FACILITIES COMPANY LIMITED,04/01/2012,70.15
Bath & North East Somerset Council,80055059,YF2,Fees & Charges,P03,Wellbeing,CRAEGMOOR FACILITIES COMPANY LIMITED,04/01/2012,70.15
Bath & North East Somerset Council,80055059,YF2,Fees & Charges,P03,Wellbeing,CRAEGMOOR FACILITIES COMPANY LIMITED,04/01/2012,70.15
Bath & North East Somerset Council,80055059,YF2,Fees & Charges,P03,Wellbeing,CRAEGMOOR FACILITIES COMPANY LIMITED,04/01/2012,70.15
Bath & North East Somerset Council,80055059,YF2,Fees & Charges,P03,Wellbeing,CRAEGMOOR FACILITIES COMPANY LIMITED,04/01/2012,70.15
Bath & North East Somerset Council,80055059,YF2,Fees & Charges,P03,Wellbeing,CRAEGMOOR FACILITIES COMPANY LIMITED,04/01/2012,70.15
Bath & North East Somerset Council,80055059,YF2,Fees & Charges,P03,Wellbeing,CRAEGMOOR FACILITIES COMPANY LIMITED,04/01/2012,70.15
Bath & North East Somerset Council,80055059,YF2,Fees & Charges,P03,Wellbeing,CRAEGMOOR FACILITIES COMPANY LIMITED,04/01/2012,70.15
Bath & North East Somerset Council,80055059,YF2,Fees & Charges,P03,Wellbeing,CRAEGMOOR FACILITIES COMPANY LIMITED,04/01/2012,70.15
Bath & North East Somerset Council,80055059,YF2,Fees & Charges,P03,Wellbeing,CRAEGMOOR FACILITIES COMPANY LIMITED,04/01/2012,70.15
Bath & North East Somerset Council,80055059,YF2,Fees & Charges,P03,Wellbeing,CRAEGMOOR FACILITIES COMPANY LIMITED,04/01/2012,70.15
Bath & North East Somerset Council,80055059,YF2,Fees & Charges,P03,Wellbeing,CRAEGMOOR FACILITIES COMPANY LIMITED,04/01/2012,70.15
Bath & North East Somerset Council,80055059,YF2,Fees & Charges,P03,Wellbeing,CRAEGMOOR FACILITIES COMPANY LIMITED,04/01/2012,70.15
Bath & North East Somerset Council,80055059,YF2,Fees & Charges,P03,Wellbeing,CRAEGMOOR FACILITIES COMPANY LIMITED,04/01/2012,70.15
Bath & North East Somerset Council,80055059,YF2,Fees & Charges,P03,Wellbeing,CRAEGMOOR FACILITIES COMPANY LIMITED,04/01/2012,70.15
Bath & North East Somerset Council,80055059,YF2,Fees & Charges,P03,Wellbeing,CRAEGMOOR FACILITIES COMPANY LIMITED,04/01/2012,70.15
Bath & North East Somerset Council,80055059,YF2,Fees & Charges,P03,Wellbeing,CRAEGMOOR FACILITIES COMPANY LIMITED,04/01/2012,70.15
Bath & North East Somerset Council,80055059,YF2,Fees & Charges,P03,Wellbeing,CRAEGMOOR FACILITIES COMPANY LIMITED,04/01/2012,70.15
Bath & North East Somerset Council,80055059,YF2,Fees & Charges,P03,Wellbeing,CRAEGMOOR FACILITIES COMPANY LIMITED,04/01/2012,70.15
Bath & North East Somerset Council,80055059,YF2,Fees & Charges,P03,Wellbeing,CRAEGMOOR FACILITIES COMPANY LIMITED,04/01/2012,70.15
Bath & North East Somerset Council,80054978,YF2,Fees & Charges,P03,Wellbeing,MOSTYN LODGE,04/01/2012,79.59
Bath & North East Somerset Council,10640517,LA5,Materials,P05,Neighbourhoods,BONINGALE NURSERIES,04/01/2012,86
Bath & North East Somerset Council,10639415,HE1,General Maintenance,P01,Transport,METRIC GROUP LIMITED,04/01/2012,88.2
Bath & North East Somerset Council,80054856,LM6,Nursing Care,P03,Wellbeing,BRIDGE CARE LTD,04/01/2012,92.86
Bath & North East Somerset Council,80055171,YF2,Fees & Charges,P03,Wellbeing,ASPECTS & MILESTONES TRUST,04/01/2012,96.35
Bath & North East Somerset Council,80055171,YF2,Fees & Charges,P03,Wellbeing,ASPECTS & MILESTONES TRUST,04/01/2012,96.35
Bath & North East Somerset Council,80055171,YF2,Fees & Charges,P03,Wellbeing,ASPECTS & MILESTONES TRUST,04/01/2012,96.35
Bath & North East Somerset Council,80055171,YF2,Fees & Charges,P03,Wellbeing,ASPECTS & MILESTONES TRUST,04/01/2012,96.35
Bath & North East Somerset Council,80055171,YF2,Fees & Charges,P03,Wellbeing,ASPECTS & MILESTONES TRUST,04/01/2012,96.35
Bath & North East Somerset Council,80055171,YF2,Fees & Charges,P03,Wellbeing,ASPECTS & MILESTONES TRUST,04/01/2012,96.35
Bath & North East Somerset Council,80055171,YF2,Fees & Charges,P03,Wellbeing,ASPECTS & MILESTONES TRUST,04/01/2012,96.35
Bath & North East Somerset Council,80055171,YF2,Fees & Charges,P03,Wellbeing,ASPECTS & MILESTONES TRUST,04/01/2012,96.35
Bath & North East Somerset Council,80055171,YF2,Fees & Charges,P03,Wellbeing,ASPECTS & MILESTONES TRUST,04/01/2012,96.35
Bath & North East Somerset Council,80055171,YF2,Fees & Charges,P03,Wellbeing,ASPECTS & MILESTONES TRUST,04/01/2012,96.35
Bath & North East Somerset Council,80055171,YF2,Fees & Charges,P03,Wellbeing,ASPECTS & MILESTONES TRUST,04/01/2012,96.35
Bath & North East Somerset Council,80055171,YF2,Fees & Charges,P03,Wellbeing,ASPECTS & MILESTONES TRUST,04/01/2012,96.35
Bath & North East Somerset Council,80055171,YF2,Fees & Charges,P03,Wellbeing,ASPECTS & MILESTONES TRUST,04/01/2012,96.35
Bath & North East Somerset Council,80055171,YF2,Fees & Charges,P03,Wellbeing,ASPECTS & MILESTONES TRUST,04/01/2012,96.35
Bath & North East Somerset Council,80055171,YF2,Fees & Charges,P03,Wellbeing,ASPECTS & MILESTONES TRUST,04/01/2012,96.35
Bath & North East Somerset Council,80055171,YF2,Fees & Charges,P03,Wellbeing,ASPECTS & MILESTONES TRUST,04/01/2012,96.35
Bath & North East Somerset Council,80055204,LM2,Foster Carer Allowances,P02,"Early Years, Children & Youth",REDACTED,04/01/2012,100
Bath & North East Somerset Council,80055213,LM2,Foster Carer Allowances,P02,"Early Years, Children & Youth",REDACTED,04/01/2012,100
Bath & North East Somerset Council,80055213,LM2,Foster Carer Allowances,P02,"Early Years, Children & Youth",REDACTED,04/01/2012,100
Bath & North East Somerset Council,80055220,LM2,Foster Carer Allowances,P02,"Early Years, Children & Youth",REDACTED,04/01/2012,100
Bath & North East Somerset Council,80055220,LM2,Foster Carer Allowances,P02,"Early Years, Children & Youth",REDACTED,04/01/2012,100
Bath & North East Somerset Council,80055229,LM2,Foster Carer Allowances,P02,"Early Years, Children & Youth",REDACTED,04/01/2012,100
Bath & North East Somerset Council,80055234,LM2,Foster Carer Allowances,P02,"Early Years, Children & Youth",REDACTED,04/01/2012,100
Bath & North East Somerset Council,80055234,LM2,Foster Carer Allowances,P02,"Early Years, Children & Youth",REDACTED,04/01/2012,100
Bath & North East Somerset Council,80055237,LM2,Foster Carer Allowances,P02,"Early Years, Children & Youth",REDACTED,04/01/2012,100
Bath & North East Somerset Council,80055274,LM2,Foster Carer Allowances,P02,"Early Years, Children & Youth",REDACTED,04/01/2012,100
Bath & North East Somerset Council,10639415,HE1,General Maintenance,P01,Transport,METRIC GROUP LIMITED,04/01/2012,101.61
Bath & North East Somerset Council,10639415,HE1,General Maintenance,P01,Transport,METRIC GROUP LIMITED,04/01/2012,101.61
Bath & North East Somerset Council,80055023,YF2,Fees & Charges,P03,Wellbeing,BRIDGE CARE LTD,04/01/2012,104.09
Bath & North East Somerset Council,80055023,YF2,Fees & Charges,P03,Wellbeing,BRIDGE CARE LTD,04/01/2012,104.09
Bath & North East Somerset Council,80055023,YF2,Fees & Charges,P03,Wellbeing,BRIDGE CARE LTD,04/01/2012,104.09
Bath & North East Somerset Council,80055149,YF2,Fees & Charges,P03,Wellbeing,EUROPEAN CARE (UK) LTD - REDACTED,04/01/2012,107.8
Bath & North East Somerset Council,80055141,YF2,Fees & Charges,P03,Wellbeing,OAKFIELD,04/01/2012,110.75
Bath & North East Somerset Council,80055141,YF2,Fees & Charges,P03,Wellbeing,OAKFIELD,04/01/2012,110.75
Bath & North East Somerset Council,80055141,YF2,Fees & Charges,P03,Wellbeing,OAKFIELD,04/01/2012,110.75
Bath & North East Somerset Council,80055141,YF2,Fees & Charges,P03,Wellbeing,OAKFIELD,04/01/2012,110.75
Bath & North East Somerset Council,80055141,YF2,Fees & Charges,P03,Wellbeing,OAKFIELD,04/01/2012,110.75
Bath & North East Somerset Council,80055070,LL3,Supported Living,P03,Wellbeing,OPTIONS FOR LIVING LTD,04/01/2012,112.8
Bath & North East Somerset Council,80055070,LL3,Supported Living,P03,Wellbeing,OPTIONS FOR LIVING LTD,04/01/2012,112.8
Bath & North East Somerset Council,80055141,YF2,Fees & Charges,P03,Wellbeing,OAKFIELD,04/01/2012,114.75
Bath & North East Somerset Council,80055141,YF2,Fees & Charges,P03,Wellbeing,OAKFIELD,04/01/2012,114.75
Bath & North East Somerset Council,80055141,YF2,Fees & Charges,P03,Wellbeing,OAKFIELD,04/01/2012,114.75
Bath & North East Somerset Council,80055141,YF2,Fees & Charges,P03,Wellbeing,OAKFIELD,04/01/2012,114.75
Bath & North East Somerset Council,80055141,YF2,Fees & Charges,P03,Wellbeing,OAKFIELD,04/01/2012,114.75
Bath & North East Somerset Council,80055141,YF2,Fees & Charges,P03,Wellbeing,OAKFIELD,04/01/2012,114.75
Bath & North East Somerset Council,80055141,YF2,Fees & Charges,P03,Wellbeing,OAKFIELD,04/01/2012,114.75
Bath & North East Somerset Council,80055141,YF2,Fees & Charges,P03,Wellbeing,OAKFIELD,04/01/2012,114.75
Bath & North East Somerset Council,80055141,YF2,Fees & Charges,P03,Wellbeing,OAKFIELD,04/01/2012,114.75
Bath & North East Somerset Council,80055141,YF2,Fees & Charges,P03,Wellbeing,OAKFIELD,04/01/2012,114.75
Bath & North East Somerset Council,80055141,YF2,Fees & Charges,P03,Wellbeing,OAKFIELD,04/01/2012,114.75
Bath & North East Somerset Council,80055141,YF2,Fees & Charges,P03,Wellbeing,OAKFIELD,04/01/2012,114.75
Bath & North East Somerset Council,80055141,YF2,Fees & Charges,P03,Wellbeing,OAKFIELD,04/01/2012,114.75
Bath & North East Somerset Council,80055261,LL2,Personal Needs of Clients,P02,"Early Years, Children & Youth",REDACTED,04/01/2012,130
Bath & North East Somerset Council,80055237,LM2,Foster Carer Allowances,P02,"Early Years, Children & Youth",REDACTED,04/01/2012,136.04
Bath & North East Somerset Council,80055247,LM2,Foster Carer Allowances,P02,"Early Years, Children & Youth",REDACTED,04/01/2012,149.76
Bath & North East Somerset Council,10641304,LH5,Marketing,P06,Sustainable Development,FUSION WORKSHOP LTD,04/01/2012,150
Bath & North East Somerset Council,80055149,YF2,Fees & Charges,P03,Wellbeing,EUROPEAN CARE (UK) LTD - REDACTED,04/01/2012,150.92
Bath & North East Somerset Council,80055149,YF2,Fees & Charges,P03,Wellbeing,EUROPEAN CARE (UK) LTD - REDACTED,04/01/2012,150.92
Bath & North East Somerset Council,80055149,YF2,Fees & Charges,P03,Wellbeing,EUROPEAN CARE (UK) LTD - REDACTED,04/01/2012,150.92
Bath & North East Somerset Council,80055089,YF2,Fees & Charges,P03,Wellbeing,CEDAR PARK NURSING HOME,04/01/2012,161.28
Bath & North East Somerset Council,80055165,LM6,Nursing Care,P03,Wellbeing,RNID  (FAO:REDACTED),04/01/2012,162.27
Bath & North East Somerset Council,10639415,HE1,General Maintenance,P01,Transport,METRIC GROUP LIMITED,04/01/2012,162.99
Bath & North East Somerset Council,80055261,LL2,Personal Needs of Clients,P02,"Early Years, Children & Youth",REDACTED,04/01/2012,170
Bath & North East Somerset Council,80055036,LM3,Residential Care,P03,Wellbeing,ARTI SERVICES LTD T/A THE MANOR FARM HOUSE,04/01/2012,177
Bath & North East Somerset Council,80055068,LM3,Residential Care,P03,Wellbeing,FSHC NEWCO 2 LTD: REDACTED,04/01/2012,177
Bath & North East Somerset Council,80054989,LM6,Nursing Care,P03,Wellbeing,CHOLWELL HOUSE NURSING HOME,04/01/2012,181
Bath & North East Somerset Council,80054989,LM6,Nursing Care,P03,Wellbeing,CHOLWELL HOUSE NURSING HOME,04/01/2012,181
Bath & North East Somerset Council,80055089,YF2,Fees & Charges,P03,Wellbeing,CEDAR PARK NURSING HOME,04/01/2012,184.33
Bath & North East Somerset Council,80055234,LM2,Foster Carer Allowances,P02,"Early Years, Children & Youth",REDACTED,04/01/2012,186.43
Bath & North East Somerset Council,80055249,LM2,Foster Carer Allowances,P02,"Early Years, Children & Youth",REDACTED,04/01/2012,186.43
Bath & North East Somerset Council,10641189,LN4,Mobile Phones,P04,Leader,ORANGE PERSONAL COMMUNICATION,04/01/2012,190.7
Bath & North East Somerset Council,10639415,HE1,General Maintenance,P01,Transport,METRIC GROUP LIMITED,04/01/2012,203.22
Bath & North East Somerset Council,10639415,HE1,General Maintenance,P01,Transport,METRIC GROUP LIMITED,04/01/2012,203.22
Bath & North East Somerset Council,10639415,HE1,General Maintenance,P01,Transport,METRIC GROUP LIMITED,04/01/2012,203.22
Bath & North East Somerset Council,10639415,HE1,General Maintenance,P01,Transport,METRIC GROUP LIMITED,04/01/2012,203.22
Bath & North East Somerset Council,10639415,HE1,General Maintenance,P01,Transport,METRIC GROUP LIMITED,04/01/2012,203.22
Bath & North East Somerset Council,10639415,HE1,General Maintenance,P01,Transport,METRIC GROUP LIMITED,04/01/2012,203.22
Bath & North East Somerset Council,10639415,HE1,General Maintenance,P01,Transport,METRIC GROUP LIMITED,04/01/2012,203.22
Bath & North East Somerset Council,80055089,YF2,Fees & Charges,P03,Wellbeing,CEDAR PARK NURSING HOME,04/01/2012,215.05
Bath & North East Somerset Council,80055089,YF2,Fees & Charges,P03,Wellbeing,CEDAR PARK NURSING HOME,04/01/2012,215.05
Bath & North East Somerset Council,80055089,YF2,Fees & Charges,P03,Wellbeing,CEDAR PARK NURSING HOME,04/01/2012,215.05
Bath & North East Somerset Council,80055275,LM2,Foster Carer Allowances,P02,"Early Years, Children & Youth",REDACTED,04/01/2012,226.74
Bath & North East Somerset Council,80055089,LM6,Nursing Care,P03,Wellbeing,CEDAR PARK NURSING HOME,04/01/2012,229.71
Bath & North East Somerset Council,80055089,LM6,Nursing Care,P03,Wellbeing,CEDAR PARK NURSING HOME,04/01/2012,229.71
Bath & North East Somerset Council,80055141,LM6,Nursing Care,P03,Wellbeing,OAKFIELD,04/01/2012,229.71
Bath & North East Somerset Council,80055149,LM6,Nursing Care,P03,Wellbeing,EUROPEAN CARE (UK) LTD - REDACTED,04/01/2012,229.71
Bath & North East Somerset Council,80055053,LM3,Residential Care,P03,Wellbeing,GROVE CARE LTD T/A ORIEL LODGE,04/01/2012,234.69
Bath & North East Somerset Council,80055053,LM3,Residential Care,P03,Wellbeing,GROVE CARE LTD T/A ORIEL LODGE,04/01/2012,234.69
Bath & North East Somerset Council,80055179,LM3,Residential Care,P03,Wellbeing,METHODIST HOMES FOR THE AGED,04/01/2012,236
Bath & North East Somerset Council,80055023,LM6,Nursing Care,P03,Wellbeing,BRIDGE CARE LTD,04/01/2012,240
Bath & North East Somerset Council,80055204,LM2,Foster Carer Allowances,P02,"Early Years, Children & Youth",REDACTED,04/01/2012,240.72
Bath & North East Somerset Council,80055234,LM2,Foster Carer Allowances,P02,"Early Years, Children & Youth",REDACTED,04/01/2012,240.72
Bath & North East Somerset Council,80055234,LM2,Foster Carer Allowances,P02,"Early Years, Children & Youth",REDACTED,04/01/2012,240.72
Bath & North East Somerset Council,80055052,LM6,Nursing Care,P03,Wellbeing,BARKER CHEMICALS LTD T/A ST TERESA'S NH,04/01/2012,243.86
Bath & North East Somerset Council,80055213,LL7,Residence Orders,P02,"Early Years, Children & Youth",REDACTED,04/01/2012,258.92
Bath & North East Somerset Council,10640073,LA5,Materials,P05,Neighbourhoods,YOUNG JOHNSON,04/01/2012,260
Bath & North East Somerset Council,80055306,LM2,Foster Carer Allowances,P02,"Early Years, Children & Youth",REDACTED,04/01/2012,262.94
Bath & North East Somerset Council,10639415,HE1,General Maintenance,P01,Transport,METRIC GROUP LIMITED,04/01/2012,264.6
Bath & North East Somerset Council,10639415,HE1,General Maintenance,P01,Transport,METRIC GROUP LIMITED,04/01/2012,264.6
Bath & North East Somerset Council,10639127,PB4,Payments to Private Contractors,P05,Neighbourhoods,VIRIDOR WASTE MANAGEMENT LTD,04/01/2012,274.12
Bath & North East Somerset Council,80055037,LL3,Supported Living,P03,Wellbeing,ARCH CARE SERVICES,04/01/2012,275
Bath & North East Somerset Council,80055037,LL3,Supported Living,P03,Wellbeing,ARCH CARE SERVICES,04/01/2012,275
Bath & North East Somerset Council,80055147,LM6,Nursing Care,P03,Wellbeing,LARKHALL SPRINGS NURSING HOME,04/01/2012,292.5
Bath & North East Somerset Council,80055068,LM3,Residential Care,P03,Wellbeing,FSHC NEWCO 2 LTD: REDACTED,04/01/2012,295
Bath & North East Somerset Council,80055108,LM3,Residential Care,P03,Wellbeing,NEWBRIDGE TOWERS RESIDENTIAL CARE HOME,04/01/2012,295
Bath & North East Somerset Council,80055237,LM2,Foster Carer Allowances,P02,"Early Years, Children & Youth",REDACTED,04/01/2012,299.52
Bath & North East Somerset Council,80055294,LM2,Foster Carer Allowances,P02,"Early Years, Children & Youth",REDACTED,04/01/2012,299.52
Bath & North East Somerset Council,80055294,LM2,Foster Carer Allowances,P02,"Early Years, Children & Youth",REDACTED,04/01/2012,299.52
Bath & North East Somerset Council,80055305,LM2,Foster Carer Allowances,P02,"Early Years, Children & Youth",REDACTED,04/01/2012,299.52
Bath & North East Somerset Council,80055306,LM2,Foster Carer Allowances,P02,"Early Years, Children & Youth",REDACTED,04/01/2012,299.52
Bath & North East Somerset Council,80055270,LM2,Foster Carer Allowances,P02,"Early Years, Children & Youth",REDACTED,04/01/2012,306.92
Bath & North East Somerset Council,80055037,LL3,Supported Living,P03,Wellbeing,ARCH CARE SERVICES,04/01/2012,312
Bath & North East Somerset Council,80055037,LL3,Supported Living,P03,Wellbeing,ARCH CARE SERVICES,04/01/2012,312
Bath & North East Somerset Council,80054981,LM3,Residential Care,P03,Wellbeing,DIMENSIONS (UK) LTD,04/01/2012,313.06
Bath & North East Somerset Council,80054981,LM3,Residential Care,P03,Wellbeing,DIMENSIONS (UK) LTD,04/01/2012,313.06
Bath & North East Somerset Council,80055131,LM3,Residential Care,P03,Wellbeing,PILGRIM HOMES,04/01/2012,318.29
Bath & North East Somerset Council,80055208,LL7,Residence Orders,P02,"Early Years, Children & Youth",REDACTED,04/01/2012,332.26
Bath & North East Somerset Council,80055208,LL7,Residence Orders,P02,"Early Years, Children & Youth",REDACTED,04/01/2012,346.06
Bath & North East Somerset Council,80055037,LL3,Supported Living,P03,Wellbeing,ARCH CARE SERVICES,04/01/2012,352
Bath & North East Somerset Council,80055037,LL3,Supported Living,P03,Wellbeing,ARCH CARE SERVICES,04/01/2012,352
Bath & North East Somerset Council,10639415,HE1,General Maintenance,P01,Transport,METRIC GROUP LIMITED,04/01/2012,352.8
Bath & North East Somerset Council,80054975,LM3,Residential Care,P03,Wellbeing,DIMENSIONS (UK) LTD,04/01/2012,362.38
Bath & North East Somerset Council,80054975,LM3,Residential Care,P03,Wellbeing,DIMENSIONS (UK) LTD,04/01/2012,362.38
Bath & North East Somerset Council,80054975,LM3,Residential Care,P03,Wellbeing,DIMENSIONS (UK) LTD,04/01/2012,362.38
Bath & North East Somerset Council,80054975,LM3,Residential Care,P03,Wellbeing,DIMENSIONS (UK) LTD,04/01/2012,362.38
Bath & North East Somerset Council,80054975,LM3,Residential Care,P03,Wellbeing,DIMENSIONS (UK) LTD,04/01/2012,362.38
Bath & North East Somerset Council,80054975,LM3,Residential Care,P03,Wellbeing,DIMENSIONS (UK) LTD,04/01/2012,362.38
Bath & North East Somerset Council,80054975,LM3,Residential Care,P03,Wellbeing,DIMENSIONS (UK) LTD,04/01/2012,362.38
Bath & North East Somerset Council,80054975,LM3,Residential Care,P03,Wellbeing,DIMENSIONS (UK) LTD,04/01/2012,362.38
Bath & North East Somerset Council,80055204,LM2,Foster Carer Allowances,P02,"Early Years, Children & Youth",REDACTED,04/01/2012,372.86
Bath & North East Somerset Council,80055213,LM2,Foster Carer Allowances,P02,"Early Years, Children & Youth",REDACTED,04/01/2012,372.86
Bath & North East Somerset Council,80055219,LM2,Foster Carer Allowances,P02,"Early Years, Children & Youth",REDACTED,04/01/2012,372.86
Bath & North East Somerset Council,80055220,LM2,Foster Carer Allowances,P02,"Early Years, Children & Youth",REDACTED,04/01/2012,372.86
Bath & North East Somerset Council,80055220,LM2,Foster Carer Allowances,P02,"Early Years, Children & Youth",REDACTED,04/01/2012,372.86
Bath & North East Somerset Council,80055226,LM2,Foster Carer Allowances,P02,"Early Years, Children & Youth",REDACTED,04/01/2012,372.86
Bath & North East Somerset Council,80055234,LM2,Foster Carer Allowances,P02,"Early Years, Children & Youth",REDACTED,04/01/2012,372.86
Bath & North East Somerset Council,80055234,LM2,Foster Carer Allowances,P02,"Early Years, Children & Youth",REDACTED,04/01/2012,372.86
Bath & North East Somerset Council,80055300,LM2,Foster Carer Allowances,P02,"Early Years, Children & Youth",REDACTED,04/01/2012,372.86
Bath & North East Somerset Council,80055300,LM2,Foster Carer Allowances,P02,"Early Years, Children & Youth",REDACTED,04/01/2012,372.86
Bath & North East Somerset Council,80055305,LM2,Foster Carer Allowances,P02,"Early Years, Children & Youth",REDACTED,04/01/2012,372.86
Bath & North East Somerset Council,80055270,LM2,Foster Carer Allowances,P02,"Early Years, Children & Youth",REDACTED,04/01/2012,375
Bath & North East Somerset Council,80054975,LM3,Residential Care,P03,Wellbeing,DIMENSIONS (UK) LTD,04/01/2012,380.34
Bath & North East Somerset Council,80054975,LM3,Residential Care,P03,Wellbeing,DIMENSIONS (UK) LTD,04/01/2012,380.34
Bath & North East Somerset Council,80054981,LM3,Residential Care,P03,Wellbeing,DIMENSIONS (UK) LTD,04/01/2012,381.45
Bath & North East Somerset Council,80054981,LM3,Residential Care,P03,Wellbeing,DIMENSIONS (UK) LTD,04/01/2012,381.45
Bath & North East Somerset Council,80054981,LM3,Residential Care,P03,Wellbeing,DIMENSIONS (UK) LTD,04/01/2012,381.45
Bath & North East Somerset Council,80054981,LM3,Residential Care,P03,Wellbeing,DIMENSIONS (UK) LTD,04/01/2012,381.45
Bath & North East Somerset Council,80054981,LM3,Residential Care,P03,Wellbeing,DIMENSIONS (UK) LTD,04/01/2012,381.45
Bath & North East Somerset Council,80054981,LM3,Residential Care,P03,Wellbeing,DIMENSIONS (UK) LTD,04/01/2012,381.45
Bath & North East Somerset Council,80054977,LM3,Residential Care,P03,Wellbeing,DIMENSIONS (UK) LTD,04/01/2012,381.45
Bath & North East Somerset Council,80054977,LM3,Residential Care,P03,Wellbeing,DIMENSIONS (UK) LTD,04/01/2012,381.45
Bath & North East Somerset Council,80054977,LM3,Residential Care,P03,Wellbeing,DIMENSIONS (UK) LTD,04/01/2012,381.45
Bath & North East Somerset Council,80054977,LM3,Residential Care,P03,Wellbeing,DIMENSIONS (UK) LTD,04/01/2012,381.45
Bath & North East Somerset Council,80054977,LM3,Residential Care,P03,Wellbeing,DIMENSIONS (UK) LTD,04/01/2012,381.45
Bath & North East Somerset Council,80054977,LM3,Residential Care,P03,Wellbeing,DIMENSIONS (UK) LTD,04/01/2012,381.45
Bath & North East Somerset Council,80055054,LM3,Residential Care,P03,Wellbeing,GREENGATES CARE HOME LTD,04/01/2012,404.07
Bath & North East Somerset Council,80055054,LM3,Residential Care,P03,Wellbeing,GREENGATES CARE HOME LTD,04/01/2012,404.07
Bath & North East Somerset Council,80054978,LM3,Residential Care,P03,Wellbeing,MOSTYN LODGE,04/01/2012,413
Bath & North East Somerset Council,80054978,LM3,Residential Care,P03,Wellbeing,MOSTYN LODGE,04/01/2012,413
Bath & North East Somerset Council,80054978,LM3,Residential Care,P03,Wellbeing,MOSTYN LODGE,04/01/2012,413
Bath & North East Somerset Council,80054978,LM3,Residential Care,P03,Wellbeing,MOSTYN LODGE,04/01/2012,413
Bath & North East Somerset Council,80054978,LM3,Residential Care,P03,Wellbeing,MOSTYN LODGE,04/01/2012,413
Bath & North East Somerset Council,80054978,LM3,Residential Care,P03,Wellbeing,MOSTYN LODGE,04/01/2012,413
Bath & North East Somerset Council,80054978,LM3,Residential Care,P03,Wellbeing,MOSTYN LODGE,04/01/2012,413
Bath & North East Somerset Council,80054978,LM3,Residential Care,P03,Wellbeing,MOSTYN LODGE,04/01/2012,413
Bath & North East Somerset Council,80055023,LM3,Residential Care,P03,Wellbeing,BRIDGE CARE LTD,04/01/2012,413
Bath & North East Somerset Council,80055023,LM3,Residential Care,P03,Wellbeing,BRIDGE CARE LTD,04/01/2012,413
Bath & North East Somerset Council,80055023,LM3,Residential Care,P03,Wellbeing,BRIDGE CARE LTD,04/01/2012,413
Bath & North East Somerset Council,80055023,LM3,Residential Care,P03,Wellbeing,BRIDGE CARE LTD,04/01/2012,413
Bath & North East Somerset Council,80055056,LM3,Residential Care,P03,Wellbeing,BEECHCROFT,04/01/2012,413
Bath & North East Somerset Council,80055056,LM3,Residential Care,P03,Wellbeing,BEECHCROFT,04/01/2012,413
Bath & North East Somerset Council,80055056,LM3,Residential Care,P03,Wellbeing,BEECHCROFT,04/01/2012,413
Bath & North East Somerset Council,80055056,LM3,Residential Care,P03,Wellbeing,BEECHCROFT,04/01/2012,413
Bath & North East Somerset Council,80055056,LM3,Residential Care,P03,Wellbeing,BEECHCROFT,04/01/2012,413
Bath & North East Somerset Council,80055056,LM3,Residential Care,P03,Wellbeing,BEECHCROFT,04/01/2012,413
Bath & North East Somerset Council,80055067,LM3,Residential Care,P03,Wellbeing,REDACTED,04/01/2012,413
Bath & North East Somerset Council,80055067,LM3,Residential Care,P03,Wellbeing,REDACTED,04/01/2012,413
Bath & North East Somerset Council,80055067,LM3,Residential Care,P03,Wellbeing,REDACTED,04/01/2012,413
Bath & North East Somerset Council,80055067,LM3,Residential Care,P03,Wellbeing,REDACTED,04/01/2012,413
Bath & North East Somerset Council,80055067,LM3,Residential Care,P03,Wellbeing,REDACTED,04/01/2012,413
Bath & North East Somerset Council,80055067,LM3,Residential Care,P03,Wellbeing,REDACTED,04/01/2012,413
Bath & North East Somerset Council,80055137,LM3,Residential Care,P03,Wellbeing,WHITEHAVEN RESIDENTIAL HOME,04/01/2012,413
Bath & North East Somerset Council,80055137,LM3,Residential Care,P03,Wellbeing,WHITEHAVEN RESIDENTIAL HOME,04/01/2012,413
Bath & North East Somerset Council,80055137,LM3,Residential Care,P03,Wellbeing,WHITEHAVEN RESIDENTIAL HOME,04/01/2012,413
Bath & North East Somerset Council,80055137,LM3,Residential Care,P03,Wellbeing,WHITEHAVEN RESIDENTIAL HOME,04/01/2012,413
Bath & North East Somerset Council,80055137,LM3,Residential Care,P03,Wellbeing,WHITEHAVEN RESIDENTIAL HOME,04/01/2012,413
Bath & North East Somerset Council,80055137,LM3,Residential Care,P03,Wellbeing,WHITEHAVEN RESIDENTIAL HOME,04/01/2012,413
Bath & North East Somerset Council,80055137,LM3,Residential Care,P03,Wellbeing,WHITEHAVEN RESIDENTIAL HOME,04/01/2012,413
Bath & North East Somerset Council,80055137,LM3,Residential Care,P03,Wellbeing,WHITEHAVEN RESIDENTIAL HOME,04/01/2012,413
Bath & North East Somerset Council,80055137,LM3,Residential Care,P03,Wellbeing,WHITEHAVEN RESIDENTIAL HOME,04/01/2012,413
Bath & North East Somerset Council,80055137,LM3,Residential Care,P03,Wellbeing,WHITEHAVEN RESIDENTIAL HOME,04/01/2012,413
Bath & North East Somerset Council,80055137,LM3,Residential Care,P03,Wellbeing,WHITEHAVEN RESIDENTIAL HOME,04/01/2012,413
Bath & North East Somerset Council,80055137,LM3,Residential Care,P03,Wellbeing,WHITEHAVEN RESIDENTIAL HOME,04/01/2012,413
Bath & North East Somerset Council,80055139,LM3,Residential Care,P03,Wellbeing,WARMLEY HOUSE,04/01/2012,413
Bath & North East Somerset Council,80055139,LM3,Residential Care,P03,Wellbeing,WARMLEY HOUSE,04/01/2012,413
Bath & North East Somerset Council,80055142,LM3,Residential Care,P03,Wellbeing,BARCHESTER HEALTHCARE HOMES LTD,04/01/2012,413
Bath & North East Somerset Council,80055142,LM3,Residential Care,P03,Wellbeing,BARCHESTER HEALTHCARE HOMES LTD,04/01/2012,413
Bath & North East Somerset Council,80055142,LM3,Residential Care,P03,Wellbeing,BARCHESTER HEALTHCARE HOMES LTD,04/01/2012,413
Bath & North East Somerset Council,80055142,LM3,Residential Care,P03,Wellbeing,BARCHESTER HEALTHCARE HOMES LTD,04/01/2012,413
Bath & North East Somerset Council,80055142,LM3,Residential Care,P03,Wellbeing,BARCHESTER HEALTHCARE HOMES LTD,04/01/2012,413
Bath & North East Somerset Council,80055142,LM3,Residential Care,P03,Wellbeing,BARCHESTER HEALTHCARE HOMES LTD,04/01/2012,413
Bath & North East Somerset Council,80055146,LM3,Residential Care,P03,Wellbeing,HEATHER HOUSE,04/01/2012,413
Bath & North East Somerset Council,80055146,LM3,Residential Care,P03,Wellbeing,HEATHER HOUSE,04/01/2012,413
Bath & North East Somerset Council,80055146,LM3,Residential Care,P03,Wellbeing,HEATHER HOUSE,04/01/2012,413
Bath & North East Somerset Council,80055146,LM3,Residential Care,P03,Wellbeing,HEATHER HOUSE,04/01/2012,413
Bath & North East Somerset Council,80055149,LM3,Residential Care,P03,Wellbeing,EUROPEAN CARE (UK) LTD - REDACTED,04/01/2012,413
Bath & North East Somerset Council,80055149,LM3,Residential Care,P03,Wellbeing,EUROPEAN CARE (UK) LTD - REDACTED,04/01/2012,413
Bath & North East Somerset Council,80055149,LM3,Residential Care,P03,Wellbeing,EUROPEAN CARE (UK) LTD - REDACTED,04/01/2012,413
Bath & North East Somerset Council,80055149,LM3,Residential Care,P03,Wellbeing,EUROPEAN CARE (UK) LTD - REDACTED,04/01/2012,413
Bath & North East Somerset Council,80055149,LM3,Residential Care,P03,Wellbeing,EUROPEAN CARE (UK) LTD - REDACTED,04/01/2012,413
Bath & North East Somerset Council,80055149,LM3,Residential Care,P03,Wellbeing,EUROPEAN CARE (UK) LTD - REDACTED,04/01/2012,413
Bath & North East Somerset Council,80055149,LM3,Residential Care,P03,Wellbeing,EUROPEAN CARE (UK) LTD - REDACTED,04/01/2012,413
Bath & North East Somerset Council,80055149,LM3,Residential Care,P03,Wellbeing,EUROPEAN CARE (UK) LTD - REDACTED,04/01/2012,413
Bath & North East Somerset Council,80055149,LM3,Residential Care,P03,Wellbeing,EUROPEAN CARE (UK) LTD - REDACTED,04/01/2012,413
Bath & North East Somerset Council,80055149,LM3,Residential Care,P03,Wellbeing,EUROPEAN CARE (UK) LTD - REDACTED,04/01/2012,413
Bath & North East Somerset Council,80055149,LM3,Residential Care,P03,Wellbeing,EUROPEAN CARE (UK) LTD - REDACTED,04/01/2012,413
Bath & North East Somerset Council,80055149,LM3,Residential Care,P03,Wellbeing,EUROPEAN CARE (UK) LTD - REDACTED,04/01/2012,413
Bath & North East Somerset Council,80055149,LM3,Residential Care,P03,Wellbeing,EUROPEAN CARE (UK) LTD - REDACTED,04/01/2012,413
Bath & North East Somerset Council,80055149,LM3,Residential Care,P03,Wellbeing,EUROPEAN CARE (UK) LTD - REDACTED,04/01/2012,413
Bath & North East Somerset Council,80055149,LM3,Residential Care,P03,Wellbeing,EUROPEAN CARE (UK) LTD - REDACTED,04/01/2012,413
Bath & North East Somerset Council,80055149,LM3,Residential Care,P03,Wellbeing,EUROPEAN CARE (UK) LTD - REDACTED,04/01/2012,413
Bath & North East Somerset Council,80055149,LM3,Residential Care,P03,Wellbeing,EUROPEAN CARE (UK) LTD - REDACTED,04/01/2012,413
Bath & North East Somerset Council,80055149,LM3,Residential Care,P03,Wellbeing,EUROPEAN CARE (UK) LTD - REDACTED,04/01/2012,413
Bath & North East Somerset Council,80055149,LM3,Residential Care,P03,Wellbeing,EUROPEAN CARE (UK) LTD - REDACTED,04/01/2012,413
Bath & North East Somerset Council,80055149,LM3,Residential Care,P03,Wellbeing,EUROPEAN CARE (UK) LTD - REDACTED,04/01/2012,413
Bath & North East Somerset Council,80055149,LM3,Residential Care,P03,Wellbeing,EUROPEAN CARE (UK) LTD - REDACTED,04/01/2012,413
Bath & North East Somerset Council,80055149,LM3,Residential Care,P03,Wellbeing,EUROPEAN CARE (UK) LTD - REDACTED,04/01/2012,413
Bath & North East Somerset Council,80055149,LM3,Residential Care,P03,Wellbeing,EUROPEAN CARE (UK) LTD - REDACTED,04/01/2012,413
Bath & North East Somerset Council,80055149,LM3,Residential Care,P03,Wellbeing,EUROPEAN CARE (UK) LTD - REDACTED,04/01/2012,413
Bath & North East Somerset Council,80055149,LM3,Residential Care,P03,Wellbeing,EUROPEAN CARE (UK) LTD - REDACTED,04/01/2012,413
Bath & North East Somerset Council,80055149,LM3,Residential Care,P03,Wellbeing,EUROPEAN CARE (UK) LTD - REDACTED,04/01/2012,413
Bath & North East Somerset Council,80055149,LM3,Residential Care,P03,Wellbeing,EUROPEAN CARE (UK) LTD - REDACTED,04/01/2012,413
Bath & North East Somerset Council,80055149,LM3,Residential Care,P03,Wellbeing,EUROPEAN CARE (UK) LTD - REDACTED,04/01/2012,413
Bath & North East Somerset Council,80055149,LM3,Residential Care,P03,Wellbeing,EUROPEAN CARE (UK) LTD - REDACTED,04/01/2012,413
Bath & North East Somerset Council,80055149,LM3,Residential Care,P03,Wellbeing,EUROPEAN CARE (UK) LTD - REDACTED,04/01/2012,413
Bath & North East Somerset Council,80055149,LM3,Residential Care,P03,Wellbeing,EUROPEAN CARE (UK) LTD - REDACTED,04/01/2012,413
Bath & North East Somerset Council,80055149,LM3,Residential Care,P03,Wellbeing,EUROPEAN CARE (UK) LTD - REDACTED,04/01/2012,413
Bath & North East Somerset Council,80055149,LM3,Residential Care,P03,Wellbeing,EUROPEAN CARE (UK) LTD - REDACTED,04/01/2012,413
Bath & North East Somerset Council,80055149,LM3,Residential Care,P03,Wellbeing,EUROPEAN CARE (UK) LTD - REDACTED,04/01/2012,413
Bath & North East Somerset Council,80055149,LM3,Residential Care,P03,Wellbeing,EUROPEAN CARE (UK) LTD - REDACTED,04/01/2012,413
Bath & North East Somerset Council,80055149,LM3,Residential Care,P03,Wellbeing,EUROPEAN CARE (UK) LTD - REDACTED,04/01/2012,413
Bath & North East Somerset Council,80055152,LM3,Residential Care,P03,Wellbeing,MIMOSA HEALTHCARE,04/01/2012,413
Bath & North East Somerset Council,80055152,LM3,Residential Care,P03,Wellbeing,MIMOSA HEALTHCARE,04/01/2012,413
Bath & North East Somerset Council,80055152,LM3,Residential Care,P03,Wellbeing,MIMOSA HEALTHCARE,04/01/2012,413
Bath & North East Somerset Council,80055152,LM3,Residential Care,P03,Wellbeing,MIMOSA HEALTHCARE,04/01/2012,413
Bath & North East Somerset Council,80055152,LM3,Residential Care,P03,Wellbeing,MIMOSA HEALTHCARE,04/01/2012,413
Bath & North East Somerset Council,80055152,LM3,Residential Care,P03,Wellbeing,MIMOSA HEALTHCARE,04/01/2012,413
Bath & North East Somerset Council,80055152,LM3,Residential Care,P03,Wellbeing,MIMOSA HEALTHCARE,04/01/2012,413
Bath & North East Somerset Council,80055152,LM3,Residential Care,P03,Wellbeing,MIMOSA HEALTHCARE,04/01/2012,413
Bath & North East Somerset Council,80055163,LM3,Residential Care,P03,Wellbeing,BCVS HOMES,04/01/2012,413
Bath & North East Somerset Council,80055163,LM3,Residential Care,P03,Wellbeing,BCVS HOMES,04/01/2012,413
Bath & North East Somerset Council,80055163,LM3,Residential Care,P03,Wellbeing,BCVS HOMES,04/01/2012,413
Bath & North East Somerset Council,80055163,LM3,Residential Care,P03,Wellbeing,BCVS HOMES,04/01/2012,413
Bath & North East Somerset Council,80055164,LM3,Residential Care,P03,Wellbeing,BCVS HOMES,04/01/2012,413
Bath & North East Somerset Council,80055164,LM3,Residential Care,P03,Wellbeing,BCVS HOMES,04/01/2012,413
Bath & North East Somerset Council,80055164,LM3,Residential Care,P03,Wellbeing,BCVS HOMES,04/01/2012,413
Bath & North East Somerset Council,80055164,LM3,Residential Care,P03,Wellbeing,BCVS HOMES,04/01/2012,413
Bath & North East Somerset Council,80055164,LM3,Residential Care,P03,Wellbeing,BCVS HOMES,04/01/2012,413
Bath & North East Somerset Council,80055164,LM3,Residential Care,P03,Wellbeing,BCVS HOMES,04/01/2012,413
Bath & North East Somerset Council,80055164,LM3,Residential Care,P03,Wellbeing,BCVS HOMES,04/01/2012,413
Bath & North East Somerset Council,80055164,LM3,Residential Care,P03,Wellbeing,BCVS HOMES,04/01/2012,413
Bath & North East Somerset Council,80055170,LM3,Residential Care,P03,Wellbeing,ANCHOR TRUST,04/01/2012,413
Bath & North East Somerset Council,80055170,LM3,Residential Care,P03,Wellbeing,ANCHOR TRUST,04/01/2012,413
Bath & North East Somerset Council,80055170,LM3,Residential Care,P03,Wellbeing,ANCHOR TRUST,04/01/2012,413
Bath & North East Somerset Council,80055170,LM3,Residential Care,P03,Wellbeing,ANCHOR TRUST,04/01/2012,413
Bath & North East Somerset Council,80055170,LM3,Residential Care,P03,Wellbeing,ANCHOR TRUST,04/01/2012,413
Bath & North East Somerset Council,80055170,LM3,Residential Care,P03,Wellbeing,ANCHOR TRUST,04/01/2012,413
Bath & North East Somerset Council,80055170,LM3,Residential Care,P03,Wellbeing,ANCHOR TRUST,04/01/2012,413
Bath & North East Somerset Council,80055170,LM3,Residential Care,P03,Wellbeing,ANCHOR TRUST,04/01/2012,413
Bath & North East Somerset Council,80055179,LM3,Residential Care,P03,Wellbeing,METHODIST HOMES FOR THE AGED,04/01/2012,413
Bath & North East Somerset Council,80055179,LM3,Residential Care,P03,Wellbeing,METHODIST HOMES FOR THE AGED,04/01/2012,413
Bath & North East Somerset Council,80055179,LM3,Residential Care,P03,Wellbeing,METHODIST HOMES FOR THE AGED,04/01/2012,413
Bath & North East Somerset Council,80055179,LM3,Residential Care,P03,Wellbeing,METHODIST HOMES FOR THE AGED,04/01/2012,413
Bath & North East Somerset Council,80055179,LM3,Residential Care,P03,Wellbeing,METHODIST HOMES FOR THE AGED,04/01/2012,413
Bath & North East Somerset Council,80055179,LM3,Residential Care,P03,Wellbeing,METHODIST HOMES FOR THE AGED,04/01/2012,413
Bath & North East Somerset Council,80055179,LM3,Residential Care,P03,Wellbeing,METHODIST HOMES FOR THE AGED,04/01/2012,413
Bath & North East Somerset Council,80055179,LM3,Residential Care,P03,Wellbeing,METHODIST HOMES FOR THE AGED,04/01/2012,413
Bath & North East Somerset Council,80055179,LM3,Residential Care,P03,Wellbeing,METHODIST HOMES FOR THE AGED,04/01/2012,413
Bath & North East Somerset Council,80055179,LM3,Residential Care,P03,Wellbeing,METHODIST HOMES FOR THE AGED,04/01/2012,413
Bath & North East Somerset Council,80055179,LM3,Residential Care,P03,Wellbeing,METHODIST HOMES FOR THE AGED,04/01/2012,413
Bath & North East Somerset Council,80055179,LM3,Residential Care,P03,Wellbeing,METHODIST HOMES FOR THE AGED,04/01/2012,413
Bath & North East Somerset Council,80055179,LM3,Residential Care,P03,Wellbeing,METHODIST HOMES FOR THE AGED,04/01/2012,413
Bath & North East Somerset Council,80055179,LM3,Residential Care,P03,Wellbeing,METHODIST HOMES FOR THE AGED,04/01/2012,413
Bath & North East Somerset Council,80055179,LM3,Residential Care,P03,Wellbeing,METHODIST HOMES FOR THE AGED,04/01/2012,413
Bath & North East Somerset Council,80055179,LM3,Residential Care,P03,Wellbeing,METHODIST HOMES FOR THE AGED,04/01/2012,413
Bath & North East Somerset Council,80055179,LM3,Residential Care,P03,Wellbeing,METHODIST HOMES FOR THE AGED,04/01/2012,413
Bath & North East Somerset Council,80055179,LM3,Residential Care,P03,Wellbeing,METHODIST HOMES FOR THE AGED,04/01/2012,413
Bath & North East Somerset Council,80055179,LM3,Residential Care,P03,Wellbeing,METHODIST HOMES FOR THE AGED,04/01/2012,413
Bath & North East Somerset Council,80055179,LM3,Residential Care,P03,Wellbeing,METHODIST HOMES FOR THE AGED,04/01/2012,413
Bath & North East Somerset Council,80055179,LM3,Residential Care,P03,Wellbeing,METHODIST HOMES FOR THE AGED,04/01/2012,413
Bath & North East Somerset Council,80055179,LM3,Residential Care,P03,Wellbeing,METHODIST HOMES FOR THE AGED,04/01/2012,413
Bath & North East Somerset Council,80055183,LM3,Residential Care,P03,Wellbeing,CARE FIRST CARE HOMES LTD,04/01/2012,413
Bath & North East Somerset Council,80055183,LM3,Residential Care,P03,Wellbeing,CARE FIRST CARE HOMES LTD,04/01/2012,413
Bath & North East Somerset Council,80055024,LM3,Residential Care,P03,Wellbeing,SALVATION ARMY,04/01/2012,413
Bath & North East Somerset Council,80055024,LM3,Residential Care,P03,Wellbeing,SALVATION ARMY,04/01/2012,413
Bath & North East Somerset Council,80055024,LM3,Residential Care,P03,Wellbeing,SALVATION ARMY,04/01/2012,413
Bath & North East Somerset Council,80055024,LM3,Residential Care,P03,Wellbeing,SALVATION ARMY,04/01/2012,413
Bath & North East Somerset Council,80055024,LM3,Residential Care,P03,Wellbeing,SALVATION ARMY,04/01/2012,413
Bath & North East Somerset Council,80055024,LM3,Residential Care,P03,Wellbeing,SALVATION ARMY,04/01/2012,413
Bath & North East Somerset Council,80055024,LM3,Residential Care,P03,Wellbeing,SALVATION ARMY,04/01/2012,413
Bath & North East Somerset Council,80055024,LM3,Residential Care,P03,Wellbeing,SALVATION ARMY,04/01/2012,413
Bath & North East Somerset Council,80055024,LM3,Residential Care,P03,Wellbeing,SALVATION ARMY,04/01/2012,413
Bath & North East Somerset Council,80055024,LM3,Residential Care,P03,Wellbeing,SALVATION ARMY,04/01/2012,413
Bath & North East Somerset Council,80055024,LM3,Residential Care,P03,Wellbeing,SALVATION ARMY,04/01/2012,413
Bath & North East Somerset Council,80055024,LM3,Residential Care,P03,Wellbeing,SALVATION ARMY,04/01/2012,413
Bath & North East Somerset Council,80055024,LM3,Residential Care,P03,Wellbeing,SALVATION ARMY,04/01/2012,413
Bath & North East Somerset Council,80055024,LM3,Residential Care,P03,Wellbeing,SALVATION ARMY,04/01/2012,413
Bath & North East Somerset Council,80055024,LM3,Residential Care,P03,Wellbeing,SALVATION ARMY,04/01/2012,413
Bath & North East Somerset Council,80055024,LM3,Residential Care,P03,Wellbeing,SALVATION ARMY,04/01/2012,413
Bath & North East Somerset Council,80055024,LM3,Residential Care,P03,Wellbeing,SALVATION ARMY,04/01/2012,413
Bath & North East Somerset Council,80055024,LM3,Residential Care,P03,Wellbeing,SALVATION ARMY,04/01/2012,413
Bath & North East Somerset Council,80055024,LM3,Residential Care,P03,Wellbeing,SALVATION ARMY,04/01/2012,413
Bath & North East Somerset Council,80055024,LM3,Residential Care,P03,Wellbeing,SALVATION ARMY,04/01/2012,413
Bath & North East Somerset Council,80055024,LM3,Residential Care,P03,Wellbeing,SALVATION ARMY,04/01/2012,413
Bath & North East Somerset Council,80055024,LM3,Residential Care,P03,Wellbeing,SALVATION ARMY,04/01/2012,413
Bath & North East Somerset Council,80055036,LM3,Residential Care,P03,Wellbeing,ARTI SERVICES LTD T/A THE MANOR FARM HOUSE,04/01/2012,413
Bath & North East Somerset Council,80055036,LM3,Residential Care,P03,Wellbeing,ARTI SERVICES LTD T/A THE MANOR FARM HOUSE,04/01/2012,413
Bath & North East Somerset Council,80055036,LM3,Residential Care,P03,Wellbeing,ARTI SERVICES LTD T/A THE MANOR FARM HOUSE,04/01/2012,413
Bath & North East Somerset Council,80055036,LM3,Residential Care,P03,Wellbeing,ARTI SERVICES LTD T/A THE MANOR FARM HOUSE,04/01/2012,413
Bath & North East Somerset Council,80055036,LM3,Residential Care,P03,Wellbeing,ARTI SERVICES LTD T/A THE MANOR FARM HOUSE,04/01/2012,413
Bath & North East Somerset Council,80055036,LM3,Residential Care,P03,Wellbeing,ARTI SERVICES LTD T/A THE MANOR FARM HOUSE,04/01/2012,413
Bath & North East Somerset Council,80055036,LM3,Residential Care,P03,Wellbeing,ARTI SERVICES LTD T/A THE MANOR FARM HOUSE,04/01/2012,413
Bath & North East Somerset Council,80055036,LM3,Residential Care,P03,Wellbeing,ARTI SERVICES LTD T/A THE MANOR FARM HOUSE,04/01/2012,413
Bath & North East Somerset Council,80055036,LM3,Residential Care,P03,Wellbeing,ARTI SERVICES LTD T/A THE MANOR FARM HOUSE,04/01/2012,413
Bath & North East Somerset Council,80055036,LM3,Residential Care,P03,Wellbeing,ARTI SERVICES LTD T/A THE MANOR FARM HOUSE,04/01/2012,413
Bath & North East Somerset Council,80055036,LM3,Residential Care,P03,Wellbeing,ARTI SERVICES LTD T/A THE MANOR FARM HOUSE,04/01/2012,413
Bath & North East Somerset Council,80055042,LM3,Residential Care,P03,Wellbeing,QUALITY CARE HOMES LTD,04/01/2012,413
Bath & North East Somerset Council,80055042,LM3,Residential Care,P03,Wellbeing,QUALITY CARE HOMES LTD,04/01/2012,413
Bath & North East Somerset Council,80055043,LM3,Residential Care,P03,Wellbeing,WYVERN LODGE CARE HOME,04/01/2012,413
Bath & North East Somerset Council,80055043,LM3,Residential Care,P03,Wellbeing,WYVERN LODGE CARE HOME,04/01/2012,413
Bath & North East Somerset Council,80055048,LM3,Residential Care,P03,Wellbeing,ST BATHENS,04/01/2012,413
Bath & North East Somerset Council,80055048,LM3,Residential Care,P03,Wellbeing,ST BATHENS,04/01/2012,413
Bath & North East Somerset Council,80055048,LM3,Residential Care,P03,Wellbeing,ST BATHENS,04/01/2012,413
Bath & North East Somerset Council,80055048,LM3,Residential Care,P03,Wellbeing,ST BATHENS,04/01/2012,413
Bath & North East Somerset Council,80055048,LM3,Residential Care,P03,Wellbeing,ST BATHENS,04/01/2012,413
Bath & North East Somerset Council,80055048,LM3,Residential Care,P03,Wellbeing,ST BATHENS,04/01/2012,413
Bath & North East Somerset Council,80055048,LM3,Residential Care,P03,Wellbeing,ST BATHENS,04/01/2012,413
Bath & North East Somerset Council,80055048,LM3,Residential Care,P03,Wellbeing,ST BATHENS,04/01/2012,413
Bath & North East Somerset Council,80055053,LM3,Residential Care,P03,Wellbeing,GROVE CARE LTD T/A ORIEL LODGE,04/01/2012,413
Bath & North East Somerset Council,80055053,LM3,Residential Care,P03,Wellbeing,GROVE CARE LTD T/A ORIEL LODGE,04/01/2012,413
Bath & North East Somerset Council,80055068,LM3,Residential Care,P03,Wellbeing,FSHC NEWCO 2 LTD: REDACTED,04/01/2012,413
Bath & North East Somerset Council,80055068,LM3,Residential Care,P03,Wellbeing,FSHC NEWCO 2 LTD: REDACTED,04/01/2012,413
Bath & North East Somerset Council,80055068,LM3,Residential Care,P03,Wellbeing,FSHC NEWCO 2 LTD: REDACTED,04/01/2012,413
Bath & North East Somerset Council,80055068,LM3,Residential Care,P03,Wellbeing,FSHC NEWCO 2 LTD: REDACTED,04/01/2012,413
Bath & North East Somerset Council,80055068,LM3,Residential Care,P03,Wellbeing,FSHC NEWCO 2 LTD: REDACTED,04/01/2012,413
Bath & North East Somerset Council,80055068,LM3,Residential Care,P03,Wellbeing,FSHC NEWCO 2 LTD: REDACTED,04/01/2012,413
Bath & North East Somerset Council,80055068,LM3,Residential Care,P03,Wellbeing,FSHC NEWCO 2 LTD: REDACTED,04/01/2012,413
Bath & North East Somerset Council,80055068,LM3,Residential Care,P03,Wellbeing,FSHC NEWCO 2 LTD: REDACTED,04/01/2012,413
Bath & North East Somerset Council,80055068,LM3,Residential Care,P03,Wellbeing,FSHC NEWCO 2 LTD: REDACTED,04/01/2012,413
Bath & North East Somerset Council,80055068,LM3,Residential Care,P03,Wellbeing,FSHC NEWCO 2 LTD: REDACTED,04/01/2012,413
Bath & North East Somerset Council,80055068,LM3,Residential Care,P03,Wellbeing,FSHC NEWCO 2 LTD: REDACTED,04/01/2012,413
Bath & North East Somerset Council,80055068,LM3,Residential Care,P03,Wellbeing,FSHC NEWCO 2 LTD: REDACTED,04/01/2012,413
Bath & North East Somerset Council,80055068,LM3,Residential Care,P03,Wellbeing,FSHC NEWCO 2 LTD: REDACTED,04/01/2012,413
Bath & North East Somerset Council,80055068,LM3,Residential Care,P03,Wellbeing,FSHC NEWCO 2 LTD: REDACTED,04/01/2012,413
Bath & North East Somerset Council,80055068,LM3,Residential Care,P03,Wellbeing,FSHC NEWCO 2 LTD: REDACTED,04/01/2012,413
Bath & North East Somerset Council,80055068,LM3,Residential Care,P03,Wellbeing,FSHC NEWCO 2 LTD: REDACTED,04/01/2012,413
Bath & North East Somerset Council,80055068,LM3,Residential Care,P03,Wellbeing,FSHC NEWCO 2 LTD: REDACTED,04/01/2012,413
Bath & North East Somerset Council,80055068,LM3,Residential Care,P03,Wellbeing,FSHC NEWCO 2 LTD: REDACTED,04/01/2012,413
Bath & North East Somerset Council,80055068,LM3,Residential Care,P03,Wellbeing,FSHC NEWCO 2 LTD: REDACTED,04/01/2012,413
Bath & North East Somerset Council,80055068,LM3,Residential Care,P03,Wellbeing,FSHC NEWCO 2 LTD: REDACTED,04/01/2012,413
Bath & North East Somerset Council,80055068,LM3,Residential Care,P03,Wellbeing,FSHC NEWCO 2 LTD: REDACTED,04/01/2012,413
Bath & North East Somerset Council,80055068,LM3,Residential Care,P03,Wellbeing,FSHC NEWCO 2 LTD: REDACTED,04/01/2012,413
Bath & North East Somerset Council,80055068,LM3,Residential Care,P03,Wellbeing,FSHC NEWCO 2 LTD: REDACTED,04/01/2012,413
Bath & North East Somerset Council,80055068,LM3,Residential Care,P03,Wellbeing,FSHC NEWCO 2 LTD: REDACTED,04/01/2012,413
Bath & North East Somerset Council,80055068,LM3,Residential Care,P03,Wellbeing,FSHC NEWCO 2 LTD: REDACTED,04/01/2012,413
Bath & North East Somerset Council,80055068,LM3,Residential Care,P03,Wellbeing,FSHC NEWCO 2 LTD: REDACTED,04/01/2012,413
Bath & North East Somerset Council,80055068,LM3,Residential Care,P03,Wellbeing,FSHC NEWCO 2 LTD: REDACTED,04/01/2012,413
Bath & North East Somerset Council,80055069,LM3,Residential Care,P03,Wellbeing,CLEEVE LODGE CARE LTD,04/01/2012,413
Bath & North East Somerset Council,80055069,LM3,Residential Care,P03,Wellbeing,CLEEVE LODGE CARE LTD,04/01/2012,413
Bath & North East Somerset Council,80055081,LM3,Residential Care,P03,Wellbeing,BROUGHTON LODGE CARE HOME,04/01/2012,413
Bath & North East Somerset Council,80055081,LM3,Residential Care,P03,Wellbeing,BROUGHTON LODGE CARE HOME,04/01/2012,413
Bath & North East Somerset Council,80055085,LM3,Residential Care,P03,Wellbeing,PENHILL RESIDENTIAL HOME LTD,04/01/2012,413
Bath & North East Somerset Council,80055085,LM3,Residential Care,P03,Wellbeing,PENHILL RESIDENTIAL HOME LTD,04/01/2012,413
Bath & North East Somerset Council,80055095,LM3,Residential Care,P03,Wellbeing,FARRINGTON CARE HOMES LTD,04/01/2012,413
Bath & North East Somerset Council,80055095,LM3,Residential Care,P03,Wellbeing,FARRINGTON CARE HOMES LTD,04/01/2012,413
Bath & North East Somerset Council,80055108,LM3,Residential Care,P03,Wellbeing,NEWBRIDGE TOWERS RESIDENTIAL CARE HOME,04/01/2012,413
Bath & North East Somerset Council,80055108,LM3,Residential Care,P03,Wellbeing,NEWBRIDGE TOWERS RESIDENTIAL CARE HOME,04/01/2012,413
Bath & North East Somerset Council,80055108,LM3,Residential Care,P03,Wellbeing,NEWBRIDGE TOWERS RESIDENTIAL CARE HOME,04/01/2012,413
Bath & North East Somerset Council,80055108,LM3,Residential Care,P03,Wellbeing,NEWBRIDGE TOWERS RESIDENTIAL CARE HOME,04/01/2012,413
Bath & North East Somerset Council,80055108,LM3,Residential Care,P03,Wellbeing,NEWBRIDGE TOWERS RESIDENTIAL CARE HOME,04/01/2012,413
Bath & North East Somerset Council,80055108,LM3,Residential Care,P03,Wellbeing,NEWBRIDGE TOWERS RESIDENTIAL CARE HOME,04/01/2012,413
Bath & North East Somerset Council,80055108,LM3,Residential Care,P03,Wellbeing,NEWBRIDGE TOWERS RESIDENTIAL CARE HOME,04/01/2012,413
Bath & North East Somerset Council,80055108,LM3,Residential Care,P03,Wellbeing,NEWBRIDGE TOWERS RESIDENTIAL CARE HOME,04/01/2012,413
Bath & North East Somerset Council,80055108,LM3,Residential Care,P03,Wellbeing,NEWBRIDGE TOWERS RESIDENTIAL CARE HOME,04/01/2012,413
Bath & North East Somerset Council,80055108,LM3,Residential Care,P03,Wellbeing,NEWBRIDGE TOWERS RESIDENTIAL CARE HOME,04/01/2012,413
Bath & North East Somerset Council,80055108,LM3,Residential Care,P03,Wellbeing,NEWBRIDGE TOWERS RESIDENTIAL CARE HOME,04/01/2012,413
Bath & North East Somerset Council,80055108,LM3,Residential Care,P03,Wellbeing,NEWBRIDGE TOWERS RESIDENTIAL CARE HOME,04/01/2012,413
Bath & North East Somerset Council,80055108,LM3,Residential Care,P03,Wellbeing,NEWBRIDGE TOWERS RESIDENTIAL CARE HOME,04/01/2012,413
Bath & North East Somerset Council,80055108,LM3,Residential Care,P03,Wellbeing,NEWBRIDGE TOWERS RESIDENTIAL CARE HOME,04/01/2012,413
Bath & North East Somerset Council,80055108,LM3,Residential Care,P03,Wellbeing,NEWBRIDGE TOWERS RESIDENTIAL CARE HOME,04/01/2012,413
Bath & North East Somerset Council,80055108,LM3,Residential Care,P03,Wellbeing,NEWBRIDGE TOWERS RESIDENTIAL CARE HOME,04/01/2012,413
Bath & North East Somerset Council,80055108,LM3,Residential Care,P03,Wellbeing,NEWBRIDGE TOWERS RESIDENTIAL CARE HOME,04/01/2012,413
Bath & North East Somerset Council,80055108,LM3,Residential Care,P03,Wellbeing,NEWBRIDGE TOWERS RESIDENTIAL CARE HOME,04/01/2012,413
Bath & North East Somerset Council,80055108,LM3,Residential Care,P03,Wellbeing,NEWBRIDGE TOWERS RESIDENTIAL CARE HOME,04/01/2012,413
Bath & North East Somerset Council,80055108,LM3,Residential Care,P03,Wellbeing,NEWBRIDGE TOWERS RESIDENTIAL CARE HOME,04/01/2012,413
Bath & North East Somerset Council,80055114,LM3,Residential Care,P03,Wellbeing,AVONPARK VILLAGE (CARE HOMES) LTD,04/01/2012,413
Bath & North East Somerset Council,80055114,LM3,Residential Care,P03,Wellbeing,AVONPARK VILLAGE (CARE HOMES) LTD,04/01/2012,413
Bath & North East Somerset Council,80055117,LM3,Residential Care,P03,Wellbeing,MD JONES & CD WILSON FUTURE CARE LTD,04/01/2012,413
Bath & North East Somerset Council,80055117,LM3,Residential Care,P03,Wellbeing,MD JONES & CD WILSON FUTURE CARE LTD,04/01/2012,413
Bath & North East Somerset Council,80055125,LM3,Residential Care,P03,Wellbeing,KINGFISHER HEALTHCARE LIMITED,04/01/2012,413
Bath & North East Somerset Council,80055125,LM3,Residential Care,P03,Wellbeing,KINGFISHER HEALTHCARE LIMITED,04/01/2012,413
Bath & North East Somerset Council,80055042,LM3,Residential Care,P03,Wellbeing,QUALITY CARE HOMES LTD,04/01/2012,417
Bath & North East Somerset Council,80055042,LM3,Residential Care,P03,Wellbeing,QUALITY CARE HOMES LTD,04/01/2012,417
Bath & North East Somerset Council,10641047,LA1,Equipment Purchase,P03,Wellbeing,ETHITEC,04/01/2012,419.25
Bath & North East Somerset Council,10641047,LA1,Equipment Purchase,P03,Wellbeing,ETHITEC,04/01/2012,419.25
Bath & North East Somerset Council,80054979,LM3,Residential Care,P03,Wellbeing,DIMENSIONS (UK) LTD,04/01/2012,420.23
Bath & North East Somerset Council,80054979,LM3,Residential Care,P03,Wellbeing,DIMENSIONS (UK) LTD,04/01/2012,420.23
Bath & North East Somerset Council,80054979,LM3,Residential Care,P03,Wellbeing,DIMENSIONS (UK) LTD,04/01/2012,420.23
Bath & North East Somerset Council,80054979,LM3,Residential Care,P03,Wellbeing,DIMENSIONS (UK) LTD,04/01/2012,420.23
Bath & North East Somerset Council,80054979,LM3,Residential Care,P03,Wellbeing,DIMENSIONS (UK) LTD,04/01/2012,420.23
Bath & North East Somerset Council,80054979,LM3,Residential Care,P03,Wellbeing,DIMENSIONS (UK) LTD,04/01/2012,420.23
Bath & North East Somerset Council,80054979,LM3,Residential Care,P03,Wellbeing,DIMENSIONS (UK) LTD,04/01/2012,420.23
Bath & North East Somerset Council,80054979,LM3,Residential Care,P03,Wellbeing,DIMENSIONS (UK) LTD,04/01/2012,420.23
Bath & North East Somerset Council,80054979,LM3,Residential Care,P03,Wellbeing,DIMENSIONS (UK) LTD,04/01/2012,420.23
Bath & North East Somerset Council,80054979,LM3,Residential Care,P03,Wellbeing,DIMENSIONS (UK) LTD,04/01/2012,420.23
Bath & North East Somerset Council,80054979,LM3,Residential Care,P03,Wellbeing,DIMENSIONS (UK) LTD,04/01/2012,420.23
Bath & North East Somerset Council,80054979,LM3,Residential Care,P03,Wellbeing,DIMENSIONS (UK) LTD,04/01/2012,420.23
Bath & North East Somerset Council,80054979,LM3,Residential Care,P03,Wellbeing,DIMENSIONS (UK) LTD,04/01/2012,420.23
Bath & North East Somerset Council,80054979,LM3,Residential Care,P03,Wellbeing,DIMENSIONS (UK) LTD,04/01/2012,420.23
Bath & North East Somerset Council,80054979,LM3,Residential Care,P03,Wellbeing,DIMENSIONS (UK) LTD,04/01/2012,420.23
Bath & North East Somerset Council,80054979,LM3,Residential Care,P03,Wellbeing,DIMENSIONS (UK) LTD,04/01/2012,420.23
Bath & North East Somerset Council,80054979,LM3,Residential Care,P03,Wellbeing,DIMENSIONS (UK) LTD,04/01/2012,420.23
Bath & North East Somerset Council,80054979,LM3,Residential Care,P03,Wellbeing,DIMENSIONS (UK) LTD,04/01/2012,420.23
Bath & North East Somerset Council,80054979,LM3,Residential Care,P03,Wellbeing,DIMENSIONS (UK) LTD,04/01/2012,420.23
Bath & North East Somerset Council,80054979,LM3,Residential Care,P03,Wellbeing,DIMENSIONS (UK) LTD,04/01/2012,420.23
Bath & North East Somerset Council,80054979,LM3,Residential Care,P03,Wellbeing,DIMENSIONS (UK) LTD,04/01/2012,420.23
Bath & North East Somerset Council,80054979,LM3,Residential Care,P03,Wellbeing,DIMENSIONS (UK) LTD,04/01/2012,420.23
Bath & North East Somerset Council,80054979,LM3,Residential Care,P03,Wellbeing,DIMENSIONS (UK) LTD,04/01/2012,420.23
Bath & North East Somerset Council,80054979,LM3,Residential Care,P03,Wellbeing,DIMENSIONS (UK) LTD,04/01/2012,420.23
Bath & North East Somerset Council,80055164,LM3,Residential Care,P03,Wellbeing,BCVS HOMES,04/01/2012,423
Bath & North East Somerset Council,80055164,LM3,Residential Care,P03,Wellbeing,BCVS HOMES,04/01/2012,423
Bath & North East Somerset Council,80055048,LM3,Residential Care,P03,Wellbeing,ST BATHENS,04/01/2012,425
Bath & North East Somerset Council,80055048,LM3,Residential Care,P03,Wellbeing,ST BATHENS,04/01/2012,425
Bath & North East Somerset Council,80055070,LL3,Supported Living,P03,Wellbeing,OPTIONS FOR LIVING LTD,04/01/2012,425.52
Bath & North East Somerset Council,80055070,LL3,Supported Living,P03,Wellbeing,OPTIONS FOR LIVING LTD,04/01/2012,425.52
Bath & North East Somerset Council,80055112,LM3,Residential Care,P03,Wellbeing,COUNTY FUND ACCOUNT NO 61551459,04/01/2012,429
Bath & North East Somerset Council,80055112,LM3,Residential Care,P03,Wellbeing,COUNTY FUND ACCOUNT NO 61551459,04/01/2012,429
Bath & North East Somerset Council,10640073,LA5,Materials,P05,Neighbourhoods,YOUNG JOHNSON,04/01/2012,429.6
Bath & North East Somerset Council,80055229,LM2,Foster Carer Allowances,P02,"Early Years, Children & Youth",REDACTED,04/01/2012,436.2
Bath & North East Somerset Council,80055090,LM3,Residential Care,P03,Wellbeing,PCM LAXTON HALL ADMIN FUND,04/01/2012,437.63
Bath & North East Somerset Council,80055090,LM3,Residential Care,P03,Wellbeing,PCM LAXTON HALL ADMIN FUND,04/01/2012,437.63
Bath & North East Somerset Council,80054980,LL3,Supported Living,P03,Wellbeing,DIMENSIONS (UK) LTD,04/01/2012,439.37
Bath & North East Somerset Council,80054980,LL3,Supported Living,P03,Wellbeing,DIMENSIONS (UK) LTD,04/01/2012,439.37
Bath & North East Somerset Council,10641293,LJ1,Consultants Fees,P09,Homes & Planning,WYG ENVIRONMENT PLANNING TRANSPORT LTD,04/01/2012,440
Bath & North East Somerset Council,80055067,LM3,Residential Care,P03,Wellbeing,REDACTED,04/01/2012,440
Bath & North East Somerset Council,80055067,LM3,Residential Care,P03,Wellbeing,REDACTED,04/01/2012,440
Bath & North East Somerset Council,80055164,LM3,Residential Care,P03,Wellbeing,BCVS HOMES,04/01/2012,450
Bath & North East Somerset Council,80055164,LM3,Residential Care,P03,Wellbeing,BCVS HOMES,04/01/2012,450
Bath & North East Somerset Council,80055164,LM3,Residential Care,P03,Wellbeing,BCVS HOMES,04/01/2012,450
Bath & North East Somerset Council,80055164,LM3,Residential Care,P03,Wellbeing,BCVS HOMES,04/01/2012,450
Bath & North East Somerset Council,80055164,LM3,Residential Care,P03,Wellbeing,BCVS HOMES,04/01/2012,451
Bath & North East Somerset Council,80055164,LM3,Residential Care,P03,Wellbeing,BCVS HOMES,04/01/2012,451
Bath & North East Somerset Council,10639868,HA6,Planned Maintenance PCB,P07,Community Resources,WESTERN POWER DISTRIBUTION (SO,04/01/2012,451.35
Bath & North East Somerset Council,80054978,LM3,Residential Care,P03,Wellbeing,MOSTYN LODGE,04/01/2012,452
Bath & North East Somerset Council,80054978,LM3,Residential Care,P03,Wellbeing,MOSTYN LODGE,04/01/2012,452
Bath & North East Somerset Council,80055067,LM3,Residential Care,P03,Wellbeing,REDACTED,04/01/2012,452
Bath & North East Somerset Council,80055067,LM3,Residential Care,P03,Wellbeing,REDACTED,04/01/2012,452
Bath & North East Somerset Council,80055137,LM3,Residential Care,P03,Wellbeing,WHITEHAVEN RESIDENTIAL HOME,04/01/2012,452
Bath & North East Somerset Council,80055137,LM3,Residential Care,P03,Wellbeing,WHITEHAVEN RESIDENTIAL HOME,04/01/2012,452
Bath & North East Somerset Council,80055137,LM3,Residential Care,P03,Wellbeing,WHITEHAVEN RESIDENTIAL HOME,04/01/2012,452
Bath & North East Somerset Council,80055137,LM3,Residential Care,P03,Wellbeing,WHITEHAVEN RESIDENTIAL HOME,04/01/2012,452
Bath & North East Somerset Council,80055137,LM3,Residential Care,P03,Wellbeing,WHITEHAVEN RESIDENTIAL HOME,04/01/2012,452
Bath & North East Somerset Council,80055137,LM3,Residential Care,P03,Wellbeing,WHITEHAVEN RESIDENTIAL HOME,04/01/2012,452
Bath & North East Somerset Council,80055137,LM3,Residential Care,P03,Wellbeing,WHITEHAVEN RESIDENTIAL HOME,04/01/2012,452
Bath & North East Somerset Council,80055137,LM3,Residential Care,P03,Wellbeing,WHITEHAVEN RESIDENTIAL HOME,04/01/2012,452
Bath & North East Somerset Council,80055137,LM3,Residential Care,P03,Wellbeing,WHITEHAVEN RESIDENTIAL HOME,04/01/2012,452
Bath & North East Somerset Council,80055137,LM3,Residential Care,P03,Wellbeing,WHITEHAVEN RESIDENTIAL HOME,04/01/2012,452
Bath & North East Somerset Council,80055137,LM3,Residential Care,P03,Wellbeing,WHITEHAVEN RESIDENTIAL HOME,04/01/2012,452
Bath & North East Somerset Council,80055152,LM3,Residential Care,P03,Wellbeing,MIMOSA HEALTHCARE,04/01/2012,452
Bath & North East Somerset Council,80055152,LM3,Residential Care,P03,Wellbeing,MIMOSA HEALTHCARE,04/01/2012,452
Bath & North East Somerset Council,80055152,LM3,Residential Care,P03,Wellbeing,MIMOSA HEALTHCARE,04/01/2012,452
Bath & North East Somerset Council,80055152,LM3,Residential Care,P03,Wellbeing,MIMOSA HEALTHCARE,04/01/2012,452
Bath & North East Somerset Council,80055164,LM3,Residential Care,P03,Wellbeing,BCVS HOMES,04/01/2012,452
Bath & North East Somerset Council,80055164,LM3,Residential Care,P03,Wellbeing,BCVS HOMES,04/01/2012,452
Bath & North East Somerset Council,80054992,LM3,Residential Care,P03,Wellbeing,ORDERS OF ST JOHN CARE TRUST,04/01/2012,452
Bath & North East Somerset Council,80054992,LM3,Residential Care,P03,Wellbeing,ORDERS OF ST JOHN CARE TRUST,04/01/2012,452
Bath & North East Somerset Council,80055007,LM3,Residential Care,P03,Wellbeing,CEDAR CARE HOMES LTD,04/01/2012,452
Bath & North East Somerset Council,80055007,LM3,Residential Care,P03,Wellbeing,CEDAR CARE HOMES LTD,04/01/2012,452
Bath & North East Somerset Council,80055007,LM3,Residential Care,P03,Wellbeing,CEDAR CARE HOMES LTD,04/01/2012,452
Bath & North East Somerset Council,80055007,LM3,Residential Care,P03,Wellbeing,CEDAR CARE HOMES LTD,04/01/2012,452
Bath & North East Somerset Council,80055007,LM3,Residential Care,P03,Wellbeing,CEDAR CARE HOMES LTD,04/01/2012,452
Bath & North East Somerset Council,80055007,LM3,Residential Care,P03,Wellbeing,CEDAR CARE HOMES LTD,04/01/2012,452
Bath & North East Somerset Council,80055007,LM3,Residential Care,P03,Wellbeing,CEDAR CARE HOMES LTD,04/01/2012,452
Bath & North East Somerset Council,80055007,LM3,Residential Care,P03,Wellbeing,CEDAR CARE HOMES LTD,04/01/2012,452
Bath & North East Somerset Council,80055007,LM3,Residential Care,P03,Wellbeing,CEDAR CARE HOMES LTD,04/01/2012,452
Bath & North East Somerset Council,80055007,LM3,Residential Care,P03,Wellbeing,CEDAR CARE HOMES LTD,04/01/2012,452
Bath & North East Somerset Council,80055007,LM3,Residential Care,P03,Wellbeing,CEDAR CARE HOMES LTD,04/01/2012,452
Bath & North East Somerset Council,80055007,LM3,Residential Care,P03,Wellbeing,CEDAR CARE HOMES LTD,04/01/2012,452
Bath & North East Somerset Council,80055007,LM3,Residential Care,P03,Wellbeing,CEDAR CARE HOMES LTD,04/01/2012,452
Bath & North East Somerset Council,80055024,LM3,Residential Care,P03,Wellbeing,SALVATION ARMY,04/01/2012,452
Bath & North East Somerset Council,80055024,LM3,Residential Care,P03,Wellbeing,SALVATION ARMY,04/01/2012,452
Bath & North East Somerset Council,80055036,LM3,Residential Care,P03,Wellbeing,ARTI SERVICES LTD T/A THE MANOR FARM HOUSE,04/01/2012,452
Bath & North East Somerset Council,80055036,LM3,Residential Care,P03,Wellbeing,ARTI SERVICES LTD T/A THE MANOR FARM HOUSE,04/01/2012,452
Bath & North East Somerset Council,80055036,LM3,Residential Care,P03,Wellbeing,ARTI SERVICES LTD T/A THE MANOR FARM HOUSE,04/01/2012,452
Bath & North East Somerset Council,80055036,LM3,Residential Care,P03,Wellbeing,ARTI SERVICES LTD T/A THE MANOR FARM HOUSE,04/01/2012,452
Bath & North East Somerset Council,80055036,LM3,Residential Care,P03,Wellbeing,ARTI SERVICES LTD T/A THE MANOR FARM HOUSE,04/01/2012,452
Bath & North East Somerset Council,80055036,LM3,Residential Care,P03,Wellbeing,ARTI SERVICES LTD T/A THE MANOR FARM HOUSE,04/01/2012,452
Bath & North East Somerset Council,80055036,LM3,Residential Care,P03,Wellbeing,ARTI SERVICES LTD T/A THE MANOR FARM HOUSE,04/01/2012,452
Bath & North East Somerset Council,80055036,LM3,Residential Care,P03,Wellbeing,ARTI SERVICES LTD T/A THE MANOR FARM HOUSE,04/01/2012,452
Bath & North East Somerset Council,80055042,LM3,Residential Care,P03,Wellbeing,QUALITY CARE HOMES LTD,04/01/2012,452
Bath & North East Somerset Council,80055042,LM3,Residential Care,P03,Wellbeing,QUALITY CARE HOMES LTD,04/01/2012,452
Bath & North East Somerset Council,80055042,LM3,Residential Care,P03,Wellbeing,QUALITY CARE HOMES LTD,04/01/2012,452
Bath & North East Somerset Council,80055042,LM3,Residential Care,P03,Wellbeing,QUALITY CARE HOMES LTD,04/01/2012,452
Bath & North East Somerset Council,80055053,LM3,Residential Care,P03,Wellbeing,GROVE CARE LTD T/A ORIEL LODGE,04/01/2012,452
Bath & North East Somerset Council,80055053,LM3,Residential Care,P03,Wellbeing,GROVE CARE LTD T/A ORIEL LODGE,04/01/2012,452
Bath & North East Somerset Council,80055053,LM3,Residential Care,P03,Wellbeing,GROVE CARE LTD T/A ORIEL LODGE,04/01/2012,452
Bath & North East Somerset Council,80055053,LM3,Residential Care,P03,Wellbeing,GROVE CARE LTD T/A ORIEL LODGE,04/01/2012,452
Bath & North East Somerset Council,80055058,LM3,Residential Care,P03,Wellbeing,NORTHCOTE DEVELOPMENTS LTD T/A ORCHARD HOUSE,04/01/2012,452
Bath & North East Somerset Council,80055058,LM3,Residential Care,P03,Wellbeing,NORTHCOTE DEVELOPMENTS LTD T/A ORCHARD HOUSE,04/01/2012,452
Bath & North East Somerset Council,80055068,LM3,Residential Care,P03,Wellbeing,FSHC NEWCO 2 LTD: REDACTED,04/01/2012,452
Bath & North East Somerset Council,80055068,LM3,Residential Care,P03,Wellbeing,FSHC NEWCO 2 LTD: REDACTED,04/01/2012,452
Bath & North East Somerset Council,80055068,LM3,Residential Care,P03,Wellbeing,FSHC NEWCO 2 LTD: REDACTED,04/01/2012,452
Bath & North East Somerset Council,80055068,LM3,Residential Care,P03,Wellbeing,FSHC NEWCO 2 LTD: REDACTED,04/01/2012,452
Bath & North East Somerset Council,80055068,LM3,Residential Care,P03,Wellbeing,FSHC NEWCO 2 LTD: REDACTED,04/01/2012,452
Bath & North East Somerset Council,80055068,LM3,Residential Care,P03,Wellbeing,FSHC NEWCO 2 LTD: REDACTED,04/01/2012,452
Bath & North East Somerset Council,80055073,LM3,Residential Care,P03,Wellbeing,YOUNG@HEART (THE WILLOWS) CARE HOME LTD,04/01/2012,452
Bath & North East Somerset Council,80055073,LM3,Residential Care,P03,Wellbeing,YOUNG@HEART (THE WILLOWS) CARE HOME LTD,04/01/2012,452
Bath & North East Somerset Council,80055075,LM3,Residential Care,P03,Wellbeing,STONELEIGH RESIDENTIAL CARE HOME LTD,04/01/2012,452
Bath & North East Somerset Council,80055075,LM3,Residential Care,P03,Wellbeing,STONELEIGH RESIDENTIAL CARE HOME LTD,04/01/2012,452
Bath & North East Somerset Council,80055101,LM3,Residential Care,P03,Wellbeing,THE LIMES RESIDENTIAL LTD,04/01/2012,452
Bath & North East Somerset Council,80055101,LM3,Residential Care,P03,Wellbeing,THE LIMES RESIDENTIAL LTD,04/01/2012,452
Bath & North East Somerset Council,80055102,LM3,Residential Care,P03,Wellbeing,SPRINGFIELD BATH LTD,04/01/2012,452
Bath & North East Somerset Council,80055102,LM3,Residential Care,P03,Wellbeing,SPRINGFIELD BATH LTD,04/01/2012,452
Bath & North East Somerset Council,80055102,LM3,Residential Care,P03,Wellbeing,SPRINGFIELD BATH LTD,04/01/2012,452
Bath & North East Somerset Council,80055102,LM3,Residential Care,P03,Wellbeing,SPRINGFIELD BATH LTD,04/01/2012,452
Bath & North East Somerset Council,80055102,LM3,Residential Care,P03,Wellbeing,SPRINGFIELD BATH LTD,04/01/2012,452
Bath & North East Somerset Council,80055102,LM3,Residential Care,P03,Wellbeing,SPRINGFIELD BATH LTD,04/01/2012,452
Bath & North East Somerset Council,80055108,LM3,Residential Care,P03,Wellbeing,NEWBRIDGE TOWERS RESIDENTIAL CARE HOME,04/01/2012,452
Bath & North East Somerset Council,80055108,LM3,Residential Care,P03,Wellbeing,NEWBRIDGE TOWERS RESIDENTIAL CARE HOME,04/01/2012,452
Bath & North East Somerset Council,80055108,LM3,Residential Care,P03,Wellbeing,NEWBRIDGE TOWERS RESIDENTIAL CARE HOME,04/01/2012,452
Bath & North East Somerset Council,80055108,LM3,Residential Care,P03,Wellbeing,NEWBRIDGE TOWERS RESIDENTIAL CARE HOME,04/01/2012,452
Bath & North East Somerset Council,80055124,LM3,Residential Care,P03,Wellbeing,ASSOC OF UKRAINIANS IN GB LTD SYDENHURST,04/01/2012,452
Bath & North East Somerset Council,80055124,LM3,Residential Care,P03,Wellbeing,ASSOC OF UKRAINIANS IN GB LTD SYDENHURST,04/01/2012,452
Bath & North East Somerset Council,80055129,LM3,Residential Care,P03,Wellbeing,ABBEYFIELD SOMERSET SOCIETY,04/01/2012,452
Bath & North East Somerset Council,80055129,LM3,Residential Care,P03,Wellbeing,ABBEYFIELD SOMERSET SOCIETY,04/01/2012,452
Bath & North East Somerset Council,80055130,LM3,Residential Care,P03,Wellbeing,WEST OF ENGLAND FRIENDS HOUSING SOC LTD,04/01/2012,452
Bath & North East Somerset Council,80055130,LM3,Residential Care,P03,Wellbeing,WEST OF ENGLAND FRIENDS HOUSING SOC LTD,04/01/2012,452
Bath & North East Somerset Council,80055213,LM2,Foster Carer Allowances,P02,"Early Years, Children & Youth",REDACTED,04/01/2012,453.48
Bath & North East Somerset Council,80055237,LM2,Foster Carer Allowances,P02,"Early Years, Children & Youth",REDACTED,04/01/2012,453.48
Bath & North East Somerset Council,80055274,LM2,Foster Carer Allowances,P02,"Early Years, Children & Youth",REDACTED,04/01/2012,453.48
Bath & North East Somerset Council,80055137,LM3,Residential Care,P03,Wellbeing,WHITEHAVEN RESIDENTIAL HOME,04/01/2012,456
Bath & North East Somerset Council,80055137,LM3,Residential Care,P03,Wellbeing,WHITEHAVEN RESIDENTIAL HOME,04/01/2012,456
Bath & North East Somerset Council,80055132,LM6,Nursing Care,P03,Wellbeing,FOUR SEASONS EVEDALE LTD WHITCHURCH,04/01/2012,459.43
Bath & North East Somerset Council,80055040,LM3,Residential Care,P03,Wellbeing,ORDERS OF ST JOHN TRUST WILTSHIRE HOMES,04/01/2012,460
Bath & North East Somerset Council,80055040,LM3,Residential Care,P03,Wellbeing,ORDERS OF ST JOHN TRUST WILTSHIRE HOMES,04/01/2012,460
Bath & North East Somerset Council,80055070,LL3,Supported Living,P03,Wellbeing,OPTIONS FOR LIVING LTD,04/01/2012,467.78
Bath & North East Somerset Council,80055070,LL3,Supported Living,P03,Wellbeing,OPTIONS FOR LIVING LTD,04/01/2012,467.78
Bath & North East Somerset Council,80055105,LM3,Residential Care,P03,Wellbeing,AMBER CARE LTD T/A BRYN EDWIN HALL,04/01/2012,469.73
Bath & North East Somerset Council,80055105,LM3,Residential Care,P03,Wellbeing,AMBER CARE LTD T/A BRYN EDWIN HALL,04/01/2012,469.73
Bath & North East Somerset Council,80055137,LM3,Residential Care,P03,Wellbeing,WHITEHAVEN RESIDENTIAL HOME,04/01/2012,470
Bath & North East Somerset Council,80055137,LM3,Residential Care,P03,Wellbeing,WHITEHAVEN RESIDENTIAL HOME,04/01/2012,470
Bath & North East Somerset Council,80055164,LM3,Residential Care,P03,Wellbeing,BCVS HOMES,04/01/2012,473
Bath & North East Somerset Council,80055164,LM3,Residential Care,P03,Wellbeing,BCVS HOMES,04/01/2012,473
Bath & North East Somerset Council,80055024,LM3,Residential Care,P03,Wellbeing,SALVATION ARMY,04/01/2012,473
Bath & North East Somerset Council,80055024,LM3,Residential Care,P03,Wellbeing,SALVATION ARMY,04/01/2012,473
Bath & North East Somerset Council,80054979,LM3,Residential Care,P03,Wellbeing,DIMENSIONS (UK) LTD,04/01/2012,473.01
Bath & North East Somerset Council,80054979,LM3,Residential Care,P03,Wellbeing,DIMENSIONS (UK) LTD,04/01/2012,473.01
Bath & North East Somerset Council,80055091,LM3,Residential Care,P03,Wellbeing,GROVE CARE LTD,04/01/2012,475
Bath & North East Somerset Council,80055091,LM3,Residential Care,P03,Wellbeing,GROVE CARE LTD,04/01/2012,475
Bath & North East Somerset Council,80055116,LM3,Residential Care,P03,Wellbeing,EXCELCARE SERVICE LTD,04/01/2012,478
Bath & North East Somerset Council,80055116,LM3,Residential Care,P03,Wellbeing,EXCELCARE SERVICE LTD,04/01/2012,478
Bath & North East Somerset Council,80055056,LM3,Residential Care,P03,Wellbeing,BEECHCROFT,04/01/2012,480
Bath & North East Somerset Council,80055056,LM3,Residential Care,P03,Wellbeing,BEECHCROFT,04/01/2012,480
Bath & North East Somerset Council,10641385,LK1,Fees,P06,Sustainable Development,INNER CIRCLE DJS LTD,04/01/2012,480
Bath & North East Somerset Council,10641386,LK1,Fees,P06,Sustainable Development,INNER CIRCLE DJS LTD,04/01/2012,480
Bath & North East Somerset Council,80055027,LM6,Nursing Care,P03,Wellbeing,CEDAR CARE HOMES LTD,04/01/2012,487.71
Bath & North East Somerset Council,80055210,LM2,Foster Carer Allowances,P02,"Early Years, Children & Youth",REDACTED,04/01/2012,494.94
Bath & North East Somerset Council,80055127,LM3,Residential Care,P03,Wellbeing,GREENSLEEVES HOMES TRUST KINGSTON HOUS,04/01/2012,495
Bath & North East Somerset Council,80055127,LM3,Residential Care,P03,Wellbeing,GREENSLEEVES HOMES TRUST KINGSTON HOUS,04/01/2012,495
Bath & North East Somerset Council,80055142,LM3,Residential Care,P03,Wellbeing,BARCHESTER HEALTHCARE HOMES LTD,04/01/2012,500
Bath & North East Somerset Council,80055142,LM3,Residential Care,P03,Wellbeing,BARCHESTER HEALTHCARE HOMES LTD,04/01/2012,500
Bath & North East Somerset Council,80055007,LM3,Residential Care,P03,Wellbeing,CEDAR CARE HOMES LTD,04/01/2012,500
Bath & North East Somerset Council,80055007,LM3,Residential Care,P03,Wellbeing,CEDAR CARE HOMES LTD,04/01/2012,500
Bath & North East Somerset Council,80055102,LM3,Residential Care,P03,Wellbeing,SPRINGFIELD BATH LTD,04/01/2012,500
Bath & North East Somerset Council,80055102,LM3,Residential Care,P03,Wellbeing,SPRINGFIELD BATH LTD,04/01/2012,500
Bath & North East Somerset Council,80055322,PG1,Rent Allowances,P07,Community Resources,REDACTED,04/01/2012,502.28
Bath & North East Somerset Council,10640414,LA7,Purchases for Resale,P06,Sustainable Development,ARRAN AROMATICS LTD,04/01/2012,502.8
Bath & North East Somerset Council,80055418,PG1,Rent Allowances,P07,Community Resources,REDACTED,04/01/2012,507.68
Bath & North East Somerset Council,80055430,PG1,Rent Allowances,P07,Community Resources,REDACTED,04/01/2012,507.68
Bath & North East Somerset Council,80055170,LM3,Residential Care,P03,Wellbeing,ANCHOR TRUST,04/01/2012,510.35
Bath & North East Somerset Council,80055170,LM3,Residential Care,P03,Wellbeing,ANCHOR TRUST,04/01/2012,510.35
Bath & North East Somerset Council,80055083,LM3,Residential Care,P03,Wellbeing,LILLIPUT HOUSE REST HOME,04/01/2012,513
Bath & North East Somerset Council,80055083,LM3,Residential Care,P03,Wellbeing,LILLIPUT HOUSE REST HOME,04/01/2012,513
Bath & North East Somerset Council,10640517,LJ4,Contracts,P05,Neighbourhoods,BONINGALE NURSERIES,04/01/2012,515.35
Bath & North East Somerset Council,10641391,KF2,Insurance Excess Payments,Z99,Outside Revenue Accounts,REDACTED,04/01/2012,516
Bath & North East Somerset Council,80055302,LL2,Personal Needs of Clients,P02,"Early Years, Children & Youth",REDACTED,04/01/2012,516.66
Bath & North East Somerset Council,80055429,PG1,Rent Allowances,P07,Community Resources,REDACTED,04/01/2012,524.12
Bath & North East Somerset Council,80055053,LM3,Residential Care,P03,Wellbeing,GROVE CARE LTD T/A ORIEL LODGE,04/01/2012,525
Bath & North East Somerset Council,80055053,LM3,Residential Care,P03,Wellbeing,GROVE CARE LTD T/A ORIEL LODGE,04/01/2012,525
Bath & North East Somerset Council,80055074,LM3,Residential Care,P03,Wellbeing,AVERY HOMES BRISTOL LIMITED,04/01/2012,525
Bath & North East Somerset Council,80055074,LM3,Residential Care,P03,Wellbeing,AVERY HOMES BRISTOL LIMITED,04/01/2012,525
Bath & North East Somerset Council,80055327,PG1,Rent Allowances,P07,Community Resources,REDACTED,04/01/2012,530.76
Bath & North East Somerset Council,80055320,PG1,Rent Allowances,P07,Community Resources,REDACTED,04/01/2012,533.52
Bath & North East Somerset Council,80055108,LM3,Residential Care,P03,Wellbeing,NEWBRIDGE TOWERS RESIDENTIAL CARE HOME,04/01/2012,535
Bath & North East Somerset Council,80055108,LM3,Residential Care,P03,Wellbeing,NEWBRIDGE TOWERS RESIDENTIAL CARE HOME,04/01/2012,535
Bath & North East Somerset Council,10641516,LJ2,Legal Fees,P02,"Early Years, Children & Youth",MR OLIVER R WILLMOTT,04/01/2012,535.99
Bath & North East Somerset Council,80055023,LM6,Nursing Care,P03,Wellbeing,BRIDGE CARE LTD,04/01/2012,536
Bath & North East Somerset Council,80055023,LM6,Nursing Care,P03,Wellbeing,BRIDGE CARE LTD,04/01/2012,536
Bath & North East Somerset Council,80055023,LM6,Nursing Care,P03,Wellbeing,BRIDGE CARE LTD,04/01/2012,536
Bath & North East Somerset Council,80055023,LM6,Nursing Care,P03,Wellbeing,BRIDGE CARE LTD,04/01/2012,536
Bath & North East Somerset Council,80055023,LM6,Nursing Care,P03,Wellbeing,BRIDGE CARE LTD,04/01/2012,536
Bath & North East Somerset Council,80055023,LM6,Nursing Care,P03,Wellbeing,BRIDGE CARE LTD,04/01/2012,536
Bath & North East Somerset Council,80055023,LM6,Nursing Care,P03,Wellbeing,BRIDGE CARE LTD,04/01/2012,536
Bath & North East Somerset Council,80055023,LM6,Nursing Care,P03,Wellbeing,BRIDGE CARE LTD,04/01/2012,536
Bath & North East Somerset Council,80055023,LM6,Nursing Care,P03,Wellbeing,BRIDGE CARE LTD,04/01/2012,536
Bath & North East Somerset Council,80055023,LM6,Nursing Care,P03,Wellbeing,BRIDGE CARE LTD,04/01/2012,536
Bath & North East Somerset Council,80055023,LM6,Nursing Care,P03,Wellbeing,BRIDGE CARE LTD,04/01/2012,536
Bath & North East Somerset Council,80055023,LM6,Nursing Care,P03,Wellbeing,BRIDGE CARE LTD,04/01/2012,536
Bath & North East Somerset Council,80055045,LM6,Nursing Care,P03,Wellbeing,WESTCROFT CARE LTD,04/01/2012,536
Bath & North East Somerset Council,80055045,LM6,Nursing Care,P03,Wellbeing,WESTCROFT CARE LTD,04/01/2012,536
Bath & North East Somerset Council,80055045,LM6,Nursing Care,P03,Wellbeing,WESTCROFT CARE LTD,04/01/2012,536
Bath & North East Somerset Council,80055045,LM6,Nursing Care,P03,Wellbeing,WESTCROFT CARE LTD,04/01/2012,536
Bath & North East Somerset Council,80055045,LM6,Nursing Care,P03,Wellbeing,WESTCROFT CARE LTD,04/01/2012,536
Bath & North East Somerset Council,80055045,LM6,Nursing Care,P03,Wellbeing,WESTCROFT CARE LTD,04/01/2012,536
Bath & North East Somerset Council,80055045,LM6,Nursing Care,P03,Wellbeing,WESTCROFT CARE LTD,04/01/2012,536
Bath & North East Somerset Council,80055045,LM6,Nursing Care,P03,Wellbeing,WESTCROFT CARE LTD,04/01/2012,536
Bath & North East Somerset Council,80055045,LM6,Nursing Care,P03,Wellbeing,WESTCROFT CARE LTD,04/01/2012,536
Bath & North East Somerset Council,80055045,LM6,Nursing Care,P03,Wellbeing,WESTCROFT CARE LTD,04/01/2012,536
Bath & North East Somerset Council,80055045,LM6,Nursing Care,P03,Wellbeing,WESTCROFT CARE LTD,04/01/2012,536
Bath & North East Somerset Council,80055045,LM6,Nursing Care,P03,Wellbeing,WESTCROFT CARE LTD,04/01/2012,536
Bath & North East Somerset Council,80055045,LM6,Nursing Care,P03,Wellbeing,WESTCROFT CARE LTD,04/01/2012,536
Bath & North East Somerset Council,80055045,LM6,Nursing Care,P03,Wellbeing,WESTCROFT CARE LTD,04/01/2012,536
Bath & North East Somerset Council,80055045,LM6,Nursing Care,P03,Wellbeing,WESTCROFT CARE LTD,04/01/2012,536
Bath & North East Somerset Council,80055045,LM6,Nursing Care,P03,Wellbeing,WESTCROFT CARE LTD,04/01/2012,536
Bath & North East Somerset Council,80055045,LM6,Nursing Care,P03,Wellbeing,WESTCROFT CARE LTD,04/01/2012,536
Bath & North East Somerset Council,80055045,LM6,Nursing Care,P03,Wellbeing,WESTCROFT CARE LTD,04/01/2012,536
Bath & North East Somerset Council,80055045,LM6,Nursing Care,P03,Wellbeing,WESTCROFT CARE LTD,04/01/2012,536
Bath & North East Somerset Council,80055045,LM6,Nursing Care,P03,Wellbeing,WESTCROFT CARE LTD,04/01/2012,536
Bath & North East Somerset Council,80055078,LM6,Nursing Care,P03,Wellbeing,CRANHILL NURSING HOME,04/01/2012,536
Bath & North East Somerset Council,80055078,LM6,Nursing Care,P03,Wellbeing,CRANHILL NURSING HOME,04/01/2012,536
Bath & North East Somerset Council,80055078,LM6,Nursing Care,P03,Wellbeing,CRANHILL NURSING HOME,04/01/2012,536
Bath & North East Somerset Council,80055078,LM6,Nursing Care,P03,Wellbeing,CRANHILL NURSING HOME,04/01/2012,536
Bath & North East Somerset Council,80055089,LM6,Nursing Care,P03,Wellbeing,CEDAR PARK NURSING HOME,04/01/2012,536
Bath & North East Somerset Council,80055089,LM6,Nursing Care,P03,Wellbeing,CEDAR PARK NURSING HOME,04/01/2012,536
Bath & North East Somerset Council,80055089,LM6,Nursing Care,P03,Wellbeing,CEDAR PARK NURSING HOME,04/01/2012,536
Bath & North East Somerset Council,80055089,LM6,Nursing Care,P03,Wellbeing,CEDAR PARK NURSING HOME,04/01/2012,536
Bath & North East Somerset Council,80055089,LM6,Nursing Care,P03,Wellbeing,CEDAR PARK NURSING HOME,04/01/2012,536
Bath & North East Somerset Council,80055089,LM6,Nursing Care,P03,Wellbeing,CEDAR PARK NURSING HOME,04/01/2012,536
Bath & North East Somerset Council,80055089,LM6,Nursing Care,P03,Wellbeing,CEDAR PARK NURSING HOME,04/01/2012,536
Bath & North East Somerset Council,80055089,LM6,Nursing Care,P03,Wellbeing,CEDAR PARK NURSING HOME,04/01/2012,536
Bath & North East Somerset Council,80055089,LM6,Nursing Care,P03,Wellbeing,CEDAR PARK NURSING HOME,04/01/2012,536
Bath & North East Somerset Council,80055089,LM6,Nursing Care,P03,Wellbeing,CEDAR PARK NURSING HOME,04/01/2012,536
Bath & North East Somerset Council,80055089,LM6,Nursing Care,P03,Wellbeing,CEDAR PARK NURSING HOME,04/01/2012,536
Bath & North East Somerset Council,80055089,LM6,Nursing Care,P03,Wellbeing,CEDAR PARK NURSING HOME,04/01/2012,536
Bath & North East Somerset Council,80055089,LM6,Nursing Care,P03,Wellbeing,CEDAR PARK NURSING HOME,04/01/2012,536
Bath & North East Somerset Council,80055089,LM6,Nursing Care,P03,Wellbeing,CEDAR PARK NURSING HOME,04/01/2012,536
Bath & North East Somerset Council,80055089,LM6,Nursing Care,P03,Wellbeing,CEDAR PARK NURSING HOME,04/01/2012,536
Bath & North East Somerset Council,80055089,LM6,Nursing Care,P03,Wellbeing,CEDAR PARK NURSING HOME,04/01/2012,536
Bath & North East Somerset Council,80055089,LM6,Nursing Care,P03,Wellbeing,CEDAR PARK NURSING HOME,04/01/2012,536
Bath & North East Somerset Council,80055089,LM6,Nursing Care,P03,Wellbeing,CEDAR PARK NURSING HOME,04/01/2012,536
Bath & North East Somerset Council,80055089,LM6,Nursing Care,P03,Wellbeing,CEDAR PARK NURSING HOME,04/01/2012,536
Bath & North East Somerset Council,80055089,LM6,Nursing Care,P03,Wellbeing,CEDAR PARK NURSING HOME,04/01/2012,536
Bath & North East Somerset Council,80055089,LM6,Nursing Care,P03,Wellbeing,CEDAR PARK NURSING HOME,04/01/2012,536
Bath & North East Somerset Council,80055089,LM6,Nursing Care,P03,Wellbeing,CEDAR PARK NURSING HOME,04/01/2012,536
Bath & North East Somerset Council,80055089,LM6,Nursing Care,P03,Wellbeing,CEDAR PARK NURSING HOME,04/01/2012,536
Bath & North East Somerset Council,80055089,LM6,Nursing Care,P03,Wellbeing,CEDAR PARK NURSING HOME,04/01/2012,536
Bath & North East Somerset Council,80055089,LM6,Nursing Care,P03,Wellbeing,CEDAR PARK NURSING HOME,04/01/2012,536
Bath & North East Somerset Council,80055089,LM6,Nursing Care,P03,Wellbeing,CEDAR PARK NURSING HOME,04/01/2012,536
Bath & North East Somerset Council,80055089,LM6,Nursing Care,P03,Wellbeing,CEDAR PARK NURSING HOME,04/01/2012,536
Bath & North East Somerset Council,80055089,LM6,Nursing Care,P03,Wellbeing,CEDAR PARK NURSING HOME,04/01/2012,536
Bath & North East Somerset Council,80055089,LM6,Nursing Care,P03,Wellbeing,CEDAR PARK NURSING HOME,04/01/2012,536
Bath & North East Somerset Council,80055089,LM6,Nursing Care,P03,Wellbeing,CEDAR PARK NURSING HOME,04/01/2012,536
Bath & North East Somerset Council,80055089,LM6,Nursing Care,P03,Wellbeing,CEDAR PARK NURSING HOME,04/01/2012,536
Bath & North East Somerset Council,80055089,LM6,Nursing Care,P03,Wellbeing,CEDAR PARK NURSING HOME,04/01/2012,536
Bath & North East Somerset Council,80055089,LM6,Nursing Care,P03,Wellbeing,CEDAR PARK NURSING HOME,04/01/2012,536
Bath & North East Somerset Council,80055089,LM6,Nursing Care,P03,Wellbeing,CEDAR PARK NURSING HOME,04/01/2012,536
Bath & North East Somerset Council,80055089,LM6,Nursing Care,P03,Wellbeing,CEDAR PARK NURSING HOME,04/01/2012,536
Bath & North East Somerset Council,80055089,LM6,Nursing Care,P03,Wellbeing,CEDAR PARK NURSING HOME,04/01/2012,536
Bath & North East Somerset Council,80055089,LM6,Nursing Care,P03,Wellbeing,CEDAR PARK NURSING HOME,04/01/2012,536
Bath & North East Somerset Council,80055089,LM6,Nursing Care,P03,Wellbeing,CEDAR PARK NURSING HOME,04/01/2012,536
Bath & North East Somerset Council,80055089,LM6,Nursing Care,P03,Wellbeing,CEDAR PARK NURSING HOME,04/01/2012,536
Bath & North East Somerset Council,80055089,LM6,Nursing Care,P03,Wellbeing,CEDAR PARK NURSING HOME,04/01/2012,536
Bath & North East Somerset Council,80055089,LM6,Nursing Care,P03,Wellbeing,CEDAR PARK NURSING HOME,04/01/2012,536
Bath & North East Somerset Council,80055089,LM6,Nursing Care,P03,Wellbeing,CEDAR PARK NURSING HOME,04/01/2012,536
Bath & North East Somerset Council,80055089,LM6,Nursing Care,P03,Wellbeing,CEDAR PARK NURSING HOME,04/01/2012,536
Bath & North East Somerset Council,80055089,LM6,Nursing Care,P03,Wellbeing,CEDAR PARK NURSING HOME,04/01/2012,536
Bath & North East Somerset Council,80055089,LM6,Nursing Care,P03,Wellbeing,CEDAR PARK NURSING HOME,04/01/2012,536
Bath & North East Somerset Council,80055089,LM6,Nursing Care,P03,Wellbeing,CEDAR PARK NURSING HOME,04/01/2012,536
Bath & North East Somerset Council,80055089,LM6,Nursing Care,P03,Wellbeing,CEDAR PARK NURSING HOME,04/01/2012,536
Bath & North East Somerset Council,80055089,LM6,Nursing Care,P03,Wellbeing,CEDAR PARK NURSING HOME,04/01/2012,536
Bath & North East Somerset Council,80055089,LM6,Nursing Care,P03,Wellbeing,CEDAR PARK NURSING HOME,04/01/2012,536
Bath & North East Somerset Council,80055089,LM6,Nursing Care,P03,Wellbeing,CEDAR PARK NURSING HOME,04/01/2012,536
Bath & North East Somerset Council,80055089,LM6,Nursing Care,P03,Wellbeing,CEDAR PARK NURSING HOME,04/01/2012,536
Bath & North East Somerset Council,80055089,LM6,Nursing Care,P03,Wellbeing,CEDAR PARK NURSING HOME,04/01/2012,536
Bath & North East Somerset Council,80055089,LM6,Nursing Care,P03,Wellbeing,CEDAR PARK NURSING HOME,04/01/2012,536
Bath & North East Somerset Council,80055089,LM6,Nursing Care,P03,Wellbeing,CEDAR PARK NURSING HOME,04/01/2012,536
Bath & North East Somerset Council,80055089,LM6,Nursing Care,P03,Wellbeing,CEDAR PARK NURSING HOME,04/01/2012,536
Bath & North East Somerset Council,80055089,LM6,Nursing Care,P03,Wellbeing,CEDAR PARK NURSING HOME,04/01/2012,536
Bath & North East Somerset Council,80055089,LM6,Nursing Care,P03,Wellbeing,CEDAR PARK NURSING HOME,04/01/2012,536
Bath & North East Somerset Council,80055089,LM6,Nursing Care,P03,Wellbeing,CEDAR PARK NURSING HOME,04/01/2012,536
Bath & North East Somerset Council,80055139,LM6,Nursing Care,P03,Wellbeing,WARMLEY HOUSE,04/01/2012,536
Bath & North East Somerset Council,80055139,LM6,Nursing Care,P03,Wellbeing,WARMLEY HOUSE,04/01/2012,536
Bath & North East Somerset Council,80055140,LM6,Nursing Care,P03,Wellbeing,GRAND CROSS LTD RE KINGSWOOD COURT,04/01/2012,536
Bath & North East Somerset Council,80055140,LM6,Nursing Care,P03,Wellbeing,GRAND CROSS LTD RE KINGSWOOD COURT,04/01/2012,536
Bath & North East Somerset Council,80055141,LM6,Nursing Care,P03,Wellbeing,OAKFIELD,04/01/2012,536
Bath & North East Somerset Council,80055141,LM6,Nursing Care,P03,Wellbeing,OAKFIELD,04/01/2012,536
Bath & North East Somerset Council,80055141,LM6,Nursing Care,P03,Wellbeing,OAKFIELD,04/01/2012,536
Bath & North East Somerset Council,80055141,LM6,Nursing Care,P03,Wellbeing,OAKFIELD,04/01/2012,536
Bath & North East Somerset Council,80055141,LM6,Nursing Care,P03,Wellbeing,OAKFIELD,04/01/2012,536
Bath & North East Somerset Council,80055141,LM6,Nursing Care,P03,Wellbeing,OAKFIELD,04/01/2012,536
Bath & North East Somerset Council,80055141,LM6,Nursing Care,P03,Wellbeing,OAKFIELD,04/01/2012,536
Bath & North East Somerset Council,80055141,LM6,Nursing Care,P03,Wellbeing,OAKFIELD,04/01/2012,536
Bath & North East Somerset Council,80055141,LM6,Nursing Care,P03,Wellbeing,OAKFIELD,04/01/2012,536
Bath & North East Somerset Council,80055141,LM6,Nursing Care,P03,Wellbeing,OAKFIELD,04/01/2012,536
Bath & North East Somerset Council,80055141,LM6,Nursing Care,P03,Wellbeing,OAKFIELD,04/01/2012,536
Bath & North East Somerset Council,80055141,LM6,Nursing Care,P03,Wellbeing,OAKFIELD,04/01/2012,536
Bath & North East Somerset Council,80055141,LM6,Nursing Care,P03,Wellbeing,OAKFIELD,04/01/2012,536
Bath & North East Somerset Council,80055141,LM6,Nursing Care,P03,Wellbeing,OAKFIELD,04/01/2012,536
Bath & North East Somerset Council,80055141,LM6,Nursing Care,P03,Wellbeing,OAKFIELD,04/01/2012,536
Bath & North East Somerset Council,80055141,LM6,Nursing Care,P03,Wellbeing,OAKFIELD,04/01/2012,536
Bath & North East Somerset Council,80055141,LM6,Nursing Care,P03,Wellbeing,OAKFIELD,04/01/2012,536
Bath & North East Somerset Council,80055141,LM6,Nursing Care,P03,Wellbeing,OAKFIELD,04/01/2012,536
Bath & North East Somerset Council,80055142,LM6,Nursing Care,P03,Wellbeing,BARCHESTER HEALTHCARE HOMES LTD,04/01/2012,536
Bath & North East Somerset Council,80055142,LM6,Nursing Care,P03,Wellbeing,BARCHESTER HEALTHCARE HOMES LTD,04/01/2012,536
Bath & North East Somerset Council,80055142,LM6,Nursing Care,P03,Wellbeing,BARCHESTER HEALTHCARE HOMES LTD,04/01/2012,536
Bath & North East Somerset Council,80055142,LM6,Nursing Care,P03,Wellbeing,BARCHESTER HEALTHCARE HOMES LTD,04/01/2012,536
Bath & North East Somerset Council,80055142,LM6,Nursing Care,P03,Wellbeing,BARCHESTER HEALTHCARE HOMES LTD,04/01/2012,536
Bath & North East Somerset Council,80055142,LM6,Nursing Care,P03,Wellbeing,BARCHESTER HEALTHCARE HOMES LTD,04/01/2012,536
Bath & North East Somerset Council,80055142,LM6,Nursing Care,P03,Wellbeing,BARCHESTER HEALTHCARE HOMES LTD,04/01/2012,536
Bath & North East Somerset Council,80055142,LM6,Nursing Care,P03,Wellbeing,BARCHESTER HEALTHCARE HOMES LTD,04/01/2012,536
Bath & North East Somerset Council,80055142,LM6,Nursing Care,P03,Wellbeing,BARCHESTER HEALTHCARE HOMES LTD,04/01/2012,536
Bath & North East Somerset Council,80055142,LM6,Nursing Care,P03,Wellbeing,BARCHESTER HEALTHCARE HOMES LTD,04/01/2012,536
Bath & North East Somerset Council,80055142,LM6,Nursing Care,P03,Wellbeing,BARCHESTER HEALTHCARE HOMES LTD,04/01/2012,536
Bath & North East Somerset Council,80055142,LM6,Nursing Care,P03,Wellbeing,BARCHESTER HEALTHCARE HOMES LTD,04/01/2012,536
Bath & North East Somerset Council,80055142,LM6,Nursing Care,P03,Wellbeing,BARCHESTER HEALTHCARE HOMES LTD,04/01/2012,536
Bath & North East Somerset Council,80055142,LM6,Nursing Care,P03,Wellbeing,BARCHESTER HEALTHCARE HOMES LTD,04/01/2012,536
Bath & North East Somerset Council,80055142,LM6,Nursing Care,P03,Wellbeing,BARCHESTER HEALTHCARE HOMES LTD,04/01/2012,536
Bath & North East Somerset Council,80055142,LM6,Nursing Care,P03,Wellbeing,BARCHESTER HEALTHCARE HOMES LTD,04/01/2012,536
Bath & North East Somerset Council,80055146,LM6,Nursing Care,P03,Wellbeing,HEATHER HOUSE,04/01/2012,536
Bath & North East Somerset Council,80055146,LM6,Nursing Care,P03,Wellbeing,HEATHER HOUSE,04/01/2012,536
Bath & North East Somerset Council,80055146,LM6,Nursing Care,P03,Wellbeing,HEATHER HOUSE,04/01/2012,536
Bath & North East Somerset Council,80055146,LM6,Nursing Care,P03,Wellbeing,HEATHER HOUSE,04/01/2012,536
Bath & North East Somerset Council,80055146,LM6,Nursing Care,P03,Wellbeing,HEATHER HOUSE,04/01/2012,536
Bath & North East Somerset Council,80055146,LM6,Nursing Care,P03,Wellbeing,HEATHER HOUSE,04/01/2012,536
Bath & North East Somerset Council,80055146,LM6,Nursing Care,P03,Wellbeing,HEATHER HOUSE,04/01/2012,536
Bath & North East Somerset Council,80055146,LM6,Nursing Care,P03,Wellbeing,HEATHER HOUSE,04/01/2012,536
Bath & North East Somerset Council,80055146,LM6,Nursing Care,P03,Wellbeing,HEATHER HOUSE,04/01/2012,536
Bath & North East Somerset Council,80055146,LM6,Nursing Care,P03,Wellbeing,HEATHER HOUSE,04/01/2012,536
Bath & North East Somerset Council,80055146,LM6,Nursing Care,P03,Wellbeing,HEATHER HOUSE,04/01/2012,536
Bath & North East Somerset Council,80055146,LM6,Nursing Care,P03,Wellbeing,HEATHER HOUSE,04/01/2012,536
Bath & North East Somerset Council,80055146,LM6,Nursing Care,P03,Wellbeing,HEATHER HOUSE,04/01/2012,536
Bath & North East Somerset Council,80055146,LM6,Nursing Care,P03,Wellbeing,HEATHER HOUSE,04/01/2012,536
Bath & North East Somerset Council,80055146,LM6,Nursing Care,P03,Wellbeing,HEATHER HOUSE,04/01/2012,536
Bath & North East Somerset Council,80055146,LM6,Nursing Care,P03,Wellbeing,HEATHER HOUSE,04/01/2012,536
Bath & North East Somerset Council,80055146,LM6,Nursing Care,P03,Wellbeing,HEATHER HOUSE,04/01/2012,536
Bath & North East Somerset Council,80055146,LM6,Nursing Care,P03,Wellbeing,HEATHER HOUSE,04/01/2012,536
Bath & North East Somerset Council,80055146,LM6,Nursing Care,P03,Wellbeing,HEATHER HOUSE,04/01/2012,536
Bath & North East Somerset Council,80055146,LM6,Nursing Care,P03,Wellbeing,HEATHER HOUSE,04/01/2012,536
Bath & North East Somerset Council,80055146,LM6,Nursing Care,P03,Wellbeing,HEATHER HOUSE,04/01/2012,536
Bath & North East Somerset Council,80055146,LM6,Nursing Care,P03,Wellbeing,HEATHER HOUSE,04/01/2012,536
Bath & North East Somerset Council,80055146,LM6,Nursing Care,P03,Wellbeing,HEATHER HOUSE,04/01/2012,536
Bath & North East Somerset Council,80055146,LM6,Nursing Care,P03,Wellbeing,HEATHER HOUSE,04/01/2012,536
Bath & North East Somerset Council,80055147,LM6,Nursing Care,P03,Wellbeing,LARKHALL SPRINGS NURSING HOME,04/01/2012,536
Bath & North East Somerset Council,80055147,LM6,Nursing Care,P03,Wellbeing,LARKHALL SPRINGS NURSING HOME,04/01/2012,536
Bath & North East Somerset Council,80055147,LM6,Nursing Care,P03,Wellbeing,LARKHALL SPRINGS NURSING HOME,04/01/2012,536
Bath & North East Somerset Council,80055147,LM6,Nursing Care,P03,Wellbeing,LARKHALL SPRINGS NURSING HOME,04/01/2012,536
Bath & North East Somerset Council,80055147,LM6,Nursing Care,P03,Wellbeing,LARKHALL SPRINGS NURSING HOME,04/01/2012,536
Bath & North East Somerset Council,80055147,LM6,Nursing Care,P03,Wellbeing,LARKHALL SPRINGS NURSING HOME,04/01/2012,536
Bath & North East Somerset Council,80055147,LM6,Nursing Care,P03,Wellbeing,LARKHALL SPRINGS NURSING HOME,04/01/2012,536
Bath & North East Somerset Council,80055147,LM6,Nursing Care,P03,Wellbeing,LARKHALL SPRINGS NURSING HOME,04/01/2012,536
Bath & North East Somerset Council,80055147,LM6,Nursing Care,P03,Wellbeing,LARKHALL SPRINGS NURSING HOME,04/01/2012,536
Bath & North East Somerset Council,80055147,LM6,Nursing Care,P03,Wellbeing,LARKHALL SPRINGS NURSING HOME,04/01/2012,536
Bath & North East Somerset Council,80055147,LM6,Nursing Care,P03,Wellbeing,LARKHALL SPRINGS NURSING HOME,04/01/2012,536
Bath & North East Somerset Council,80055147,LM6,Nursing Care,P03,Wellbeing,LARKHALL SPRINGS NURSING HOME,04/01/2012,536
Bath & North East Somerset Council,80055147,LM6,Nursing Care,P03,Wellbeing,LARKHALL SPRINGS NURSING HOME,04/01/2012,536
Bath & North East Somerset Council,80055147,LM6,Nursing Care,P03,Wellbeing,LARKHALL SPRINGS NURSING HOME,04/01/2012,536
Bath & North East Somerset Council,80055147,LM6,Nursing Care,P03,Wellbeing,LARKHALL SPRINGS NURSING HOME,04/01/2012,536
Bath & North East Somerset Council,80055147,LM6,Nursing Care,P03,Wellbeing,LARKHALL SPRINGS NURSING HOME,04/01/2012,536
Bath & North East Somerset Council,80055149,LM6,Nursing Care,P03,Wellbeing,EUROPEAN CARE (UK) LTD - REDACTED,04/01/2012,536
Bath & North East Somerset Council,80055149,LM6,Nursing Care,P03,Wellbeing,EUROPEAN CARE (UK) LTD - REDACTED,04/01/2012,536
Bath & North East Somerset Council,80055149,LM6,Nursing Care,P03,Wellbeing,EUROPEAN CARE (UK) LTD - REDACTED,04/01/2012,536
Bath & North East Somerset Council,80055149,LM6,Nursing Care,P03,Wellbeing,EUROPEAN CARE (UK) LTD - REDACTED,04/01/2012,536
Bath & North East Somerset Council,80055149,LM6,Nursing Care,P03,Wellbeing,EUROPEAN CARE (UK) LTD - REDACTED,04/01/2012,536
Bath & North East Somerset Council,80055149,LM6,Nursing Care,P03,Wellbeing,EUROPEAN CARE (UK) LTD - REDACTED,04/01/2012,536
Bath & North East Somerset Council,80055149,LM6,Nursing Care,P03,Wellbeing,EUROPEAN CARE (UK) LTD - REDACTED,04/01/2012,536
Bath & North East Somerset Council,80055149,LM6,Nursing Care,P03,Wellbeing,EUROPEAN CARE (UK) LTD - REDACTED,04/01/2012,536
Bath & North East Somerset Council,80055149,LM6,Nursing Care,P03,Wellbeing,EUROPEAN CARE (UK) LTD - REDACTED,04/01/2012,536
Bath & North East Somerset Council,80055149,LM6,Nursing Care,P03,Wellbeing,EUROPEAN CARE (UK) LTD - REDACTED,04/01/2012,536
Bath & North East Somerset Council,80055149,LM6,Nursing Care,P03,Wellbeing,EUROPEAN CARE (UK) LTD - REDACTED,04/01/2012,536
Bath & North East Somerset Council,80055149,LM6,Nursing Care,P03,Wellbeing,EUROPEAN CARE (UK) LTD - REDACTED,04/01/2012,536
Bath & North East Somerset Council,80055149,LM6,Nursing Care,P03,Wellbeing,EUROPEAN CARE (UK) LTD - REDACTED,04/01/2012,536
Bath & North East Somerset Council,80055149,LM6,Nursing Care,P03,Wellbeing,EUROPEAN CARE (UK) LTD - REDACTED,04/01/2012,536
Bath & North East Somerset Council,80055149,LM6,Nursing Care,P03,Wellbeing,EUROPEAN CARE (UK) LTD - REDACTED,04/01/2012,536
Bath & North East Somerset Council,80055149,LM6,Nursing Care,P03,Wellbeing,EUROPEAN CARE (UK) LTD - REDACTED,04/01/2012,536
Bath & North East Somerset Council,80055149,LM6,Nursing Care,P03,Wellbeing,EUROPEAN CARE (UK) LTD - REDACTED,04/01/2012,536
Bath & North East Somerset Council,80055149,LM6,Nursing Care,P03,Wellbeing,EUROPEAN CARE (UK) LTD - REDACTED,04/01/2012,536
Bath & North East Somerset Council,80055149,LM6,Nursing Care,P03,Wellbeing,EUROPEAN CARE (UK) LTD - REDACTED,04/01/2012,536
Bath & North East Somerset Council,80055149,LM6,Nursing Care,P03,Wellbeing,EUROPEAN CARE (UK) LTD - REDACTED,04/01/2012,536
Bath & North East Somerset Council,80055149,LM6,Nursing Care,P03,Wellbeing,EUROPEAN CARE (UK) LTD - REDACTED,04/01/2012,536
Bath & North East Somerset Council,80055149,LM6,Nursing Care,P03,Wellbeing,EUROPEAN CARE (UK) LTD - REDACTED,04/01/2012,536
Bath & North East Somerset Council,80055149,LM6,Nursing Care,P03,Wellbeing,EUROPEAN CARE (UK) LTD - REDACTED,04/01/2012,536
Bath & North East Somerset Council,80055149,LM6,Nursing Care,P03,Wellbeing,EUROPEAN CARE (UK) LTD - REDACTED,04/01/2012,536
Bath & North East Somerset Council,80055149,LM6,Nursing Care,P03,Wellbeing,EUROPEAN CARE (UK) LTD - REDACTED,04/01/2012,536
Bath & North East Somerset Council,80055149,LM6,Nursing Care,P03,Wellbeing,EUROPEAN CARE (UK) LTD - REDACTED,04/01/2012,536
Bath & North East Somerset Council,80055149,LM6,Nursing Care,P03,Wellbeing,EUROPEAN CARE (UK) LTD - REDACTED,04/01/2012,536
Bath & North East Somerset Council,80055149,LM6,Nursing Care,P03,Wellbeing,EUROPEAN CARE (UK) LTD - REDACTED,04/01/2012,536
Bath & North East Somerset Council,80055149,LM6,Nursing Care,P03,Wellbeing,EUROPEAN CARE (UK) LTD - REDACTED,04/01/2012,536
Bath & North East Somerset Council,80055149,LM6,Nursing Care,P03,Wellbeing,EUROPEAN CARE (UK) LTD - REDACTED,04/01/2012,536
Bath & North East Somerset Council,80055149,LM6,Nursing Care,P03,Wellbeing,EUROPEAN CARE (UK) LTD - REDACTED,04/01/2012,536
Bath & North East Somerset Council,80055149,LM6,Nursing Care,P03,Wellbeing,EUROPEAN CARE (UK) LTD - REDACTED,04/01/2012,536
Bath & North East Somerset Council,80055149,LM6,Nursing Care,P03,Wellbeing,EUROPEAN CARE (UK) LTD - REDACTED,04/01/2012,536
Bath & North East Somerset Council,80055149,LM6,Nursing Care,P03,Wellbeing,EUROPEAN CARE (UK) LTD - REDACTED,04/01/2012,536
Bath & North East Somerset Council,80055149,LM6,Nursing Care,P03,Wellbeing,EUROPEAN CARE (UK) LTD - REDACTED,04/01/2012,536
Bath & North East Somerset Council,80055149,LM6,Nursing Care,P03,Wellbeing,EUROPEAN CARE (UK) LTD - REDACTED,04/01/2012,536
Bath & North East Somerset Council,80055149,LM6,Nursing Care,P03,Wellbeing,EUROPEAN CARE (UK) LTD - REDACTED,04/01/2012,536
Bath & North East Somerset Council,80055149,LM6,Nursing Care,P03,Wellbeing,EUROPEAN CARE (UK) LTD - REDACTED,04/01/2012,536
Bath & North East Somerset Council,80055149,LM6,Nursing Care,P03,Wellbeing,EUROPEAN CARE (UK) LTD - REDACTED,04/01/2012,536
Bath & North East Somerset Council,80055149,LM6,Nursing Care,P03,Wellbeing,EUROPEAN CARE (UK) LTD - REDACTED,04/01/2012,536
Bath & North East Somerset Council,80055149,LM6,Nursing Care,P03,Wellbeing,EUROPEAN CARE (UK) LTD - REDACTED,04/01/2012,536
Bath & North East Somerset Council,80055149,LM6,Nursing Care,P03,Wellbeing,EUROPEAN CARE (UK) LTD - REDACTED,04/01/2012,536
Bath & North East Somerset Council,80055149,LM6,Nursing Care,P03,Wellbeing,EUROPEAN CARE (UK) LTD - REDACTED,04/01/2012,536
Bath & North East Somerset Council,80055149,LM6,Nursing Care,P03,Wellbeing,EUROPEAN CARE (UK) LTD - REDACTED,04/01/2012,536
Bath & North East Somerset Council,80055149,LM6,Nursing Care,P03,Wellbeing,EUROPEAN CARE (UK) LTD - REDACTED,04/01/2012,536
Bath & North East Somerset Council,80055149,LM6,Nursing Care,P03,Wellbeing,EUROPEAN CARE (UK) LTD - REDACTED,04/01/2012,536
Bath & North East Somerset Council,80055149,LM6,Nursing Care,P03,Wellbeing,EUROPEAN CARE (UK) LTD - REDACTED,04/01/2012,536
Bath & North East Somerset Council,80055149,LM6,Nursing Care,P03,Wellbeing,EUROPEAN CARE (UK) LTD - REDACTED,04/01/2012,536
Bath & North East Somerset Council,80055149,LM6,Nursing Care,P03,Wellbeing,EUROPEAN CARE (UK) LTD - REDACTED,04/01/2012,536
Bath & North East Somerset Council,80055149,LM6,Nursing Care,P03,Wellbeing,EUROPEAN CARE (UK) LTD - REDACTED,04/01/2012,536
Bath & North East Somerset Council,80055149,LM6,Nursing Care,P03,Wellbeing,EUROPEAN CARE (UK) LTD - REDACTED,04/01/2012,536
Bath & North East Somerset Council,80055149,LM6,Nursing Care,P03,Wellbeing,EUROPEAN CARE (UK) LTD - REDACTED,04/01/2012,536
Bath & North East Somerset Council,80055149,LM6,Nursing Care,P03,Wellbeing,EUROPEAN CARE (UK) LTD - REDACTED,04/01/2012,536
Bath & North East Somerset Council,80055149,LM6,Nursing Care,P03,Wellbeing,EUROPEAN CARE (UK) LTD - REDACTED,04/01/2012,536
Bath & North East Somerset Council,80055149,LM6,Nursing Care,P03,Wellbeing,EUROPEAN CARE (UK) LTD - REDACTED,04/01/2012,536
Bath & North East Somerset Council,80055149,LM6,Nursing Care,P03,Wellbeing,EUROPEAN CARE (UK) LTD - REDACTED,04/01/2012,536
Bath & North East Somerset Council,80055149,LM6,Nursing Care,P03,Wellbeing,EUROPEAN CARE (UK) LTD - REDACTED,04/01/2012,536
Bath & North East Somerset Council,80055149,LM6,Nursing Care,P03,Wellbeing,EUROPEAN CARE (UK) LTD - REDACTED,04/01/2012,536
Bath & North East Somerset Council,80055149,LM6,Nursing Care,P03,Wellbeing,EUROPEAN CARE (UK) LTD - REDACTED,04/01/2012,536
Bath & North East Somerset Council,80055149,LM6,Nursing Care,P03,Wellbeing,EUROPEAN CARE (UK) LTD - REDACTED,04/01/2012,536
Bath & North East Somerset Council,80055149,LM6,Nursing Care,P03,Wellbeing,EUROPEAN CARE (UK) LTD - REDACTED,04/01/2012,536
Bath & North East Somerset Council,80055149,LM6,Nursing Care,P03,Wellbeing,EUROPEAN CARE (UK) LTD - REDACTED,04/01/2012,536
Bath & North East Somerset Council,80055149,LM6,Nursing Care,P03,Wellbeing,EUROPEAN CARE (UK) LTD - REDACTED,04/01/2012,536
Bath & North East Somerset Council,80055152,LM6,Nursing Care,P03,Wellbeing,MIMOSA HEALTHCARE,04/01/2012,536
Bath & North East Somerset Council,80055152,LM6,Nursing Care,P03,Wellbeing,MIMOSA HEALTHCARE,04/01/2012,536
Bath & North East Somerset Council,80055152,LM6,Nursing Care,P03,Wellbeing,MIMOSA HEALTHCARE,04/01/2012,536
Bath & North East Somerset Council,80055152,LM6,Nursing Care,P03,Wellbeing,MIMOSA HEALTHCARE,04/01/2012,536
Bath & North East Somerset Council,80055152,LM6,Nursing Care,P03,Wellbeing,MIMOSA HEALTHCARE,04/01/2012,536
Bath & North East Somerset Council,80055152,LM6,Nursing Care,P03,Wellbeing,MIMOSA HEALTHCARE,04/01/2012,536
Bath & North East Somerset Council,80055152,LM6,Nursing Care,P03,Wellbeing,MIMOSA HEALTHCARE,04/01/2012,536
Bath & North East Somerset Council,80055152,LM6,Nursing Care,P03,Wellbeing,MIMOSA HEALTHCARE,04/01/2012,536
Bath & North East Somerset Council,80055152,LM6,Nursing Care,P03,Wellbeing,MIMOSA HEALTHCARE,04/01/2012,536
Bath & North East Somerset Council,80055152,LM6,Nursing Care,P03,Wellbeing,MIMOSA HEALTHCARE,04/01/2012,536
Bath & North East Somerset Council,80055152,LM6,Nursing Care,P03,Wellbeing,MIMOSA HEALTHCARE,04/01/2012,536
Bath & North East Somerset Council,80055152,LM6,Nursing Care,P03,Wellbeing,MIMOSA HEALTHCARE,04/01/2012,536
Bath & North East Somerset Council,80055152,LM6,Nursing Care,P03,Wellbeing,MIMOSA HEALTHCARE,04/01/2012,536
Bath & North East Somerset Council,80055152,LM6,Nursing Care,P03,Wellbeing,MIMOSA HEALTHCARE,04/01/2012,536
Bath & North East Somerset Council,80055152,LM6,Nursing Care,P03,Wellbeing,MIMOSA HEALTHCARE,04/01/2012,536
Bath & North East Somerset Council,80055152,LM6,Nursing Care,P03,Wellbeing,MIMOSA HEALTHCARE,04/01/2012,536
Bath & North East Somerset Council,80055152,LM6,Nursing Care,P03,Wellbeing,MIMOSA HEALTHCARE,04/01/2012,536
Bath & North East Somerset Council,80055152,LM6,Nursing Care,P03,Wellbeing,MIMOSA HEALTHCARE,04/01/2012,536
Bath & North East Somerset Council,80055183,LM6,Nursing Care,P03,Wellbeing,CARE FIRST CARE HOMES LTD,04/01/2012,536
Bath & North East Somerset Council,80055183,LM6,Nursing Care,P03,Wellbeing,CARE FIRST CARE HOMES LTD,04/01/2012,536
Bath & North East Somerset Council,80055183,LM6,Nursing Care,P03,Wellbeing,CARE FIRST CARE HOMES LTD,04/01/2012,536
Bath & North East Somerset Council,80055183,LM6,Nursing Care,P03,Wellbeing,CARE FIRST CARE HOMES LTD,04/01/2012,536
Bath & North East Somerset Council,80055183,LM6,Nursing Care,P03,Wellbeing,CARE FIRST CARE HOMES LTD,04/01/2012,536
Bath & North East Somerset Council,80055183,LM6,Nursing Care,P03,Wellbeing,CARE FIRST CARE HOMES LTD,04/01/2012,536
Bath & North East Somerset Council,80054993,LM6,Nursing Care,P03,Wellbeing,EUROPEAN CARE SW LTD - REDACTED,04/01/2012,536
Bath & North East Somerset Council,80054993,LM6,Nursing Care,P03,Wellbeing,EUROPEAN CARE SW LTD - REDACTED,04/01/2012,536
Bath & North East Somerset Council,80054993,LM6,Nursing Care,P03,Wellbeing,EUROPEAN CARE SW LTD - REDACTED,04/01/2012,536
Bath & North East Somerset Council,80054993,LM6,Nursing Care,P03,Wellbeing,EUROPEAN CARE SW LTD - REDACTED,04/01/2012,536
Bath & North East Somerset Council,80054993,LM6,Nursing Care,P03,Wellbeing,EUROPEAN CARE SW LTD - REDACTED,04/01/2012,536
Bath & North East Somerset Council,80054993,LM6,Nursing Care,P03,Wellbeing,EUROPEAN CARE SW LTD - REDACTED,04/01/2012,536
Bath & North East Somerset Council,80054993,LM6,Nursing Care,P03,Wellbeing,EUROPEAN CARE SW LTD - REDACTED,04/01/2012,536
Bath & North East Somerset Council,80054993,LM6,Nursing Care,P03,Wellbeing,EUROPEAN CARE SW LTD - REDACTED,04/01/2012,536
Bath & North East Somerset Council,80054993,LM6,Nursing Care,P03,Wellbeing,EUROPEAN CARE SW LTD - REDACTED,04/01/2012,536
Bath & North East Somerset Council,80054993,LM6,Nursing Care,P03,Wellbeing,EUROPEAN CARE SW LTD - REDACTED,04/01/2012,536
Bath & North East Somerset Council,80054993,LM6,Nursing Care,P03,Wellbeing,EUROPEAN CARE SW LTD - REDACTED,04/01/2012,536
Bath & North East Somerset Council,80054993,LM6,Nursing Care,P03,Wellbeing,EUROPEAN CARE SW LTD - REDACTED,04/01/2012,536
Bath & North East Somerset Council,80054993,LM6,Nursing Care,P03,Wellbeing,EUROPEAN CARE SW LTD - REDACTED,04/01/2012,536
Bath & North East Somerset Council,80054993,LM6,Nursing Care,P03,Wellbeing,EUROPEAN CARE SW LTD - REDACTED,04/01/2012,536
Bath & North East Somerset Council,80054993,LM6,Nursing Care,P03,Wellbeing,EUROPEAN CARE SW LTD - REDACTED,04/01/2012,536
Bath & North East Somerset Council,80054993,LM6,Nursing Care,P03,Wellbeing,EUROPEAN CARE SW LTD - REDACTED,04/01/2012,536
Bath & North East Somerset Council,80054993,LM6,Nursing Care,P03,Wellbeing,EUROPEAN CARE SW LTD - REDACTED,04/01/2012,536
Bath & North East Somerset Council,80054993,LM6,Nursing Care,P03,Wellbeing,EUROPEAN CARE SW LTD - REDACTED,04/01/2012,536
Bath & North East Somerset Council,80054993,LM6,Nursing Care,P03,Wellbeing,EUROPEAN CARE SW LTD - REDACTED,04/01/2012,536
Bath & North East Somerset Council,80054993,LM6,Nursing Care,P03,Wellbeing,EUROPEAN CARE SW LTD - REDACTED,04/01/2012,536
Bath & North East Somerset Council,80054993,LM6,Nursing Care,P03,Wellbeing,EUROPEAN CARE SW LTD - REDACTED,04/01/2012,536
Bath & North East Somerset Council,80054993,LM6,Nursing Care,P03,Wellbeing,EUROPEAN CARE SW LTD - REDACTED,04/01/2012,536
Bath & North East Somerset Council,80054993,LM6,Nursing Care,P03,Wellbeing,EUROPEAN CARE SW LTD - REDACTED,04/01/2012,536
Bath & North East Somerset Council,80054993,LM6,Nursing Care,P03,Wellbeing,EUROPEAN CARE SW LTD - REDACTED,04/01/2012,536
Bath & North East Somerset Council,80054993,LM6,Nursing Care,P03,Wellbeing,EUROPEAN CARE SW LTD - REDACTED,04/01/2012,536
Bath & North East Somerset Council,80054993,LM6,Nursing Care,P03,Wellbeing,EUROPEAN CARE SW LTD - REDACTED,04/01/2012,536
Bath & North East Somerset Council,80054993,LM6,Nursing Care,P03,Wellbeing,EUROPEAN CARE SW LTD - REDACTED,04/01/2012,536
Bath & North East Somerset Council,80054993,LM6,Nursing Care,P03,Wellbeing,EUROPEAN CARE SW LTD - REDACTED,04/01/2012,536
Bath & North East Somerset Council,80054993,LM6,Nursing Care,P03,Wellbeing,EUROPEAN CARE SW LTD - REDACTED,04/01/2012,536
Bath & North East Somerset Council,80054993,LM6,Nursing Care,P03,Wellbeing,EUROPEAN CARE SW LTD - REDACTED,04/01/2012,536
Bath & North East Somerset Council,80055002,LM6,Nursing Care,P03,Wellbeing,SUTTON VENY NURSING HOME,04/01/2012,536
Bath & North East Somerset Council,80055002,LM6,Nursing Care,P03,Wellbeing,SUTTON VENY NURSING HOME,04/01/2012,536
Bath & North East Somerset Council,80055022,LM6,Nursing Care,P03,Wellbeing,SUNNYMEDE LTD,04/01/2012,536
Bath & North East Somerset Council,80055022,LM6,Nursing Care,P03,Wellbeing,SUNNYMEDE LTD,04/01/2012,536
Bath & North East Somerset Council,80055022,LM6,Nursing Care,P03,Wellbeing,SUNNYMEDE LTD,04/01/2012,536
Bath & North East Somerset Council,80055022,LM6,Nursing Care,P03,Wellbeing,SUNNYMEDE LTD,04/01/2012,536
Bath & North East Somerset Council,80055022,LM6,Nursing Care,P03,Wellbeing,SUNNYMEDE LTD,04/01/2012,536
Bath & North East Somerset Council,80055022,LM6,Nursing Care,P03,Wellbeing,SUNNYMEDE LTD,04/01/2012,536
Bath & North East Somerset Council,80055022,LM6,Nursing Care,P03,Wellbeing,SUNNYMEDE LTD,04/01/2012,536
Bath & North East Somerset Council,80055022,LM6,Nursing Care,P03,Wellbeing,SUNNYMEDE LTD,04/01/2012,536
Bath & North East Somerset Council,80055022,LM6,Nursing Care,P03,Wellbeing,SUNNYMEDE LTD,04/01/2012,536
Bath & North East Somerset Council,80055022,LM6,Nursing Care,P03,Wellbeing,SUNNYMEDE LTD,04/01/2012,536
Bath & North East Somerset Council,80055022,LM6,Nursing Care,P03,Wellbeing,SUNNYMEDE LTD,04/01/2012,536
Bath & North East Somerset Council,80055022,LM6,Nursing Care,P03,Wellbeing,SUNNYMEDE LTD,04/01/2012,536
Bath & North East Somerset Council,80055022,LM6,Nursing Care,P03,Wellbeing,SUNNYMEDE LTD,04/01/2012,536
Bath & North East Somerset Council,80055022,LM6,Nursing Care,P03,Wellbeing,SUNNYMEDE LTD,04/01/2012,536
Bath & North East Somerset Council,80055022,LM6,Nursing Care,P03,Wellbeing,SUNNYMEDE LTD,04/01/2012,536
Bath & North East Somerset Council,80055022,LM6,Nursing Care,P03,Wellbeing,SUNNYMEDE LTD,04/01/2012,536
Bath & North East Somerset Council,80055022,LM6,Nursing Care,P03,Wellbeing,SUNNYMEDE LTD,04/01/2012,536
Bath & North East Somerset Council,80055022,LM6,Nursing Care,P03,Wellbeing,SUNNYMEDE LTD,04/01/2012,536
Bath & North East Somerset Council,80055022,LM6,Nursing Care,P03,Wellbeing,SUNNYMEDE LTD,04/01/2012,536
Bath & North East Somerset Council,80055022,LM6,Nursing Care,P03,Wellbeing,SUNNYMEDE LTD,04/01/2012,536
Bath & North East Somerset Council,80055022,LM6,Nursing Care,P03,Wellbeing,SUNNYMEDE LTD,04/01/2012,536
Bath & North East Somerset Council,80055022,LM6,Nursing Care,P03,Wellbeing,SUNNYMEDE LTD,04/01/2012,536
Bath & North East Somerset Council,80055022,LM6,Nursing Care,P03,Wellbeing,SUNNYMEDE LTD,04/01/2012,536
Bath & North East Somerset Council,80055022,LM6,Nursing Care,P03,Wellbeing,SUNNYMEDE LTD,04/01/2012,536
Bath & North East Somerset Council,80055049,LM6,Nursing Care,P03,Wellbeing,T C CAREHOME LTD,04/01/2012,536
Bath & North East Somerset Council,80055049,LM6,Nursing Care,P03,Wellbeing,T C CAREHOME LTD,04/01/2012,536
Bath & North East Somerset Council,80055049,LM6,Nursing Care,P03,Wellbeing,T C CAREHOME LTD,04/01/2012,536
Bath & North East Somerset Council,80055049,LM6,Nursing Care,P03,Wellbeing,T C CAREHOME LTD,04/01/2012,536
Bath & North East Somerset Council,80055049,LM6,Nursing Care,P03,Wellbeing,T C CAREHOME LTD,04/01/2012,536
Bath & North East Somerset Council,80055049,LM6,Nursing Care,P03,Wellbeing,T C CAREHOME LTD,04/01/2012,536
Bath & North East Somerset Council,80055049,LM6,Nursing Care,P03,Wellbeing,T C CAREHOME LTD,04/01/2012,536
Bath & North East Somerset Council,80055049,LM6,Nursing Care,P03,Wellbeing,T C CAREHOME LTD,04/01/2012,536
Bath & North East Somerset Council,80055049,LM6,Nursing Care,P03,Wellbeing,T C CAREHOME LTD,04/01/2012,536
Bath & North East Somerset Council,80055049,LM6,Nursing Care,P03,Wellbeing,T C CAREHOME LTD,04/01/2012,536
Bath & North East Somerset Council,80055049,LM6,Nursing Care,P03,Wellbeing,T C CAREHOME LTD,04/01/2012,536
Bath & North East Somerset Council,80055049,LM6,Nursing Care,P03,Wellbeing,T C CAREHOME LTD,04/01/2012,536
Bath & North East Somerset Council,80055049,LM6,Nursing Care,P03,Wellbeing,T C CAREHOME LTD,04/01/2012,536
Bath & North East Somerset Council,80055049,LM6,Nursing Care,P03,Wellbeing,T C CAREHOME LTD,04/01/2012,536
Bath & North East Somerset Council,80055049,LM6,Nursing Care,P03,Wellbeing,T C CAREHOME LTD,04/01/2012,536
Bath & North East Somerset Council,80055049,LM6,Nursing Care,P03,Wellbeing,T C CAREHOME LTD,04/01/2012,536
Bath & North East Somerset Council,80055050,LM6,Nursing Care,P03,Wellbeing,MIMOSA HEALTHCARE NO. 4 BRISTOL HOMES,04/01/2012,536
Bath & North East Somerset Council,80055050,LM6,Nursing Care,P03,Wellbeing,MIMOSA HEALTHCARE NO. 4 BRISTOL HOMES,04/01/2012,536
Bath & North East Somerset Council,80055052,LM6,Nursing Care,P03,Wellbeing,BARKER CHEMICALS LTD T/A ST TERESA'S NH,04/01/2012,536
Bath & North East Somerset Council,80055052,LM6,Nursing Care,P03,Wellbeing,BARKER CHEMICALS LTD T/A ST TERESA'S NH,04/01/2012,536
Bath & North East Somerset Council,80055052,LM6,Nursing Care,P03,Wellbeing,BARKER CHEMICALS LTD T/A ST TERESA'S NH,04/01/2012,536
Bath & North East Somerset Council,80055052,LM6,Nursing Care,P03,Wellbeing,BARKER CHEMICALS LTD T/A ST TERESA'S NH,04/01/2012,536
Bath & North East Somerset Council,80055052,LM6,Nursing Care,P03,Wellbeing,BARKER CHEMICALS LTD T/A ST TERESA'S NH,04/01/2012,536
Bath & North East Somerset Council,80055052,LM6,Nursing Care,P03,Wellbeing,BARKER CHEMICALS LTD T/A ST TERESA'S NH,04/01/2012,536
Bath & North East Somerset Council,80055052,LM6,Nursing Care,P03,Wellbeing,BARKER CHEMICALS LTD T/A ST TERESA'S NH,04/01/2012,536
Bath & North East Somerset Council,80055052,LM6,Nursing Care,P03,Wellbeing,BARKER CHEMICALS LTD T/A ST TERESA'S NH,04/01/2012,536
Bath & North East Somerset Council,80055052,LM6,Nursing Care,P03,Wellbeing,BARKER CHEMICALS LTD T/A ST TERESA'S NH,04/01/2012,536
Bath & North East Somerset Council,80055052,LM6,Nursing Care,P03,Wellbeing,BARKER CHEMICALS LTD T/A ST TERESA'S NH,04/01/2012,536
Bath & North East Somerset Council,80055052,LM6,Nursing Care,P03,Wellbeing,BARKER CHEMICALS LTD T/A ST TERESA'S NH,04/01/2012,536
Bath & North East Somerset Council,80055052,LM6,Nursing Care,P03,Wellbeing,BARKER CHEMICALS LTD T/A ST TERESA'S NH,04/01/2012,536
Bath & North East Somerset Council,80055052,LM6,Nursing Care,P03,Wellbeing,BARKER CHEMICALS LTD T/A ST TERESA'S NH,04/01/2012,536
Bath & North East Somerset Council,80055052,LM6,Nursing Care,P03,Wellbeing,BARKER CHEMICALS LTD T/A ST TERESA'S NH,04/01/2012,536
Bath & North East Somerset Council,80055052,LM6,Nursing Care,P03,Wellbeing,BARKER CHEMICALS LTD T/A ST TERESA'S NH,04/01/2012,536
Bath & North East Somerset Council,80055052,LM6,Nursing Care,P03,Wellbeing,BARKER CHEMICALS LTD T/A ST TERESA'S NH,04/01/2012,536
Bath & North East Somerset Council,80055064,LM6,Nursing Care,P03,Wellbeing,CARESTREAM LTD,04/01/2012,536
Bath & North East Somerset Council,80055064,LM6,Nursing Care,P03,Wellbeing,CARESTREAM LTD,04/01/2012,536
Bath & North East Somerset Council,80055071,LM6,Nursing Care,P03,Wellbeing,FOREST CARE LTD - OAK LODGE,04/01/2012,536
Bath & North East Somerset Council,80055071,LM6,Nursing Care,P03,Wellbeing,FOREST CARE LTD - OAK LODGE,04/01/2012,536
Bath & North East Somerset Council,80055076,LM6,Nursing Care,P03,Wellbeing,MIMOSA HEALTHCARE BRISTOL HOMES,04/01/2012,536
Bath & North East Somerset Council,80055076,LM6,Nursing Care,P03,Wellbeing,MIMOSA HEALTHCARE BRISTOL HOMES,04/01/2012,536
Bath & North East Somerset Council,80055082,LM6,Nursing Care,P03,Wellbeing,CARE FIRST CARE HOMES LTD,04/01/2012,536
Bath & North East Somerset Council,80055082,LM6,Nursing Care,P03,Wellbeing,CARE FIRST CARE HOMES LTD,04/01/2012,536
Bath & North East Somerset Council,80055093,LM6,Nursing Care,P03,Wellbeing,CEDAR CARE HOMES LTD,04/01/2012,536
Bath & North East Somerset Council,80055093,LM6,Nursing Care,P03,Wellbeing,CEDAR CARE HOMES LTD,04/01/2012,536
Bath & North East Somerset Council,80055093,LM6,Nursing Care,P03,Wellbeing,CEDAR CARE HOMES LTD,04/01/2012,536
Bath & North East Somerset Council,80055093,LM6,Nursing Care,P03,Wellbeing,CEDAR CARE HOMES LTD,04/01/2012,536
Bath & North East Somerset Council,80055093,LM6,Nursing Care,P03,Wellbeing,CEDAR CARE HOMES LTD,04/01/2012,536
Bath & North East Somerset Council,80055093,LM6,Nursing Care,P03,Wellbeing,CEDAR CARE HOMES LTD,04/01/2012,536
Bath & North East Somerset Council,80055093,LM6,Nursing Care,P03,Wellbeing,CEDAR CARE HOMES LTD,04/01/2012,536
Bath & North East Somerset Council,80055093,LM6,Nursing Care,P03,Wellbeing,CEDAR CARE HOMES LTD,04/01/2012,536
Bath & North East Somerset Council,80055093,LM6,Nursing Care,P03,Wellbeing,CEDAR CARE HOMES LTD,04/01/2012,536
Bath & North East Somerset Council,80055093,LM6,Nursing Care,P03,Wellbeing,CEDAR CARE HOMES LTD,04/01/2012,536
Bath & North East Somerset Council,80055093,LM6,Nursing Care,P03,Wellbeing,CEDAR CARE HOMES LTD,04/01/2012,536
Bath & North East Somerset Council,80055093,LM6,Nursing Care,P03,Wellbeing,CEDAR CARE HOMES LTD,04/01/2012,536
Bath & North East Somerset Council,80055093,LM6,Nursing Care,P03,Wellbeing,CEDAR CARE HOMES LTD,04/01/2012,536
Bath & North East Somerset Council,80055093,LM6,Nursing Care,P03,Wellbeing,CEDAR CARE HOMES LTD,04/01/2012,536
Bath & North East Somerset Council,80055093,LM6,Nursing Care,P03,Wellbeing,CEDAR CARE HOMES LTD,04/01/2012,536
Bath & North East Somerset Council,80055093,LM6,Nursing Care,P03,Wellbeing,CEDAR CARE HOMES LTD,04/01/2012,536
Bath & North East Somerset Council,80055093,LM6,Nursing Care,P03,Wellbeing,CEDAR CARE HOMES LTD,04/01/2012,536
Bath & North East Somerset Council,80055093,LM6,Nursing Care,P03,Wellbeing,CEDAR CARE HOMES LTD,04/01/2012,536
Bath & North East Somerset Council,80055099,LM6,Nursing Care,P03,Wellbeing,PETER ALLEN INVESTMENTS LTD NO.1 ACCOUNT,04/01/2012,536
Bath & North East Somerset Council,80055099,LM6,Nursing Care,P03,Wellbeing,PETER ALLEN INVESTMENTS LTD NO.1 ACCOUNT,04/01/2012,536
Bath & North East Somerset Council,80055121,LM3,Residential Care,P03,Wellbeing,AVERY HOMES CHIPPENHAM,04/01/2012,536
Bath & North East Somerset Council,80055121,LM3,Residential Care,P03,Wellbeing,AVERY HOMES CHIPPENHAM,04/01/2012,536
Bath & North East Somerset Council,80055132,LM6,Nursing Care,P03,Wellbeing,FOUR SEASONS EVEDALE LTD WHITCHURCH,04/01/2012,536
Bath & North East Somerset Council,80055132,LM6,Nursing Care,P03,Wellbeing,FOUR SEASONS EVEDALE LTD WHITCHURCH,04/01/2012,536
Bath & North East Somerset Council,80055132,LM6,Nursing Care,P03,Wellbeing,FOUR SEASONS EVEDALE LTD WHITCHURCH,04/01/2012,536
Bath & North East Somerset Council,80055132,LM6,Nursing Care,P03,Wellbeing,FOUR SEASONS EVEDALE LTD WHITCHURCH,04/01/2012,536
Bath & North East Somerset Council,80055132,LM6,Nursing Care,P03,Wellbeing,FOUR SEASONS EVEDALE LTD WHITCHURCH,04/01/2012,536
Bath & North East Somerset Council,80055132,LM6,Nursing Care,P03,Wellbeing,FOUR SEASONS EVEDALE LTD WHITCHURCH,04/01/2012,536
Bath & North East Somerset Council,80055132,LM6,Nursing Care,P03,Wellbeing,FOUR SEASONS EVEDALE LTD WHITCHURCH,04/01/2012,536
Bath & North East Somerset Council,80055132,LM6,Nursing Care,P03,Wellbeing,FOUR SEASONS EVEDALE LTD WHITCHURCH,04/01/2012,536
Bath & North East Somerset Council,80055132,LM6,Nursing Care,P03,Wellbeing,FOUR SEASONS EVEDALE LTD WHITCHURCH,04/01/2012,536
Bath & North East Somerset Council,80055132,LM6,Nursing Care,P03,Wellbeing,FOUR SEASONS EVEDALE LTD WHITCHURCH,04/01/2012,536
Bath & North East Somerset Council,80055132,LM6,Nursing Care,P03,Wellbeing,FOUR SEASONS EVEDALE LTD WHITCHURCH,04/01/2012,536
Bath & North East Somerset Council,80055132,LM6,Nursing Care,P03,Wellbeing,FOUR SEASONS EVEDALE LTD WHITCHURCH,04/01/2012,536
Bath & North East Somerset Council,80055132,LM6,Nursing Care,P03,Wellbeing,FOUR SEASONS EVEDALE LTD WHITCHURCH,04/01/2012,536
Bath & North East Somerset Council,80055132,LM6,Nursing Care,P03,Wellbeing,FOUR SEASONS EVEDALE LTD WHITCHURCH,04/01/2012,536
Bath & North East Somerset Council,80055132,LM6,Nursing Care,P03,Wellbeing,FOUR SEASONS EVEDALE LTD WHITCHURCH,04/01/2012,536
Bath & North East Somerset Council,80055132,LM6,Nursing Care,P03,Wellbeing,FOUR SEASONS EVEDALE LTD WHITCHURCH,04/01/2012,536
Bath & North East Somerset Council,80055132,LM6,Nursing Care,P03,Wellbeing,FOUR SEASONS EVEDALE LTD WHITCHURCH,04/01/2012,536
Bath & North East Somerset Council,80055132,LM6,Nursing Care,P03,Wellbeing,FOUR SEASONS EVEDALE LTD WHITCHURCH,04/01/2012,536
Bath & North East Somerset Council,80055132,LM6,Nursing Care,P03,Wellbeing,FOUR SEASONS EVEDALE LTD WHITCHURCH,04/01/2012,536
Bath & North East Somerset Council,80055132,LM6,Nursing Care,P03,Wellbeing,FOUR SEASONS EVEDALE LTD WHITCHURCH,04/01/2012,536
Bath & North East Somerset Council,80055132,LM6,Nursing Care,P03,Wellbeing,FOUR SEASONS EVEDALE LTD WHITCHURCH,04/01/2012,536
Bath & North East Somerset Council,80055132,LM6,Nursing Care,P03,Wellbeing,FOUR SEASONS EVEDALE LTD WHITCHURCH,04/01/2012,536
Bath & North East Somerset Council,80055132,LM6,Nursing Care,P03,Wellbeing,FOUR SEASONS EVEDALE LTD WHITCHURCH,04/01/2012,536
Bath & North East Somerset Council,80055133,LM6,Nursing Care,P03,Wellbeing,ADIEMUS CARE LTD - T/A WICKWAR,04/01/2012,536
Bath & North East Somerset Council,80055133,LM6,Nursing Care,P03,Wellbeing,ADIEMUS CARE LTD - T/A WICKWAR,04/01/2012,536
Bath & North East Somerset Council,80055161,LL3,Supported Living,P03,Wellbeing,SUPPORTED INDEPENDENCE,04/01/2012,539.43
Bath & North East Somerset Council,80055161,LL3,Supported Living,P03,Wellbeing,SUPPORTED INDEPENDENCE,04/01/2012,539.43
Bath & North East Somerset Council,80055325,PG1,Rent Allowances,P07,Community Resources,REDACTED,04/01/2012,542.32
Bath & North East Somerset Council,80055012,LM3,Residential Care,P03,Wellbeing,MANOR HOUSE,04/01/2012,546.05
Bath & North East Somerset Council,80055012,LM3,Residential Care,P03,Wellbeing,MANOR HOUSE,04/01/2012,546.05
Bath & North East Somerset Council,80055089,LM6,Nursing Care,P03,Wellbeing,CEDAR PARK NURSING HOME,04/01/2012,547
Bath & North East Somerset Council,80055089,LM6,Nursing Care,P03,Wellbeing,CEDAR PARK NURSING HOME,04/01/2012,547
Bath & North East Somerset Council,80055170,LM3,Residential Care,P03,Wellbeing,ANCHOR TRUST,04/01/2012,550
Bath & North East Somerset Council,80055170,LM3,Residential Care,P03,Wellbeing,ANCHOR TRUST,04/01/2012,550
Bath & North East Somerset Council,80055044,LM3,Residential Care,P03,Wellbeing,BELMONT VILLA RESIDENTIAL NURSING HOME LTD,04/01/2012,550
Bath & North East Somerset Council,80055044,LM3,Residential Care,P03,Wellbeing,BELMONT VILLA RESIDENTIAL NURSING HOME LTD,04/01/2012,550
Bath & North East Somerset Council,80055135,LM6,Nursing Care,P03,Wellbeing,BIRKDALE PARK NURSING HOME,04/01/2012,550
Bath & North East Somerset Council,80055135,LM6,Nursing Care,P03,Wellbeing,BIRKDALE PARK NURSING HOME,04/01/2012,550
Bath & North East Somerset Council,10639907,DB1,Agency Staff,P02,"Early Years, Children & Youth",ROYAL UNITED HOSPITAL NHS TRUST,04/01/2012,551.87
Bath & North East Somerset Council,80055140,LM6,Nursing Care,P03,Wellbeing,GRAND CROSS LTD RE KINGSWOOD COURT,04/01/2012,553.3
Bath & North East Somerset Council,80055140,LM6,Nursing Care,P03,Wellbeing,GRAND CROSS LTD RE KINGSWOOD COURT,04/01/2012,553.3
Bath & North East Somerset Council,10640747,LA7,Purchases for Resale,P06,Sustainable Development,DROYT PRODUCTS LTD,04/01/2012,553.36
Bath & North East Somerset Council,80055425,PG1,Rent Allowances,P07,Community Resources,REDACTED,04/01/2012,553.84
Bath & North East Somerset Council,80055328,PG1,Rent Allowances,P07,Community Resources,REDACTED,04/01/2012,553.84
Bath & North East Somerset Council,80055142,LM6,Nursing Care,P03,Wellbeing,BARCHESTER HEALTHCARE HOMES LTD,04/01/2012,555
Bath & North East Somerset Council,80055142,LM6,Nursing Care,P03,Wellbeing,BARCHESTER HEALTHCARE HOMES LTD,04/01/2012,555
Bath & North East Somerset Council,80055131,LM3,Residential Care,P03,Wellbeing,PILGRIM HOMES,04/01/2012,557
Bath & North East Somerset Council,80055131,LM3,Residential Care,P03,Wellbeing,PILGRIM HOMES,04/01/2012,557
Bath & North East Somerset Council,80055131,LM3,Residential Care,P03,Wellbeing,PILGRIM HOMES,04/01/2012,557
Bath & North East Somerset Council,80055131,LM3,Residential Care,P03,Wellbeing,PILGRIM HOMES,04/01/2012,557
Bath & North East Somerset Council,80055131,LM3,Residential Care,P03,Wellbeing,PILGRIM HOMES,04/01/2012,557
Bath & North East Somerset Council,80055392,PG1,Rent Allowances,P07,Community Resources,REDACTED,04/01/2012,558.48
Bath & North East Somerset Council,80055139,LM6,Nursing Care,P03,Wellbeing,WARMLEY HOUSE,04/01/2012,560.7
Bath & North East Somerset Council,80055139,LM6,Nursing Care,P03,Wellbeing,WARMLEY HOUSE,04/01/2012,560.7
Bath & North East Somerset Council,80055029,LM6,Nursing Care,P03,Wellbeing,STANSHAWES CARE HOME,04/01/2012,560.7
Bath & North East Somerset Council,80055029,LM6,Nursing Care,P03,Wellbeing,STANSHAWES CARE HOME,04/01/2012,560.7
Bath & North East Somerset Council,10640580,HA4,Responsive Maintenance PCB,P07,Community Resources,BRAY & SLAUGHTER,04/01/2012,562
Bath & North East Somerset Council,80055086,LM6,Nursing Care,P03,Wellbeing,BUPACARE SERVICE BACS RECEIPTS,04/01/2012,565.8
Bath & North East Somerset Council,80055086,LM6,Nursing Care,P03,Wellbeing,BUPACARE SERVICE BACS RECEIPTS,04/01/2012,565.8
Bath & North East Somerset Council,80054989,LM6,Nursing Care,P03,Wellbeing,CHOLWELL HOUSE NURSING HOME,04/01/2012,566
Bath & North East Somerset Council,80054989,LM6,Nursing Care,P03,Wellbeing,CHOLWELL HOUSE NURSING HOME,04/01/2012,566
Bath & North East Somerset Council,80055168,LM3,Residential Care,P03,Wellbeing,ORCHARD VALE TRUST,04/01/2012,567.05
Bath & North East Somerset Council,80055168,LM3,Residential Care,P03,Wellbeing,ORCHARD VALE TRUST,04/01/2012,567.05
Bath & North East Somerset Council,80054989,LM6,Nursing Care,P03,Wellbeing,CHOLWELL HOUSE NURSING HOME,04/01/2012,569
Bath & North East Somerset Council,80054989,LM6,Nursing Care,P03,Wellbeing,CHOLWELL HOUSE NURSING HOME,04/01/2012,569
Bath & North East Somerset Council,80054989,LM6,Nursing Care,P03,Wellbeing,CHOLWELL HOUSE NURSING HOME,04/01/2012,569
Bath & North East Somerset Council,80054989,LM6,Nursing Care,P03,Wellbeing,CHOLWELL HOUSE NURSING HOME,04/01/2012,569
Bath & North East Somerset Council,80054989,LM6,Nursing Care,P03,Wellbeing,CHOLWELL HOUSE NURSING HOME,04/01/2012,569
Bath & North East Somerset Council,80054989,LM6,Nursing Care,P03,Wellbeing,CHOLWELL HOUSE NURSING HOME,04/01/2012,569
Bath & North East Somerset Council,80055078,LM6,Nursing Care,P03,Wellbeing,CRANHILL NURSING HOME,04/01/2012,569
Bath & North East Somerset Council,80055078,LM6,Nursing Care,P03,Wellbeing,CRANHILL NURSING HOME,04/01/2012,569
Bath & North East Somerset Council,80055089,LM6,Nursing Care,P03,Wellbeing,CEDAR PARK NURSING HOME,04/01/2012,569
Bath & North East Somerset Council,80055089,LM6,Nursing Care,P03,Wellbeing,CEDAR PARK NURSING HOME,04/01/2012,569
Bath & North East Somerset Council,80055089,LM6,Nursing Care,P03,Wellbeing,CEDAR PARK NURSING HOME,04/01/2012,569
Bath & North East Somerset Council,80055089,LM6,Nursing Care,P03,Wellbeing,CEDAR PARK NURSING HOME,04/01/2012,569
Bath & North East Somerset Council,80055089,LM6,Nursing Care,P03,Wellbeing,CEDAR PARK NURSING HOME,04/01/2012,569
Bath & North East Somerset Council,80055089,LM6,Nursing Care,P03,Wellbeing,CEDAR PARK NURSING HOME,04/01/2012,569
Bath & North East Somerset Council,80055089,LM6,Nursing Care,P03,Wellbeing,CEDAR PARK NURSING HOME,04/01/2012,569
Bath & North East Somerset Council,80055089,LM6,Nursing Care,P03,Wellbeing,CEDAR PARK NURSING HOME,04/01/2012,569
Bath & North East Somerset Council,80055089,LM6,Nursing Care,P03,Wellbeing,CEDAR PARK NURSING HOME,04/01/2012,569
Bath & North East Somerset Council,80055089,LM6,Nursing Care,P03,Wellbeing,CEDAR PARK NURSING HOME,04/01/2012,569
Bath & North East Somerset Council,80055089,LM6,Nursing Care,P03,Wellbeing,CEDAR PARK NURSING HOME,04/01/2012,569
Bath & North East Somerset Council,80055089,LM6,Nursing Care,P03,Wellbeing,CEDAR PARK NURSING HOME,04/01/2012,569
Bath & North East Somerset Council,80055134,LM6,Nursing Care,P03,Wellbeing,CULVERHAY NURSING HOME,04/01/2012,569
Bath & North East Somerset Council,80055134,LM6,Nursing Care,P03,Wellbeing,CULVERHAY NURSING HOME,04/01/2012,569
Bath & North East Somerset Council,80055134,LM6,Nursing Care,P03,Wellbeing,CULVERHAY NURSING HOME,04/01/2012,569
Bath & North East Somerset Council,80055134,LM6,Nursing Care,P03,Wellbeing,CULVERHAY NURSING HOME,04/01/2012,569
Bath & North East Somerset Council,80055134,LM6,Nursing Care,P03,Wellbeing,CULVERHAY NURSING HOME,04/01/2012,569
Bath & North East Somerset Council,80055134,LM6,Nursing Care,P03,Wellbeing,CULVERHAY NURSING HOME,04/01/2012,569
Bath & North East Somerset Council,80055134,LM6,Nursing Care,P03,Wellbeing,CULVERHAY NURSING HOME,04/01/2012,569
Bath & North East Somerset Council,80055134,LM6,Nursing Care,P03,Wellbeing,CULVERHAY NURSING HOME,04/01/2012,569
Bath & North East Somerset Council,80055134,LM6,Nursing Care,P03,Wellbeing,CULVERHAY NURSING HOME,04/01/2012,569
Bath & North East Somerset Council,80055134,LM6,Nursing Care,P03,Wellbeing,CULVERHAY NURSING HOME,04/01/2012,569
Bath & North East Somerset Council,80055134,LM6,Nursing Care,P03,Wellbeing,CULVERHAY NURSING HOME,04/01/2012,569
Bath & North East Somerset Council,80055134,LM6,Nursing Care,P03,Wellbeing,CULVERHAY NURSING HOME,04/01/2012,569
Bath & North East Somerset Council,80055134,LM6,Nursing Care,P03,Wellbeing,CULVERHAY NURSING HOME,04/01/2012,569
Bath & North East Somerset Council,80055134,LM6,Nursing Care,P03,Wellbeing,CULVERHAY NURSING HOME,04/01/2012,569
Bath & North East Somerset Council,80055134,LM6,Nursing Care,P03,Wellbeing,CULVERHAY NURSING HOME,04/01/2012,569
Bath & North East Somerset Council,80055134,LM6,Nursing Care,P03,Wellbeing,CULVERHAY NURSING HOME,04/01/2012,569
Bath & North East Somerset Council,80055134,LM6,Nursing Care,P03,Wellbeing,CULVERHAY NURSING HOME,04/01/2012,569
Bath & North East Somerset Council,80055134,LM6,Nursing Care,P03,Wellbeing,CULVERHAY NURSING HOME,04/01/2012,569
Bath & North East Somerset Council,80055134,LM6,Nursing Care,P03,Wellbeing,CULVERHAY NURSING HOME,04/01/2012,569
Bath & North East Somerset Council,80055134,LM6,Nursing Care,P03,Wellbeing,CULVERHAY NURSING HOME,04/01/2012,569
Bath & North East Somerset Council,80055134,LM6,Nursing Care,P03,Wellbeing,CULVERHAY NURSING HOME,04/01/2012,569
Bath & North East Somerset Council,80055134,LM6,Nursing Care,P03,Wellbeing,CULVERHAY NURSING HOME,04/01/2012,569
Bath & North East Somerset Council,80055138,LM6,Nursing Care,P03,Wellbeing,HC1 LTD RE CATHERINE HOUSE,04/01/2012,569
Bath & North East Somerset Council,80055138,LM6,Nursing Care,P03,Wellbeing,HC1 LTD RE CATHERINE HOUSE,04/01/2012,569
Bath & North East Somerset Council,80055138,LM6,Nursing Care,P03,Wellbeing,HC1 LTD RE CATHERINE HOUSE,04/01/2012,569
Bath & North East Somerset Council,80055138,LM6,Nursing Care,P03,Wellbeing,HC1 LTD RE CATHERINE HOUSE,04/01/2012,569
Bath & North East Somerset Council,80055138,LM6,Nursing Care,P03,Wellbeing,HC1 LTD RE CATHERINE HOUSE,04/01/2012,569
Bath & North East Somerset Council,80055138,LM6,Nursing Care,P03,Wellbeing,HC1 LTD RE CATHERINE HOUSE,04/01/2012,569
Bath & North East Somerset Council,80055138,LM6,Nursing Care,P03,Wellbeing,HC1 LTD RE CATHERINE HOUSE,04/01/2012,569
Bath & North East Somerset Council,80055138,LM6,Nursing Care,P03,Wellbeing,HC1 LTD RE CATHERINE HOUSE,04/01/2012,569
Bath & North East Somerset Council,80055138,LM6,Nursing Care,P03,Wellbeing,HC1 LTD RE CATHERINE HOUSE,04/01/2012,569
Bath & North East Somerset Council,80055138,LM6,Nursing Care,P03,Wellbeing,HC1 LTD RE CATHERINE HOUSE,04/01/2012,569
Bath & North East Somerset Council,80055142,LM6,Nursing Care,P03,Wellbeing,BARCHESTER HEALTHCARE HOMES LTD,04/01/2012,569
Bath & North East Somerset Council,80055142,LM6,Nursing Care,P03,Wellbeing,BARCHESTER HEALTHCARE HOMES LTD,04/01/2012,569
Bath & North East Somerset Council,80055142,LM6,Nursing Care,P03,Wellbeing,BARCHESTER HEALTHCARE HOMES LTD,04/01/2012,569
Bath & North East Somerset Council,80055142,LM6,Nursing Care,P03,Wellbeing,BARCHESTER HEALTHCARE HOMES LTD,04/01/2012,569
Bath & North East Somerset Council,80055142,LM6,Nursing Care,P03,Wellbeing,BARCHESTER HEALTHCARE HOMES LTD,04/01/2012,569
Bath & North East Somerset Council,80055142,LM6,Nursing Care,P03,Wellbeing,BARCHESTER HEALTHCARE HOMES LTD,04/01/2012,569
Bath & North East Somerset Council,80055142,LM6,Nursing Care,P03,Wellbeing,BARCHESTER HEALTHCARE HOMES LTD,04/01/2012,569
Bath & North East Somerset Council,80055142,LM6,Nursing Care,P03,Wellbeing,BARCHESTER HEALTHCARE HOMES LTD,04/01/2012,569
Bath & North East Somerset Council,80055146,LM6,Nursing Care,P03,Wellbeing,HEATHER HOUSE,04/01/2012,569
Bath & North East Somerset Council,80055146,LM6,Nursing Care,P03,Wellbeing,HEATHER HOUSE,04/01/2012,569
Bath & North East Somerset Council,80055146,LM6,Nursing Care,P03,Wellbeing,HEATHER HOUSE,04/01/2012,569
Bath & North East Somerset Council,80055146,LM6,Nursing Care,P03,Wellbeing,HEATHER HOUSE,04/01/2012,569
Bath & North East Somerset Council,80055147,LM6,Nursing Care,P03,Wellbeing,LARKHALL SPRINGS NURSING HOME,04/01/2012,569
Bath & North East Somerset Council,80055147,LM6,Nursing Care,P03,Wellbeing,LARKHALL SPRINGS NURSING HOME,04/01/2012,569
Bath & North East Somerset Council,80055147,LM6,Nursing Care,P03,Wellbeing,LARKHALL SPRINGS NURSING HOME,04/01/2012,569
Bath & North East Somerset Council,80055147,LM6,Nursing Care,P03,Wellbeing,LARKHALL SPRINGS NURSING HOME,04/01/2012,569
Bath & North East Somerset Council,80055147,LM6,Nursing Care,P03,Wellbeing,LARKHALL SPRINGS NURSING HOME,04/01/2012,569
Bath & North East Somerset Council,80055147,LM6,Nursing Care,P03,Wellbeing,LARKHALL SPRINGS NURSING HOME,04/01/2012,569
Bath & North East Somerset Council,80055147,LM6,Nursing Care,P03,Wellbeing,LARKHALL SPRINGS NURSING HOME,04/01/2012,569
Bath & North East Somerset Council,80055147,LM6,Nursing Care,P03,Wellbeing,LARKHALL SPRINGS NURSING HOME,04/01/2012,569
Bath & North East Somerset Council,80055150,LM3,Residential Care,P03,Wellbeing,FERFOOT LTD,04/01/2012,569
Bath & North East Somerset Council,80055150,LM3,Residential Care,P03,Wellbeing,FERFOOT LTD,04/01/2012,569
Bath & North East Somerset Council,80055152,LM6,Nursing Care,P03,Wellbeing,MIMOSA HEALTHCARE,04/01/2012,569
Bath & North East Somerset Council,80055152,LM6,Nursing Care,P03,Wellbeing,MIMOSA HEALTHCARE,04/01/2012,569
Bath & North East Somerset Council,80055167,LM6,Nursing Care,P03,Wellbeing,BRISTOL AGE CARE,04/01/2012,569
Bath & North East Somerset Council,80055167,LM6,Nursing Care,P03,Wellbeing,BRISTOL AGE CARE,04/01/2012,569
Bath & North East Somerset Council,80055167,LM6,Nursing Care,P03,Wellbeing,BRISTOL AGE CARE,04/01/2012,569
Bath & North East Somerset Council,80055167,LM6,Nursing Care,P03,Wellbeing,BRISTOL AGE CARE,04/01/2012,569
Bath & North East Somerset Council,80054993,LM6,Nursing Care,P03,Wellbeing,EUROPEAN CARE SW LTD - REDACTED,04/01/2012,569
Bath & North East Somerset Council,80054993,LM6,Nursing Care,P03,Wellbeing,EUROPEAN CARE SW LTD - REDACTED,04/01/2012,569
Bath & North East Somerset Council,80054993,LM6,Nursing Care,P03,Wellbeing,EUROPEAN CARE SW LTD - REDACTED,04/01/2012,569
Bath & North East Somerset Council,80054993,LM6,Nursing Care,P03,Wellbeing,EUROPEAN CARE SW LTD - REDACTED,04/01/2012,569
Bath & North East Somerset Council,80054993,LM6,Nursing Care,P03,Wellbeing,EUROPEAN CARE SW LTD - REDACTED,04/01/2012,569
Bath & North East Somerset Council,80054993,LM6,Nursing Care,P03,Wellbeing,EUROPEAN CARE SW LTD - REDACTED,04/01/2012,569
Bath & North East Somerset Council,80054993,LM6,Nursing Care,P03,Wellbeing,EUROPEAN CARE SW LTD - REDACTED,04/01/2012,569
Bath & North East Somerset Council,80054993,LM6,Nursing Care,P03,Wellbeing,EUROPEAN CARE SW LTD - REDACTED,04/01/2012,569
Bath & North East Somerset Council,80055027,LM6,Nursing Care,P03,Wellbeing,CEDAR CARE HOMES LTD,04/01/2012,569
Bath & North East Somerset Council,80055027,LM6,Nursing Care,P03,Wellbeing,CEDAR CARE HOMES LTD,04/01/2012,569
Bath & North East Somerset Council,80055027,LM6,Nursing Care,P03,Wellbeing,CEDAR CARE HOMES LTD,04/01/2012,569
Bath & North East Somerset Council,80055027,LM6,Nursing Care,P03,Wellbeing,CEDAR CARE HOMES LTD,04/01/2012,569
Bath & North East Somerset Council,80055027,LM6,Nursing Care,P03,Wellbeing,CEDAR CARE HOMES LTD,04/01/2012,569
Bath & North East Somerset Council,80055027,LM6,Nursing Care,P03,Wellbeing,CEDAR CARE HOMES LTD,04/01/2012,569
Bath & North East Somerset Council,80055049,LM6,Nursing Care,P03,Wellbeing,T C CAREHOME LTD,04/01/2012,569
Bath & North East Somerset Council,80055049,LM6,Nursing Care,P03,Wellbeing,T C CAREHOME LTD,04/01/2012,569
Bath & North East Somerset Council,80055052,LM6,Nursing Care,P03,Wellbeing,BARKER CHEMICALS LTD T/A ST TERESA'S NH,04/01/2012,569
Bath & North East Somerset Council,80055052,LM6,Nursing Care,P03,Wellbeing,BARKER CHEMICALS LTD T/A ST TERESA'S NH,04/01/2012,569
Bath & North East Somerset Council,80055052,LM6,Nursing Care,P03,Wellbeing,BARKER CHEMICALS LTD T/A ST TERESA'S NH,04/01/2012,569
Bath & North East Somerset Council,80055052,LM6,Nursing Care,P03,Wellbeing,BARKER CHEMICALS LTD T/A ST TERESA'S NH,04/01/2012,569
Bath & North East Somerset Council,80055052,LM6,Nursing Care,P03,Wellbeing,BARKER CHEMICALS LTD T/A ST TERESA'S NH,04/01/2012,569
Bath & North East Somerset Council,80055052,LM6,Nursing Care,P03,Wellbeing,BARKER CHEMICALS LTD T/A ST TERESA'S NH,04/01/2012,569
Bath & North East Somerset Council,80055052,LM6,Nursing Care,P03,Wellbeing,BARKER CHEMICALS LTD T/A ST TERESA'S NH,04/01/2012,569
Bath & North East Somerset Council,80055052,LM6,Nursing Care,P03,Wellbeing,BARKER CHEMICALS LTD T/A ST TERESA'S NH,04/01/2012,569
Bath & North East Somerset Council,80055052,LM6,Nursing Care,P03,Wellbeing,BARKER CHEMICALS LTD T/A ST TERESA'S NH,04/01/2012,569
Bath & North East Somerset Council,80055052,LM6,Nursing Care,P03,Wellbeing,BARKER CHEMICALS LTD T/A ST TERESA'S NH,04/01/2012,569
Bath & North East Somerset Council,80055052,LM6,Nursing Care,P03,Wellbeing,BARKER CHEMICALS LTD T/A ST TERESA'S NH,04/01/2012,569
Bath & North East Somerset Council,80055052,LM6,Nursing Care,P03,Wellbeing,BARKER CHEMICALS LTD T/A ST TERESA'S NH,04/01/2012,569
Bath & North East Somerset Council,80055093,LM6,Nursing Care,P03,Wellbeing,CEDAR CARE HOMES LTD,04/01/2012,569
Bath & North East Somerset Council,80055093,LM6,Nursing Care,P03,Wellbeing,CEDAR CARE HOMES LTD,04/01/2012,569
Bath & North East Somerset Council,80055093,LM6,Nursing Care,P03,Wellbeing,CEDAR CARE HOMES LTD,04/01/2012,569
Bath & North East Somerset Council,80055093,LM6,Nursing Care,P03,Wellbeing,CEDAR CARE HOMES LTD,04/01/2012,569
Bath & North East Somerset Council,80055132,LM6,Nursing Care,P03,Wellbeing,FOUR SEASONS EVEDALE LTD WHITCHURCH,04/01/2012,569
Bath & North East Somerset Council,80055132,LM6,Nursing Care,P03,Wellbeing,FOUR SEASONS EVEDALE LTD WHITCHURCH,04/01/2012,569
Bath & North East Somerset Council,80055132,LM6,Nursing Care,P03,Wellbeing,FOUR SEASONS EVEDALE LTD WHITCHURCH,04/01/2012,569
Bath & North East Somerset Council,80055132,LM6,Nursing Care,P03,Wellbeing,FOUR SEASONS EVEDALE LTD WHITCHURCH,04/01/2012,569
Bath & North East Somerset Council,10639852,LF2,Photocopying,Z98,West of England Partnership,PORTRAYAL LTD,04/01/2012,570.74
Bath & North East Somerset Council,80055159,LM3,Residential Care,P03,Wellbeing,FREEWAYS TRUST LTD,04/01/2012,572.3
Bath & North East Somerset Council,80055159,LM3,Residential Care,P03,Wellbeing,FREEWAYS TRUST LTD,04/01/2012,572.3
Bath & North East Somerset Council,80055034,LM6,Nursing Care,P03,Wellbeing,BRIGHTBOW LODGE,04/01/2012,573.33
Bath & North East Somerset Council,80055034,LM6,Nursing Care,P03,Wellbeing,BRIGHTBOW LODGE,04/01/2012,573.33
Bath & North East Somerset Council,80055045,LM6,Nursing Care,P03,Wellbeing,WESTCROFT CARE LTD,04/01/2012,575
Bath & North East Somerset Council,80055045,LM6,Nursing Care,P03,Wellbeing,WESTCROFT CARE LTD,04/01/2012,575
Bath & North East Somerset Council,10641419,LA1,Equipment Purchase,P03,Wellbeing,BRITISH TELECOM,04/01/2012,577.63
Bath & North East Somerset Council,80055153,LM3,Residential Care,P03,Wellbeing,6 THE AVENUE -KEYNSHAM MENCAP,04/01/2012,577.87
Bath & North East Somerset Council,80055153,LM3,Residential Care,P03,Wellbeing,6 THE AVENUE -KEYNSHAM MENCAP,04/01/2012,577.87
Bath & North East Somerset Council,80055153,LM3,Residential Care,P03,Wellbeing,6 THE AVENUE -KEYNSHAM MENCAP,04/01/2012,577.87
Bath & North East Somerset Council,80055153,LM3,Residential Care,P03,Wellbeing,6 THE AVENUE -KEYNSHAM MENCAP,04/01/2012,577.87
Bath & North East Somerset Council,80055153,LM3,Residential Care,P03,Wellbeing,6 THE AVENUE -KEYNSHAM MENCAP,04/01/2012,577.87
Bath & North East Somerset Council,80055153,LM3,Residential Care,P03,Wellbeing,6 THE AVENUE -KEYNSHAM MENCAP,04/01/2012,577.87
Bath & North East Somerset Council,80055153,LM3,Residential Care,P03,Wellbeing,6 THE AVENUE -KEYNSHAM MENCAP,04/01/2012,577.87
Bath & North East Somerset Council,80055153,LM3,Residential Care,P03,Wellbeing,6 THE AVENUE -KEYNSHAM MENCAP,04/01/2012,577.87
Bath & North East Somerset Council,80055153,LM3,Residential Care,P03,Wellbeing,6 THE AVENUE -KEYNSHAM MENCAP,04/01/2012,577.87
Bath & North East Somerset Council,80055153,LM3,Residential Care,P03,Wellbeing,6 THE AVENUE -KEYNSHAM MENCAP,04/01/2012,577.87
Bath & North East Somerset Council,80055149,LM6,Nursing Care,P03,Wellbeing,EUROPEAN CARE (UK) LTD - REDACTED,04/01/2012,582
Bath & North East Somerset Council,80055149,LM6,Nursing Care,P03,Wellbeing,EUROPEAN CARE (UK) LTD - REDACTED,04/01/2012,582
Bath & North East Somerset Council,80055161,LL3,Supported Living,P03,Wellbeing,SUPPORTED INDEPENDENCE,04/01/2012,582.63
Bath & North East Somerset Council,80055161,LL3,Supported Living,P03,Wellbeing,SUPPORTED INDEPENDENCE,04/01/2012,582.63
Bath & North East Somerset Council,80054974,LM6,Nursing Care,P03,Wellbeing,CARE FIRST CARE HOMES LTD,04/01/2012,584.7
Bath & North East Somerset Council,80054974,LM6,Nursing Care,P03,Wellbeing,CARE FIRST CARE HOMES LTD,04/01/2012,584.7
Bath & North East Somerset Council,10641476,LJ4,Contracts,P05,Neighbourhoods,BATHEASTON PARISH COUNCIL,04/01/2012,585.17
Bath & North East Somerset Council,80055051,LM6,Nursing Care,P03,Wellbeing,WOODLANDS & HILL BROW LTD,04/01/2012,588.05
Bath & North East Somerset Council,80055051,LM6,Nursing Care,P03,Wellbeing,WOODLANDS & HILL BROW LTD,04/01/2012,588.05
Bath & North East Somerset Council,80055089,LM6,Nursing Care,P03,Wellbeing,CEDAR PARK NURSING HOME,04/01/2012,590
Bath & North East Somerset Council,80055089,LM6,Nursing Care,P03,Wellbeing,CEDAR PARK NURSING HOME,04/01/2012,590
Bath & North East Somerset Council,80055066,LM6,Nursing Care,P03,Wellbeing,SOUTHERN CROSS CARE LTD,04/01/2012,591
Bath & North East Somerset Council,80055066,LM6,Nursing Care,P03,Wellbeing,SOUTHERN CROSS CARE LTD,04/01/2012,591
Bath & North East Somerset Council,80055088,LM6,Nursing Care,P03,Wellbeing,BUPACARE SERVICES BACS RECEIPTS,04/01/2012,591
Bath & North East Somerset Council,80055088,LM6,Nursing Care,P03,Wellbeing,BUPACARE SERVICES BACS RECEIPTS,04/01/2012,591
Bath & North East Somerset Council,80055093,LM6,Nursing Care,P03,Wellbeing,CEDAR CARE HOMES LTD,04/01/2012,591
Bath & North East Somerset Council,80055093,LM6,Nursing Care,P03,Wellbeing,CEDAR CARE HOMES LTD,04/01/2012,591
Bath & North East Somerset Council,80055028,LM6,Nursing Care,P03,Wellbeing,EXTRAFRIEND LTD,04/01/2012,592.08
Bath & North East Somerset Council,80055028,LM6,Nursing Care,P03,Wellbeing,EXTRAFRIEND LTD,04/01/2012,592.08
Bath & North East Somerset Council,10641480,HN1,Electricity,P01,Transport,SOUTHERN ELECTRIC PLC,04/01/2012,592.12
Bath & North East Somerset Council,80054995,LL3,Supported Living,P03,Wellbeing,HOME FARM TRUST,04/01/2012,593.3
Bath & North East Somerset Council,80054995,LL3,Supported Living,P03,Wellbeing,HOME FARM TRUST,04/01/2012,593.3
Bath & North East Somerset Council,80055147,LM6,Nursing Care,P03,Wellbeing,LARKHALL SPRINGS NURSING HOME,04/01/2012,594
Bath & North East Somerset Council,80055147,LM6,Nursing Care,P03,Wellbeing,LARKHALL SPRINGS NURSING HOME,04/01/2012,594
Bath & North East Somerset Council,80055033,LM3,Residential Care,P03,Wellbeing,DEVON SHELTERED HOMES TRUST - REDACTED,04/01/2012,594.35
Bath & North East Somerset Council,80055033,LM3,Residential Care,P03,Wellbeing,DEVON SHELTERED HOMES TRUST - REDACTED,04/01/2012,594.35
Bath & North East Somerset Council,80055142,LM6,Nursing Care,P03,Wellbeing,BARCHESTER HEALTHCARE HOMES LTD,04/01/2012,596
Bath & North East Somerset Council,80055142,LM6,Nursing Care,P03,Wellbeing,BARCHESTER HEALTHCARE HOMES LTD,04/01/2012,596
Bath & North East Somerset Council,80055104,LM6,Nursing Care,P03,Wellbeing,CEDARS CARE (WINSCOMBE HALL) LTD,04/01/2012,597
Bath & North East Somerset Council,80055104,LM6,Nursing Care,P03,Wellbeing,CEDARS CARE (WINSCOMBE HALL) LTD,04/01/2012,597
Bath & North East Somerset Council,80055077,LM6,Nursing Care,P03,Wellbeing,LIFESTYLE CARE (2005) PLC,04/01/2012,597.4
Bath & North East Somerset Council,80055077,LM6,Nursing Care,P03,Wellbeing,LIFESTYLE CARE (2005) PLC,04/01/2012,597.4
Bath & North East Somerset Council,80055023,LM6,Nursing Care,P03,Wellbeing,BRIDGE CARE LTD,04/01/2012,600
Bath & North East Somerset Council,80055023,LM6,Nursing Care,P03,Wellbeing,BRIDGE CARE LTD,04/01/2012,600
Bath & North East Somerset Council,80055045,LM6,Nursing Care,P03,Wellbeing,WESTCROFT CARE LTD,04/01/2012,600
Bath & North East Somerset Council,80055045,LM6,Nursing Care,P03,Wellbeing,WESTCROFT CARE LTD,04/01/2012,600
Bath & North East Somerset Council,80055089,LM6,Nursing Care,P03,Wellbeing,CEDAR PARK NURSING HOME,04/01/2012,600
Bath & North East Somerset Council,80055089,LM6,Nursing Care,P03,Wellbeing,CEDAR PARK NURSING HOME,04/01/2012,600
Bath & North East Somerset Council,80055134,LM6,Nursing Care,P03,Wellbeing,CULVERHAY NURSING HOME,04/01/2012,600
Bath & North East Somerset Council,80055134,LM6,Nursing Care,P03,Wellbeing,CULVERHAY NURSING HOME,04/01/2012,600
Bath & North East Somerset Council,80055134,LM6,Nursing Care,P03,Wellbeing,CULVERHAY NURSING HOME,04/01/2012,600
Bath & North East Somerset Council,80055134,LM6,Nursing Care,P03,Wellbeing,CULVERHAY NURSING HOME,04/01/2012,600
Bath & North East Somerset Council,80055134,LM6,Nursing Care,P03,Wellbeing,CULVERHAY NURSING HOME,04/01/2012,600
Bath & North East Somerset Council,80055134,LM6,Nursing Care,P03,Wellbeing,CULVERHAY NURSING HOME,04/01/2012,600
Bath & North East Somerset Council,80055134,LM6,Nursing Care,P03,Wellbeing,CULVERHAY NURSING HOME,04/01/2012,600
Bath & North East Somerset Council,80055134,LM6,Nursing Care,P03,Wellbeing,CULVERHAY NURSING HOME,04/01/2012,600
Bath & North East Somerset Council,80055134,LM6,Nursing Care,P03,Wellbeing,CULVERHAY NURSING HOME,04/01/2012,600
Bath & North East Somerset Council,80055134,LM6,Nursing Care,P03,Wellbeing,CULVERHAY NURSING HOME,04/01/2012,600
Bath & North East Somerset Council,80055134,LM6,Nursing Care,P03,Wellbeing,CULVERHAY NURSING HOME,04/01/2012,600
Bath & North East Somerset Council,80055134,LM6,Nursing Care,P03,Wellbeing,CULVERHAY NURSING HOME,04/01/2012,600
Bath & North East Somerset Council,80055147,LM6,Nursing Care,P03,Wellbeing,LARKHALL SPRINGS NURSING HOME,04/01/2012,600
Bath & North East Somerset Council,80055147,LM6,Nursing Care,P03,Wellbeing,LARKHALL SPRINGS NURSING HOME,04/01/2012,600
Bath & North East Somerset Council,80055167,LM6,Nursing Care,P03,Wellbeing,BRISTOL AGE CARE,04/01/2012,600
Bath & North East Somerset Council,80055167,LM6,Nursing Care,P03,Wellbeing,BRISTOL AGE CARE,04/01/2012,600
Bath & North East Somerset Council,80055048,LM3,Residential Care,P03,Wellbeing,ST BATHENS,04/01/2012,600
Bath & North East Somerset Council,80055048,LM3,Residential Care,P03,Wellbeing,ST BATHENS,04/01/2012,600
Bath & North East Somerset Council,80055052,LM6,Nursing Care,P03,Wellbeing,BARKER CHEMICALS LTD T/A ST TERESA'S NH,04/01/2012,600
Bath & North East Somerset Council,80055052,LM6,Nursing Care,P03,Wellbeing,BARKER CHEMICALS LTD T/A ST TERESA'S NH,04/01/2012,600
Bath & North East Somerset Council,80055052,LM6,Nursing Care,P03,Wellbeing,BARKER CHEMICALS LTD T/A ST TERESA'S NH,04/01/2012,600
Bath & North East Somerset Council,80055052,LM6,Nursing Care,P03,Wellbeing,BARKER CHEMICALS LTD T/A ST TERESA'S NH,04/01/2012,600
Bath & North East Somerset Council,80055052,LM6,Nursing Care,P03,Wellbeing,BARKER CHEMICALS LTD T/A ST TERESA'S NH,04/01/2012,600
Bath & North East Somerset Council,80055052,LM6,Nursing Care,P03,Wellbeing,BARKER CHEMICALS LTD T/A ST TERESA'S NH,04/01/2012,600
Bath & North East Somerset Council,80055052,LM6,Nursing Care,P03,Wellbeing,BARKER CHEMICALS LTD T/A ST TERESA'S NH,04/01/2012,600
Bath & North East Somerset Council,80055052,LM6,Nursing Care,P03,Wellbeing,BARKER CHEMICALS LTD T/A ST TERESA'S NH,04/01/2012,600
Bath & North East Somerset Council,80055052,LM6,Nursing Care,P03,Wellbeing,BARKER CHEMICALS LTD T/A ST TERESA'S NH,04/01/2012,600
Bath & North East Somerset Council,80055052,LM6,Nursing Care,P03,Wellbeing,BARKER CHEMICALS LTD T/A ST TERESA'S NH,04/01/2012,600
Bath & North East Somerset Council,80055052,LM6,Nursing Care,P03,Wellbeing,BARKER CHEMICALS LTD T/A ST TERESA'S NH,04/01/2012,600
Bath & North East Somerset Council,80055052,LM6,Nursing Care,P03,Wellbeing,BARKER CHEMICALS LTD T/A ST TERESA'S NH,04/01/2012,600
Bath & North East Somerset Council,80055052,LM6,Nursing Care,P03,Wellbeing,BARKER CHEMICALS LTD T/A ST TERESA'S NH,04/01/2012,600
Bath & North East Somerset Council,80055052,LM6,Nursing Care,P03,Wellbeing,BARKER CHEMICALS LTD T/A ST TERESA'S NH,04/01/2012,600
Bath & North East Somerset Council,80055052,LM6,Nursing Care,P03,Wellbeing,BARKER CHEMICALS LTD T/A ST TERESA'S NH,04/01/2012,600
Bath & North East Somerset Council,80055052,LM6,Nursing Care,P03,Wellbeing,BARKER CHEMICALS LTD T/A ST TERESA'S NH,04/01/2012,600
Bath & North East Somerset Council,80055052,LM6,Nursing Care,P03,Wellbeing,BARKER CHEMICALS LTD T/A ST TERESA'S NH,04/01/2012,600
Bath & North East Somerset Council,80055052,LM6,Nursing Care,P03,Wellbeing,BARKER CHEMICALS LTD T/A ST TERESA'S NH,04/01/2012,600
Bath & North East Somerset Council,80055053,LM3,Residential Care,P03,Wellbeing,GROVE CARE LTD T/A ORIEL LODGE,04/01/2012,600
Bath & North East Somerset Council,80055053,LM3,Residential Care,P03,Wellbeing,GROVE CARE LTD T/A ORIEL LODGE,04/01/2012,600
Bath & North East Somerset Council,80055053,LM3,Residential Care,P03,Wellbeing,GROVE CARE LTD T/A ORIEL LODGE,04/01/2012,600
Bath & North East Somerset Council,80055053,LM3,Residential Care,P03,Wellbeing,GROVE CARE LTD T/A ORIEL LODGE,04/01/2012,600
Bath & North East Somerset Council,10641472,LH2,Advertising,P03,Wellbeing,MEDIACLASH LTD,04/01/2012,600
Bath & North East Somerset Council,80055109,LM3,Residential Care,P03,Wellbeing,LYNDALE CARE LTD,04/01/2012,600
Bath & North East Somerset Council,80055109,LM3,Residential Care,P03,Wellbeing,LYNDALE CARE LTD,04/01/2012,600
Bath & North East Somerset Council,80055333,PG1,Rent Allowances,P07,Community Resources,PG LETTINGS LTD,04/01/2012,600
Bath & North East Somerset Council,80055128,LM6,Nursing Care,P03,Wellbeing,GLENROYD CARE HOME,04/01/2012,600
Bath & North East Somerset Council,80055128,LM6,Nursing Care,P03,Wellbeing,GLENROYD CARE HOME,04/01/2012,600
Bath & North East Somerset Council,80055045,LM6,Nursing Care,P03,Wellbeing,WESTCROFT CARE LTD,04/01/2012,603.8
Bath & North East Somerset Council,80055045,LM6,Nursing Care,P03,Wellbeing,WESTCROFT CARE LTD,04/01/2012,603.8
Bath & North East Somerset Council,80055100,LM3,Residential Care,P03,Wellbeing,PARK STREET HOME,04/01/2012,604.5
Bath & North East Somerset Council,80055100,LM3,Residential Care,P03,Wellbeing,PARK STREET HOME,04/01/2012,604.5
Bath & North East Somerset Council,10641072,LA5,Materials,P05,Neighbourhoods,TOWN & COUNTRY MEMORIALS LTD,04/01/2012,608
Bath & North East Somerset Council,80055034,LM6,Nursing Care,P03,Wellbeing,BRIGHTBOW LODGE,04/01/2012,610.2
Bath & North East Somerset Council,80055034,LM6,Nursing Care,P03,Wellbeing,BRIGHTBOW LODGE,04/01/2012,610.2
Bath & North East Somerset Council,80055034,LM3,Residential Care,P03,Wellbeing,BRIGHTBOW LODGE,04/01/2012,610.2
Bath & North East Somerset Council,80055034,LM3,Residential Care,P03,Wellbeing,BRIGHTBOW LODGE,04/01/2012,610.2
Bath & North East Somerset Council,80054989,LM6,Nursing Care,P03,Wellbeing,CHOLWELL HOUSE NURSING HOME,04/01/2012,612.33
Bath & North East Somerset Council,80054989,LM6,Nursing Care,P03,Wellbeing,CHOLWELL HOUSE NURSING HOME,04/01/2012,612.33
Bath & North East Somerset Council,80054980,LL3,Supported Living,P03,Wellbeing,DIMENSIONS (UK) LTD,04/01/2012,615.11
Bath & North East Somerset Council,80054980,LL3,Supported Living,P03,Wellbeing,DIMENSIONS (UK) LTD,04/01/2012,615.11
Bath & North East Somerset Council,80055077,LM6,Nursing Care,P03,Wellbeing,LIFESTYLE CARE (2005) PLC,04/01/2012,618
Bath & North East Somerset Council,80055077,LM6,Nursing Care,P03,Wellbeing,LIFESTYLE CARE (2005) PLC,04/01/2012,618
Bath & North East Somerset Council,10641130,LA5,Materials,P05,Neighbourhoods,BONINGALE NURSERIES,04/01/2012,620
Bath & North East Somerset Council,80055100,LM3,Residential Care,P03,Wellbeing,PARK STREET HOME,04/01/2012,620
Bath & North East Somerset Council,80055100,LM3,Residential Care,P03,Wellbeing,PARK STREET HOME,04/01/2012,620
Bath & North East Somerset Council,80055115,LM6,Nursing Care,P03,Wellbeing,DELPHINE HOME CARE,04/01/2012,624.4
Bath & North East Somerset Council,80055115,LM6,Nursing Care,P03,Wellbeing,DELPHINE HOME CARE,04/01/2012,624.4
Bath & North East Somerset Council,80055134,LM6,Nursing Care,P03,Wellbeing,CULVERHAY NURSING HOME,04/01/2012,625
Bath & North East Somerset Council,80055134,LM6,Nursing Care,P03,Wellbeing,CULVERHAY NURSING HOME,04/01/2012,625
Bath & North East Somerset Council,10641415,LL1,Services to/for Clients,P09,Homes & Planning,BATH PROPERTY LETTING,04/01/2012,625
Bath & North East Somerset Council,80055034,LM6,Nursing Care,P03,Wellbeing,BRIGHTBOW LODGE,04/01/2012,625.46
Bath & North East Somerset Council,80055034,LM6,Nursing Care,P03,Wellbeing,BRIGHTBOW LODGE,04/01/2012,625.46
Bath & North East Somerset Council,10640932,PB4,Payments to Private Contractors,P05,Neighbourhoods,R J KING & SONS,04/01/2012,636.17
Bath & North East Somerset Council,21029381,LM6,Nursing Care,P03,Wellbeing,JEWISH CARE,04/01/2012,637.31
Bath & North East Somerset Council,21029381,LM6,Nursing Care,P03,Wellbeing,JEWISH CARE,04/01/2012,637.31
Bath & North East Somerset Council,21086887,LM6,Nursing Care,P03,Wellbeing,JEWISH CARE,04/01/2012,637.31
Bath & North East Somerset Council,21086887,LM6,Nursing Care,P03,Wellbeing,JEWISH CARE,04/01/2012,637.31
Bath & North East Somerset Council,80055178,LM3,Residential Care,P03,Wellbeing,BATH MIND,04/01/2012,639.79
Bath & North East Somerset Council,80055178,LM3,Residential Care,P03,Wellbeing,BATH MIND,04/01/2012,639.79
Bath & North East Somerset Council,80055178,LM3,Residential Care,P03,Wellbeing,BATH MIND,04/01/2012,639.79
Bath & North East Somerset Council,80055178,LM3,Residential Care,P03,Wellbeing,BATH MIND,04/01/2012,639.79
Bath & North East Somerset Council,80055178,LM3,Residential Care,P03,Wellbeing,BATH MIND,04/01/2012,639.79
Bath & North East Somerset Council,80055178,LM3,Residential Care,P03,Wellbeing,BATH MIND,04/01/2012,639.79
Bath & North East Somerset Council,80055178,LM3,Residential Care,P03,Wellbeing,BATH MIND,04/01/2012,639.79
Bath & North East Somerset Council,80055178,LM3,Residential Care,P03,Wellbeing,BATH MIND,04/01/2012,639.79
Bath & North East Somerset Council,80055178,LM3,Residential Care,P03,Wellbeing,BATH MIND,04/01/2012,639.79
Bath & North East Somerset Council,80055178,LM3,Residential Care,P03,Wellbeing,BATH MIND,04/01/2012,639.79
Bath & North East Somerset Council,80055178,LM3,Residential Care,P03,Wellbeing,BATH MIND,04/01/2012,639.79
Bath & North East Somerset Council,80055178,LM3,Residential Care,P03,Wellbeing,BATH MIND,04/01/2012,639.79
Bath & North East Somerset Council,80055178,LM3,Residential Care,P03,Wellbeing,BATH MIND,04/01/2012,639.79
Bath & North East Somerset Council,80055178,LM3,Residential Care,P03,Wellbeing,BATH MIND,04/01/2012,639.79
Bath & North East Somerset Council,80055167,LM6,Nursing Care,P03,Wellbeing,BRISTOL AGE CARE,04/01/2012,642.86
Bath & North East Somerset Council,80055329,PG1,Rent Allowances,P07,Community Resources,ORBIT FIRST STEP,04/01/2012,643
Bath & North East Somerset Council,80055025,LM6,Nursing Care,P03,Wellbeing,LEONARD CHESHIRE FOUNDATION,04/01/2012,648.28
Bath & North East Somerset Council,80055025,LM6,Nursing Care,P03,Wellbeing,LEONARD CHESHIRE FOUNDATION,04/01/2012,648.28
Bath & North East Somerset Council,80054989,LM6,Nursing Care,P03,Wellbeing,CHOLWELL HOUSE NURSING HOME,04/01/2012,650
Bath & North East Somerset Council,80054989,LM6,Nursing Care,P03,Wellbeing,CHOLWELL HOUSE NURSING HOME,04/01/2012,650
Bath & North East Somerset Council,80054989,LM6,Nursing Care,P03,Wellbeing,CHOLWELL HOUSE NURSING HOME,04/01/2012,650
Bath & North East Somerset Council,80054989,LM6,Nursing Care,P03,Wellbeing,CHOLWELL HOUSE NURSING HOME,04/01/2012,650
Bath & North East Somerset Council,80054856,LM6,Nursing Care,P03,Wellbeing,BRIDGE CARE LTD,04/01/2012,650
Bath & North East Somerset Council,80055045,LM6,Nursing Care,P03,Wellbeing,WESTCROFT CARE LTD,04/01/2012,650
Bath & North East Somerset Council,80055045,LM6,Nursing Care,P03,Wellbeing,WESTCROFT CARE LTD,04/01/2012,650
Bath & North East Somerset Council,80055142,LM6,Nursing Care,P03,Wellbeing,BARCHESTER HEALTHCARE HOMES LTD,04/01/2012,650
Bath & North East Somerset Council,80055142,LM6,Nursing Care,P03,Wellbeing,BARCHESTER HEALTHCARE HOMES LTD,04/01/2012,650
Bath & North East Somerset Council,80055147,LM6,Nursing Care,P03,Wellbeing,LARKHALL SPRINGS NURSING HOME,04/01/2012,650
Bath & North East Somerset Council,80055147,LM6,Nursing Care,P03,Wellbeing,LARKHALL SPRINGS NURSING HOME,04/01/2012,650
Bath & North East Somerset Council,80055147,LM6,Nursing Care,P03,Wellbeing,LARKHALL SPRINGS NURSING HOME,04/01/2012,650
Bath & North East Somerset Council,80055147,LM6,Nursing Care,P03,Wellbeing,LARKHALL SPRINGS NURSING HOME,04/01/2012,650
Bath & North East Somerset Council,80055147,LM6,Nursing Care,P03,Wellbeing,LARKHALL SPRINGS NURSING HOME,04/01/2012,650
Bath & North East Somerset Council,80055147,LM6,Nursing Care,P03,Wellbeing,LARKHALL SPRINGS NURSING HOME,04/01/2012,650
Bath & North East Somerset Council,80055147,LM6,Nursing Care,P03,Wellbeing,LARKHALL SPRINGS NURSING HOME,04/01/2012,650
Bath & North East Somerset Council,80055147,LM6,Nursing Care,P03,Wellbeing,LARKHALL SPRINGS NURSING HOME,04/01/2012,650
Bath & North East Somerset Council,10639382,LF5,Postages,P06,Sustainable Development,ROYAL MAIL GROUP PLC,04/01/2012,650
Bath & North East Somerset Council,80055082,LM6,Nursing Care,P03,Wellbeing,CARE FIRST CARE HOMES LTD,04/01/2012,650
Bath & North East Somerset Council,80055082,LM6,Nursing Care,P03,Wellbeing,CARE FIRST CARE HOMES LTD,04/01/2012,650
Bath & North East Somerset Council,80055093,LM6,Nursing Care,P03,Wellbeing,CEDAR CARE HOMES LTD,04/01/2012,650
Bath & North East Somerset Council,80055093,LM6,Nursing Care,P03,Wellbeing,CEDAR CARE HOMES LTD,04/01/2012,650
Bath & North East Somerset Council,80055094,LM6,Nursing Care,P03,Wellbeing,FLOLLIE INVESTMENTS LTD T/A STANTON NURSING HOME,04/01/2012,650
Bath & North East Somerset Council,80055094,LM6,Nursing Care,P03,Wellbeing,FLOLLIE INVESTMENTS LTD T/A STANTON NURSING HOME,04/01/2012,650
Bath & North East Somerset Council,10641415,LL1,Services to/for Clients,P09,Homes & Planning,BATH PROPERTY LETTING,04/01/2012,650
Bath & North East Somerset Council,10640927,LJ2,Legal Fees,P02,"Early Years, Children & Youth",MRS ANN DARIAN,04/01/2012,660
Bath & North East Somerset Council,10640517,LA5,Materials,P05,Neighbourhoods,BONINGALE NURSERIES,04/01/2012,660.6
Bath & North East Somerset Council,80055000,LM3,Residential Care,P03,Wellbeing,MANOR HOUSE,04/01/2012,661.56
Bath & North East Somerset Council,80055000,LM3,Residential Care,P03,Wellbeing,MANOR HOUSE,04/01/2012,661.56
Bath & North East Somerset Council,80055025,LM3,Residential Care,P03,Wellbeing,LEONARD CHESHIRE FOUNDATION,04/01/2012,664.4
Bath & North East Somerset Council,80055025,LM3,Residential Care,P03,Wellbeing,LEONARD CHESHIRE FOUNDATION,04/01/2012,664.4
Bath & North East Somerset Council,80055136,LM3,Residential Care,P03,Wellbeing,EASTHILL HOME FOR THE DEAF,04/01/2012,667
Bath & North East Somerset Council,80055136,LM3,Residential Care,P03,Wellbeing,EASTHILL HOME FOR THE DEAF,04/01/2012,667
Bath & North East Somerset Council,80055317,PG1,Rent Allowances,P07,Community Resources,REDACTED,04/01/2012,667.56
Bath & North East Somerset Council,10639127,LW6,Tax,P05,Neighbourhoods,VIRIDOR WASTE MANAGEMENT LTD,04/01/2012,689.92
Bath & North East Somerset Council,80055417,PG1,Rent Allowances,P07,Community Resources,RNID,04/01/2012,691.68
Bath & North East Somerset Council,80055332,PG1,Rent Allowances,P07,Community Resources,REDACTED,04/01/2012,692.32
Bath & North East Somerset Council,80055157,LM3,Residential Care,P03,Wellbeing,FREEWAYS TRUST LTD,04/01/2012,694.11
Bath & North East Somerset Council,80055157,LM3,Residential Care,P03,Wellbeing,FREEWAYS TRUST LTD,04/01/2012,694.11
Bath & North East Somerset Council,80055170,LM3,Residential Care,P03,Wellbeing,ANCHOR TRUST,04/01/2012,695
Bath & North East Somerset Council,80055170,LM3,Residential Care,P03,Wellbeing,ANCHOR TRUST,04/01/2012,695
Bath & North East Somerset Council,80055141,LM6,Nursing Care,P03,Wellbeing,OAKFIELD,04/01/2012,698.3
Bath & North East Somerset Council,80055141,LM6,Nursing Care,P03,Wellbeing,OAKFIELD,04/01/2012,698.3
Bath & North East Somerset Council,80055134,LM6,Nursing Care,P03,Wellbeing,CULVERHAY NURSING HOME,04/01/2012,700
Bath & North East Somerset Council,80055134,LM6,Nursing Care,P03,Wellbeing,CULVERHAY NURSING HOME,04/01/2012,700
Bath & North East Somerset Council,80055134,LM6,Nursing Care,P03,Wellbeing,CULVERHAY NURSING HOME,04/01/2012,700
Bath & North East Somerset Council,80055134,LM6,Nursing Care,P03,Wellbeing,CULVERHAY NURSING HOME,04/01/2012,700
Bath & North East Somerset Council,80055005,LM6,Nursing Care,P03,Wellbeing,BARCHESTER HEALTHCARE,04/01/2012,700
Bath & North East Somerset Council,80055005,LM6,Nursing Care,P03,Wellbeing,BARCHESTER HEALTHCARE,04/01/2012,700
Bath & North East Somerset Council,80055047,LM3,Residential Care,P03,Wellbeing,ALPINE VILLA CARE HOME LTD,04/01/2012,700
Bath & North East Somerset Council,80055047,LM3,Residential Care,P03,Wellbeing,ALPINE VILLA CARE HOME LTD,04/01/2012,700
Bath & North East Somerset Council,10639463,LA1,Equipment Purchase,P06,Sustainable Development,PANEL SYSTEMS,04/01/2012,700
Bath & North East Somerset Council,80055183,LM6,Nursing Care,P03,Wellbeing,CARE FIRST CARE HOMES LTD,04/01/2012,701.83
Bath & North East Somerset Council,80055183,LM6,Nursing Care,P03,Wellbeing,CARE FIRST CARE HOMES LTD,04/01/2012,701.83
Bath & North East Somerset Council,80055100,LM6,Nursing Care,P03,Wellbeing,PARK STREET HOME,04/01/2012,715
Bath & North East Somerset Council,80055100,LM6,Nursing Care,P03,Wellbeing,PARK STREET HOME,04/01/2012,715
Bath & North East Somerset Council,80055025,LM3,Residential Care,P03,Wellbeing,LEONARD CHESHIRE FOUNDATION,04/01/2012,717.18
Bath & North East Somerset Council,80055025,LM3,Residential Care,P03,Wellbeing,LEONARD CHESHIRE FOUNDATION,04/01/2012,717.18
Bath & North East Somerset Council,80055407,PG1,Rent Allowances,P07,Community Resources,TRUSTEES OF PARTIS COLLEGE,04/01/2012,719.96
Bath & North East Somerset Council,10640277,LX7,Park & Ride Buses,P01,Transport,BATH RACECOURSE COMPANY LIMITED,04/01/2012,720
Bath & North East Somerset Council,10640275,LX7,Park & Ride Buses,P01,Transport,BATH RACECOURSE COMPANY LIMITED,04/01/2012,720
Bath & North East Somerset Council,80055038,LM3,Residential Care,P03,Wellbeing,BOLE ALLER HOUSE LTD,04/01/2012,721.42
Bath & North East Somerset Council,80055038,LM3,Residential Care,P03,Wellbeing,BOLE ALLER HOUSE LTD,04/01/2012,721.42
Bath & North East Somerset Council,80055093,LM6,Nursing Care,P03,Wellbeing,CEDAR CARE HOMES LTD,04/01/2012,725
Bath & North East Somerset Council,80055093,LM6,Nursing Care,P03,Wellbeing,CEDAR CARE HOMES LTD,04/01/2012,725
Bath & North East Somerset Council,80055012,LM3,Residential Care,P03,Wellbeing,MANOR HOUSE,04/01/2012,725.61
Bath & North East Somerset Council,80055012,LM3,Residential Care,P03,Wellbeing,MANOR HOUSE,04/01/2012,725.61
Bath & North East Somerset Council,80055156,LM3,Residential Care,P03,Wellbeing,CORNERSTONES UK LTD,04/01/2012,729.81
Bath & North East Somerset Council,80055156,LM3,Residential Care,P03,Wellbeing,CORNERSTONES UK LTD,04/01/2012,729.81
Bath & North East Somerset Council,80055026,LM3,Residential Care,P03,Wellbeing,LEONARD CHESHIRE FOUNDATION,04/01/2012,730.5
Bath & North East Somerset Council,80055026,LM3,Residential Care,P03,Wellbeing,LEONARD CHESHIRE FOUNDATION,04/01/2012,730.5
Bath & North East Somerset Council,80055141,LM6,Nursing Care,P03,Wellbeing,OAKFIELD,04/01/2012,733
Bath & North East Somerset Council,80055141,LM6,Nursing Care,P03,Wellbeing,OAKFIELD,04/01/2012,733
Bath & North East Somerset Council,80055141,LM6,Nursing Care,P03,Wellbeing,OAKFIELD,04/01/2012,734.26
Bath & North East Somerset Council,80055141,LM6,Nursing Care,P03,Wellbeing,OAKFIELD,04/01/2012,734.26
Bath & North East Somerset Council,80055093,LM3,Residential Care,P03,Wellbeing,CEDAR CARE HOMES LTD,04/01/2012,735
Bath & North East Somerset Council,80055093,LM3,Residential Care,P03,Wellbeing,CEDAR CARE HOMES LTD,04/01/2012,735
Bath & North East Somerset Council,80055148,LM3,Residential Care,P03,Wellbeing,ROBERT OWEN FOUNDATION,04/01/2012,735.06
Bath & North East Somerset Council,80055148,LM3,Residential Care,P03,Wellbeing,ROBERT OWEN FOUNDATION,04/01/2012,735.06
Bath & North East Somerset Council,10639412,LA3,Equipment Maintenance,P01,Transport,PARKEON LIMITED,04/01/2012,742
Bath & North East Somerset Council,80055275,LM2,Foster Carer Allowances,P02,"Early Years, Children & Youth",REDACTED,04/01/2012,745
Bath & North East Somerset Council,80055275,LM2,Foster Carer Allowances,P02,"Early Years, Children & Youth",REDACTED,04/01/2012,745
Bath & North East Somerset Council,80055161,LM3,Residential Care,P03,Wellbeing,SUPPORTED INDEPENDENCE,04/01/2012,747
Bath & North East Somerset Council,80055161,LM3,Residential Care,P03,Wellbeing,SUPPORTED INDEPENDENCE,04/01/2012,747
Bath & North East Somerset Council,80055134,LM6,Nursing Care,P03,Wellbeing,CULVERHAY NURSING HOME,04/01/2012,750
Bath & North East Somerset Council,80055134,LM6,Nursing Care,P03,Wellbeing,CULVERHAY NURSING HOME,04/01/2012,750
Bath & North East Somerset Council,80055134,LM6,Nursing Care,P03,Wellbeing,CULVERHAY NURSING HOME,04/01/2012,750
Bath & North East Somerset Council,80055134,LM6,Nursing Care,P03,Wellbeing,CULVERHAY NURSING HOME,04/01/2012,750
Bath & North East Somerset Council,80055134,LM6,Nursing Care,P03,Wellbeing,CULVERHAY NURSING HOME,04/01/2012,750
Bath & North East Somerset Council,80055134,LM6,Nursing Care,P03,Wellbeing,CULVERHAY NURSING HOME,04/01/2012,750
Bath & North East Somerset Council,80055134,LM6,Nursing Care,P03,Wellbeing,CULVERHAY NURSING HOME,04/01/2012,750
Bath & North East Somerset Council,80055134,LM6,Nursing Care,P03,Wellbeing,CULVERHAY NURSING HOME,04/01/2012,750
Bath & North East Somerset Council,80055142,LM6,Nursing Care,P03,Wellbeing,BARCHESTER HEALTHCARE HOMES LTD,04/01/2012,750
Bath & North East Somerset Council,80055142,LM6,Nursing Care,P03,Wellbeing,BARCHESTER HEALTHCARE HOMES LTD,04/01/2012,750
Bath & North East Somerset Council,80055167,LM6,Nursing Care,P03,Wellbeing,BRISTOL AGE CARE,04/01/2012,750
Bath & North East Somerset Council,80055167,LM6,Nursing Care,P03,Wellbeing,BRISTOL AGE CARE,04/01/2012,750
Bath & North East Somerset Council,80055167,LM6,Nursing Care,P03,Wellbeing,BRISTOL AGE CARE,04/01/2012,750
Bath & North East Somerset Council,80055167,LM6,Nursing Care,P03,Wellbeing,BRISTOL AGE CARE,04/01/2012,750
Bath & North East Somerset Council,80055167,LM6,Nursing Care,P03,Wellbeing,BRISTOL AGE CARE,04/01/2012,750
Bath & North East Somerset Council,80055167,LM6,Nursing Care,P03,Wellbeing,BRISTOL AGE CARE,04/01/2012,750
Bath & North East Somerset Council,80055167,LM6,Nursing Care,P03,Wellbeing,BRISTOL AGE CARE,04/01/2012,750
Bath & North East Somerset Council,80055167,LM6,Nursing Care,P03,Wellbeing,BRISTOL AGE CARE,04/01/2012,750
Bath & North East Somerset Council,10639495,LK1,Fees,P02,"Early Years, Children & Youth",THE CHILDCARE COMPANY LTD,04/01/2012,750
Bath & North East Somerset Council,80055245,LM2,Foster Carer Allowances,P02,"Early Years, Children & Youth",REDACTED,04/01/2012,754
Bath & North East Somerset Council,80055245,LM2,Foster Carer Allowances,P02,"Early Years, Children & Youth",REDACTED,04/01/2012,754
Bath & North East Somerset Council,80055270,LM2,Foster Carer Allowances,P02,"Early Years, Children & Youth",REDACTED,04/01/2012,754
Bath & North East Somerset Council,10641427,LM9,Day Care,P03,Wellbeing,ACTION ON HEARING LOSS,04/01/2012,758.49
Bath & North East Somerset Council,80055162,LM3,Residential Care,P03,Wellbeing,ENABLING PARTNERSHIP,04/01/2012,764.83
Bath & North East Somerset Council,80055162,LM3,Residential Care,P03,Wellbeing,ENABLING PARTNERSHIP,04/01/2012,764.83
Bath & North East Somerset Council,10641281,LJ1,Consultants Fees,P09,Homes & Planning,WYG ENVIRONMENT PLANNING TRANSPORT LTD,04/01/2012,775
Bath & North East Somerset Council,80055063,LM3,Residential Care,P03,Wellbeing,CRAEGMOOR FACILITIES COMPANY LIMITED,04/01/2012,775.71
Bath & North East Somerset Council,80055063,LM3,Residential Care,P03,Wellbeing,CRAEGMOOR FACILITIES COMPANY LIMITED,04/01/2012,775.71
Bath & North East Somerset Council,80055057,LM3,Residential Care,P03,Wellbeing,VILLAGE HOMES (SOMERSET) LTD,04/01/2012,777.07
Bath & North East Somerset Council,80055057,LM3,Residential Care,P03,Wellbeing,VILLAGE HOMES (SOMERSET) LTD,04/01/2012,777.07
Bath & North East Somerset Council,80055389,PG1,Rent Allowances,P07,Community Resources,REDACTED,04/01/2012,779.08
Bath & North East Somerset Council,80054980,LL3,Supported Living,P03,Wellbeing,DIMENSIONS (UK) LTD,04/01/2012,782.07
Bath & North East Somerset Council,80054980,LL3,Supported Living,P03,Wellbeing,DIMENSIONS (UK) LTD,04/01/2012,782.07
Bath & North East Somerset Council,80055210,LM2,Foster Carer Allowances,P02,"Early Years, Children & Youth",REDACTED,04/01/2012,782.92
Bath & North East Somerset Council,80055316,PG1,Rent Allowances,P07,Community Resources,DRAGON PROPERTY,04/01/2012,784
Bath & North East Somerset Council,80055249,LM2,Foster Carer Allowances,P02,"Early Years, Children & Youth",REDACTED,04/01/2012,784
Bath & North East Somerset Council,80055249,LM2,Foster Carer Allowances,P02,"Early Years, Children & Youth",REDACTED,04/01/2012,784
Bath & North East Somerset Council,10640332,LC1,Provisions,P07,Community Resources,APETITO LTD,04/01/2012,787.45
Bath & North East Somerset Council,80055004,LM3,Residential Care,P03,Wellbeing,BEDROCK LODGE,04/01/2012,789.7
Bath & North East Somerset Council,80055004,LM3,Residential Care,P03,Wellbeing,BEDROCK LODGE,04/01/2012,789.7
Bath & North East Somerset Council,80055001,LM3,Residential Care,P03,Wellbeing,MANOR COMMUNITY CARE HOME,04/01/2012,798
Bath & North East Somerset Council,80055001,LM3,Residential Care,P03,Wellbeing,MANOR COMMUNITY CARE HOME,04/01/2012,798
Bath & North East Somerset Council,80055134,LM6,Nursing Care,P03,Wellbeing,CULVERHAY NURSING HOME,04/01/2012,800
Bath & North East Somerset Council,80055134,LM6,Nursing Care,P03,Wellbeing,CULVERHAY NURSING HOME,04/01/2012,800
Bath & North East Somerset Council,80055134,LM6,Nursing Care,P03,Wellbeing,CULVERHAY NURSING HOME,04/01/2012,800
Bath & North East Somerset Council,80055134,LM6,Nursing Care,P03,Wellbeing,CULVERHAY NURSING HOME,04/01/2012,800
Bath & North East Somerset Council,80055247,LM2,Foster Carer Allowances,P02,"Early Years, Children & Youth",REDACTED,04/01/2012,800
Bath & North East Somerset Council,80055247,LM2,Foster Carer Allowances,P02,"Early Years, Children & Youth",REDACTED,04/01/2012,800
Bath & North East Somerset Council,80055247,LM2,Foster Carer Allowances,P02,"Early Years, Children & Youth",REDACTED,04/01/2012,800
Bath & North East Somerset Council,80055252,LM2,Foster Carer Allowances,P02,"Early Years, Children & Youth",REDACTED,04/01/2012,800
Bath & North East Somerset Council,80055252,LM2,Foster Carer Allowances,P02,"Early Years, Children & Youth",REDACTED,04/01/2012,800
Bath & North East Somerset Council,80055269,LM2,Foster Carer Allowances,P02,"Early Years, Children & Youth",REDACTED,04/01/2012,800
Bath & North East Somerset Council,80055269,LM2,Foster Carer Allowances,P02,"Early Years, Children & Youth",REDACTED,04/01/2012,800
Bath & North East Somerset Council,80055110,LM6,Nursing Care,P03,Wellbeing,WOTTON RISE NURSING HOME LTD,04/01/2012,800
Bath & North East Somerset Council,80055110,LM6,Nursing Care,P03,Wellbeing,WOTTON RISE NURSING HOME LTD,04/01/2012,800
Bath & North East Somerset Council,80055301,LM2,Foster Carer Allowances,P02,"Early Years, Children & Youth",REDACTED,04/01/2012,800
Bath & North East Somerset Council,80055301,LM2,Foster Carer Allowances,P02,"Early Years, Children & Youth",REDACTED,04/01/2012,800
Bath & North East Somerset Council,80055203,LM2,Foster Carer Allowances,P02,"Early Years, Children & Youth",REDACTED,04/01/2012,808
Bath & North East Somerset Council,80055203,LM2,Foster Carer Allowances,P02,"Early Years, Children & Youth",REDACTED,04/01/2012,808
Bath & North East Somerset Council,80055142,LM6,Nursing Care,P03,Wellbeing,BARCHESTER HEALTHCARE HOMES LTD,04/01/2012,808.57
Bath & North East Somerset Council,80055142,LM6,Nursing Care,P03,Wellbeing,BARCHESTER HEALTHCARE HOMES LTD,04/01/2012,808.57
Bath & North East Somerset Council,80055025,LM3,Residential Care,P03,Wellbeing,LEONARD CHESHIRE FOUNDATION,04/01/2012,814.54
Bath & North East Somerset Council,80055025,LM3,Residential Care,P03,Wellbeing,LEONARD CHESHIRE FOUNDATION,04/01/2012,814.54
Bath & North East Somerset Council,80055259,LM2,Foster Carer Allowances,P02,"Early Years, Children & Youth",REDACTED,04/01/2012,816
Bath & North East Somerset Council,80055259,LM2,Foster Carer Allowances,P02,"Early Years, Children & Youth",REDACTED,04/01/2012,816
Bath & North East Somerset Council,80055259,LM2,Foster Carer Allowances,P02,"Early Years, Children & Youth",REDACTED,04/01/2012,816
Bath & North East Somerset Council,80055235,LM2,Foster Carer Allowances,P02,"Early Years, Children & Youth",REDACTED,04/01/2012,818
Bath & North East Somerset Council,80055235,LM2,Foster Carer Allowances,P02,"Early Years, Children & Youth",REDACTED,04/01/2012,818
Bath & North East Somerset Council,80055235,LM2,Foster Carer Allowances,P02,"Early Years, Children & Youth",REDACTED,04/01/2012,818
Bath & North East Somerset Council,80055235,LM2,Foster Carer Allowances,P02,"Early Years, Children & Youth",REDACTED,04/01/2012,818
Bath & North East Somerset Council,80055235,LM2,Foster Carer Allowances,P02,"Early Years, Children & Youth",REDACTED,04/01/2012,818
Bath & North East Somerset Council,80055238,LM2,Foster Carer Allowances,P02,"Early Years, Children & Youth",REDACTED,04/01/2012,818
Bath & North East Somerset Council,80055238,LM2,Foster Carer Allowances,P02,"Early Years, Children & Youth",REDACTED,04/01/2012,818
Bath & North East Somerset Council,80055246,LM2,Foster Carer Allowances,P02,"Early Years, Children & Youth",REDACTED,04/01/2012,818
Bath & North East Somerset Council,80055246,LM2,Foster Carer Allowances,P02,"Early Years, Children & Youth",REDACTED,04/01/2012,818
Bath & North East Somerset Council,80055246,LM2,Foster Carer Allowances,P02,"Early Years, Children & Youth",REDACTED,04/01/2012,818
Bath & North East Somerset Council,80055262,LM2,Foster Carer Allowances,P02,"Early Years, Children & Youth",REDACTED,04/01/2012,820
Bath & North East Somerset Council,80055262,LM2,Foster Carer Allowances,P02,"Early Years, Children & Youth",REDACTED,04/01/2012,820
Bath & North East Somerset Council,10640357,HX9,Other Premises Related,P03,Wellbeing,LIFTECH.ORG LTD,04/01/2012,823
Bath & North East Somerset Council,80055266,LM2,Foster Carer Allowances,P02,"Early Years, Children & Youth",REDACTED,04/01/2012,824
Bath & North East Somerset Council,80055266,LM2,Foster Carer Allowances,P02,"Early Years, Children & Youth",REDACTED,04/01/2012,824
Bath & North East Somerset Council,80055261,LM2,Foster Carer Allowances,P02,"Early Years, Children & Youth",REDACTED,04/01/2012,828
Bath & North East Somerset Council,80055280,LM2,Foster Carer Allowances,P02,"Early Years, Children & Youth",REDACTED,04/01/2012,830
Bath & North East Somerset Council,80055171,LM3,Residential Care,P03,Wellbeing,ASPECTS & MILESTONES TRUST,04/01/2012,834.82
Bath & North East Somerset Council,80055171,LM3,Residential Care,P03,Wellbeing,ASPECTS & MILESTONES TRUST,04/01/2012,834.82
Bath & North East Somerset Council,80055031,LM3,Residential Care,P03,Wellbeing,HOME FARM TRUST LTD,04/01/2012,835.87
Bath & North East Somerset Council,80055031,LM3,Residential Care,P03,Wellbeing,HOME FARM TRUST LTD,04/01/2012,835.87
Bath & North East Somerset Council,10641387,DB1,Agency Staff,P06,Sustainable Development,RS SECURITY LTD,04/01/2012,840
Bath & North East Somerset Council,80055087,LM3,Residential Care,P03,Wellbeing,CAMPHILL DEVON COMMUNITY LTD,04/01/2012,841.5
Bath & North East Somerset Council,80055087,LM3,Residential Care,P03,Wellbeing,CAMPHILL DEVON COMMUNITY LTD,04/01/2012,841.5
Bath & North East Somerset Council,10641387,HP3,Room Hire Charges,P06,Sustainable Development,RS SECURITY LTD,04/01/2012,850
Bath & North East Somerset Council,80055092,LM6,Nursing Care,P03,Wellbeing,ORDERS OF ST JOHN CARE TRUST,04/01/2012,850
Bath & North East Somerset Council,80055092,LM6,Nursing Care,P03,Wellbeing,ORDERS OF ST JOHN CARE TRUST,04/01/2012,850
Bath & North East Somerset Council,80055106,LM3,Residential Care,P03,Wellbeing,THE BRANDON TRUST ELMS HOUSE,04/01/2012,850
Bath & North East Somerset Council,80055106,LM3,Residential Care,P03,Wellbeing,THE BRANDON TRUST ELMS HOUSE,04/01/2012,850
Bath & North East Somerset Council,80055021,LM3,Residential Care,P03,Wellbeing,THELMA TURNER HOMES LIMITED,04/01/2012,857
Bath & North East Somerset Council,80055021,LM3,Residential Care,P03,Wellbeing,THELMA TURNER HOMES LIMITED,04/01/2012,857
Bath & North East Somerset Council,80055288,LM2,Foster Carer Allowances,P02,"Early Years, Children & Youth",REDACTED,04/01/2012,860
Bath & North East Somerset Council,80055155,LM3,Residential Care,P03,Wellbeing,THE BRANDON TRUST,04/01/2012,870.53
Bath & North East Somerset Council,80055155,LM3,Residential Care,P03,Wellbeing,THE BRANDON TRUST,04/01/2012,870.53
Bath & North East Somerset Council,80055169,LM3,Residential Care,P03,Wellbeing,ORCHARD VALE TRUST,04/01/2012,872.62
Bath & North East Somerset Council,80055169,LM3,Residential Care,P03,Wellbeing,ORCHARD VALE TRUST,04/01/2012,872.62
Bath & North East Somerset Council,10641465,LF5,Postages,P07,Community Resources,TNT POST SOUTH WEST LTD,04/01/2012,874.82
Bath & North East Somerset Council,80054994,LM3,Residential Care,P03,Wellbeing,HOME FARM TRUST,04/01/2012,879.64
Bath & North East Somerset Council,80054994,LM3,Residential Care,P03,Wellbeing,HOME FARM TRUST,04/01/2012,879.64
Bath & North East Somerset Council,80055175,LM3,Residential Care,P03,Wellbeing,ASPECTS & MILESTONES TRUST,04/01/2012,886.06
Bath & North East Somerset Council,80055175,LM3,Residential Care,P03,Wellbeing,ASPECTS & MILESTONES TRUST,04/01/2012,886.06
Bath & North East Somerset Council,80055134,LM6,Nursing Care,P03,Wellbeing,CULVERHAY NURSING HOME,04/01/2012,900
Bath & North East Somerset Council,80055134,LM6,Nursing Care,P03,Wellbeing,CULVERHAY NURSING HOME,04/01/2012,900
Bath & North East Somerset Council,80055028,LM6,Nursing Care,P03,Wellbeing,EXTRAFRIEND LTD,04/01/2012,900
Bath & North East Somerset Council,80055028,LM6,Nursing Care,P03,Wellbeing,EXTRAFRIEND LTD,04/01/2012,900
Bath & North East Somerset Council,10641433,LV1,Grants to Voluntary Bodies,P01,Transport,WELLOW COMMUNITY BUS GROUP,04/01/2012,904
Bath & North East Somerset Council,10640986,KA3,Fuel,P01,Transport,FORD FUELS LTD,04/01/2012,906.45
Bath & North East Somerset Council,80055123,LM3,Residential Care,P03,Wellbeing,CHESCOMBE TRUST,04/01/2012,907.91
Bath & North East Somerset Council,80055123,LM3,Residential Care,P03,Wellbeing,CHESCOMBE TRUST,04/01/2012,907.91
Bath & North East Somerset Council,80055082,LM6,Nursing Care,P03,Wellbeing,CARE FIRST CARE HOMES LTD,04/01/2012,918
Bath & North East Somerset Council,80055082,LM6,Nursing Care,P03,Wellbeing,CARE FIRST CARE HOMES LTD,04/01/2012,918
Bath & North East Somerset Council,80055025,LM6,Nursing Care,P03,Wellbeing,LEONARD CHESHIRE FOUNDATION,04/01/2012,919.51
Bath & North East Somerset Council,80055025,LM6,Nursing Care,P03,Wellbeing,LEONARD CHESHIRE FOUNDATION,04/01/2012,919.51
Bath & North East Somerset Council,80055166,LM3,Residential Care,P03,Wellbeing,THE BRANDON TRUST,04/01/2012,919.98
Bath & North East Somerset Council,80055166,LM3,Residential Care,P03,Wellbeing,THE BRANDON TRUST,04/01/2012,919.98
Bath & North East Somerset Council,80055120,LM3,Residential Care,P03,Wellbeing,MILESTONES TRUST,04/01/2012,947.29
Bath & North East Somerset Council,80055120,LM3,Residential Care,P03,Wellbeing,MILESTONES TRUST,04/01/2012,947.29
Bath & North East Somerset Council,10641430,LV1,Grants to Voluntary Bodies,P01,Transport,CHEW VALLEY COMMUNITY TRANSPORT,04/01/2012,948
Bath & North East Somerset Council,80054994,LM3,Residential Care,P03,Wellbeing,HOME FARM TRUST,04/01/2012,948.05
Bath & North East Somerset Council,80054994,LM3,Residential Care,P03,Wellbeing,HOME FARM TRUST,04/01/2012,948.05
Bath & North East Somerset Council,80055142,LM6,Nursing Care,P03,Wellbeing,BARCHESTER HEALTHCARE HOMES LTD,04/01/2012,950
Bath & North East Somerset Council,80055142,LM6,Nursing Care,P03,Wellbeing,BARCHESTER HEALTHCARE HOMES LTD,04/01/2012,950
Bath & North East Somerset Council,80055160,LM3,Residential Care,P03,Wellbeing,REDACTED,04/01/2012,950
Bath & North East Somerset Council,80055160,LM3,Residential Care,P03,Wellbeing,REDACTED,04/01/2012,950
Bath & North East Somerset Council,80055161,LM3,Residential Care,P03,Wellbeing,SUPPORTED INDEPENDENCE,04/01/2012,950
Bath & North East Somerset Council,80055161,LM3,Residential Care,P03,Wellbeing,SUPPORTED INDEPENDENCE,04/01/2012,950
Bath & North East Somerset Council,80055060,LM3,Residential Care,P03,Wellbeing,CRAEGMOOR FACILITIES COMPANY LIMITED,04/01/2012,965.03
Bath & North East Somerset Council,80055060,LM3,Residential Care,P03,Wellbeing,CRAEGMOOR FACILITIES COMPANY LIMITED,04/01/2012,965.03
Bath & North East Somerset Council,80055153,LM3,Residential Care,P03,Wellbeing,6 THE AVENUE -KEYNSHAM MENCAP,04/01/2012,971.93
Bath & North East Somerset Council,80055153,LM3,Residential Care,P03,Wellbeing,6 THE AVENUE -KEYNSHAM MENCAP,04/01/2012,971.93
Bath & North East Somerset Council,80055153,LM3,Residential Care,P03,Wellbeing,6 THE AVENUE -KEYNSHAM MENCAP,04/01/2012,971.93
Bath & North East Somerset Council,80055153,LM3,Residential Care,P03,Wellbeing,6 THE AVENUE -KEYNSHAM MENCAP,04/01/2012,971.93
Bath & North East Somerset Council,80055020,LM3,Residential Care,P03,Wellbeing,THELMA TURNER HOMES LIMITED,04/01/2012,973
Bath & North East Somerset Council,80055020,LM3,Residential Care,P03,Wellbeing,THELMA TURNER HOMES LIMITED,04/01/2012,973
Bath & North East Somerset Council,10641593,LJ1,Consultants Fees,P07,Community Resources,IAN JAMIESON ASSOCIATES LTD,04/01/2012,975
Bath & North East Somerset Council,80055154,LM3,Residential Care,P03,Wellbeing,COCKLEBURY FARMHOUSE,04/01/2012,975.54
Bath & North East Somerset Council,80055154,LM3,Residential Care,P03,Wellbeing,COCKLEBURY FARMHOUSE,04/01/2012,975.54
Bath & North East Somerset Council,10640349,LA1,Equipment Purchase,P03,Wellbeing,DRIVE MEDICAL LTD,04/01/2012,975.8
Bath & North East Somerset Council,80055011,LL3,Supported Living,P03,Wellbeing,SWALLOW LTD,04/01/2012,977.46
Bath & North East Somerset Council,80055011,LL3,Supported Living,P03,Wellbeing,SWALLOW LTD,04/01/2012,977.46
Bath & North East Somerset Council,80055025,LM3,Residential Care,P03,Wellbeing,LEONARD CHESHIRE FOUNDATION,04/01/2012,978.71
Bath & North East Somerset Council,80055025,LM3,Residential Care,P03,Wellbeing,LEONARD CHESHIRE FOUNDATION,04/01/2012,978.71
Bath & North East Somerset Council,80055017,LM3,Residential Care,P03,Wellbeing,THELMA TURNER HOMES LIMITED,04/01/2012,982
Bath & North East Somerset Council,80055017,LM3,Residential Care,P03,Wellbeing,THELMA TURNER HOMES LIMITED,04/01/2012,982
Bath & North East Somerset Council,80055017,LM3,Residential Care,P03,Wellbeing,THELMA TURNER HOMES LIMITED,04/01/2012,982
Bath & North East Somerset Council,80055017,LM3,Residential Care,P03,Wellbeing,THELMA TURNER HOMES LIMITED,04/01/2012,982
Bath & North East Somerset Council,10639927,HA4,Responsive Maintenance PCB,P07,Community Resources,K P WILTON & SON LTD,04/01/2012,982.1
Bath & North East Somerset Council,10640749,LA7,Purchases for Resale,P06,Sustainable Development,FIKKERTS LTD,04/01/2012,993.2
Bath & North East Somerset Council,80054618,LL4,Direct Payments,P03,Wellbeing,REDACTED,04/01/2012,993.53
Bath & North East Somerset Council,80054618,LL4,Direct Payments,P03,Wellbeing,REDACTED,04/01/2012,993.53
Bath & North East Somerset Council,80055096,LL3,Supported Living,P03,Wellbeing,KCARE NURSING AGENCY LTD,04/01/2012,1000
Bath & North East Somerset Council,80055096,LL3,Supported Living,P03,Wellbeing,KCARE NURSING AGENCY LTD,04/01/2012,1000
Bath & North East Somerset Council,80055025,LM3,Residential Care,P03,Wellbeing,LEONARD CHESHIRE FOUNDATION,04/01/2012,1001.83
Bath & North East Somerset Council,80055025,LM3,Residential Care,P03,Wellbeing,LEONARD CHESHIRE FOUNDATION,04/01/2012,1001.83
Bath & North East Somerset Council,80055226,LM2,Foster Carer Allowances,P02,"Early Years, Children & Youth",REDACTED,04/01/2012,1003.62
Bath & North East Somerset Council,80054983,LM3,Residential Care,P03,Wellbeing,HOMES TOGETHER LTD,04/01/2012,1004.93
Bath & North East Somerset Council,80054983,LM3,Residential Care,P03,Wellbeing,HOMES TOGETHER LTD,04/01/2012,1004.93
Bath & North East Somerset Council,80055025,LM3,Residential Care,P03,Wellbeing,LEONARD CHESHIRE FOUNDATION,04/01/2012,1028.91
Bath & North East Somerset Council,80055025,LM3,Residential Care,P03,Wellbeing,LEONARD CHESHIRE FOUNDATION,04/01/2012,1028.91
